Workbook

Sheet Main
B10: 2018-10-04
B12: Sheet No. | C12: Template Name | D12: Summary
B13: 1 | C13: Future Intra | D13: For Intraday trading in F&O segment
B14: 2 | C14: Cash Intra | D14: For Intraday trading in cash market segment
B15: 3 | C15: Mid-cap Intra | D15: For Intraday trading in Mid-cap stocks
B16: 4 | C16: Bulk Deals | D16: Reveals Bulk Deals carried on NSE & BSE
B17: 5 | C17: Call Tracker

Sheet Future Intra
M5: Back to Main Page
A6: FOR INTRA DAY TRADING | L6: =Main!B10 -> 2018-10-04
A9: Sr.no | B9: Sector | C9: Scrip | D9: CLOSE RATE | E9: Pivot Point | F9: Supports | I9: Resistances
B10: Sector | D10: Point | E10: Point | F10: S1 | G10: S2 | H10: S3 | I10: R1 | J10: R2 | K10: R3 | L10: HIGH | M10: LOW | N10: OI | O10: % Change in OI
A11: 1 | B11: Index | C11: BANKNIFTY | D11: 25163.65 | E11: 25283.50 | F11: 24990.00 | G11: 24816.35 | H11: 24522.85 | I11: 25457.15 | J11: 25750.65 | K11: 25924.30 | L11: 25577 | M11: 25109.85 | N11: 1939240 | O11: 2.07%
A12: 2 | B12: Index | C12: NIFTY | D12: 10893.60 | E12: 10932.87 | F12: 10840.73 | G12: 10787.87 | H12: 10695.73 | I12: 10985.73 | J12: 11077.87 | K12: 11130.73 | L12: 11025 | M12: 10880 | N12: 18143100 | O12: 5.45%
A13: 3 | B13: Index | C13: NIFTYCPSE | D13: 2315.55 | E13: 771.85 | F13: 1543.70 | G13: 771.85 | H13: 1543.70 | I13: 1543.70 | J13: 771.85 | K13: 1543.70 | L13: 0 | M13: 0 | N13: 0 | O13: 0.00%
A14: 4 | B14: Index | C14: NIFTYINFRA | D14: 3177.55 | E14: 1059.18 | F14: 2118.37 | G14: 1059.18 | H14: 2118.37 | I14: 2118.37 | J14: 1059.18 | K14: 2118.37 | L14: 0 | M14: 0 | N14: 0 | O14: 0.00%
A15: 5 | B15: Index | C15: NIFTYIT | D15: 15946.00 | E15: 16060.33 | F15: 15810.67 | G15: 15675.33 | H15: 15425.67 | I15: 16195.67 | J15: 16445.33 | K15: 16580.67 | L15: 16310 | M15: 15925 | N15: 39300 | O15: 10.24%
A16: 6 | B16: Index | C16: NIFTYMID50 | D16: 4660.00 | E16: 4656.67 | F16: 4653.33 | G16: 4646.67 | H16: 4643.33 | I16: 4663.33 | J16: 4666.67 | K16: 4673.33 | L16: 4660 | M16: 4650 | N16: 761310 | O16: 0.03%
A17: 7 | B17: Index | C17: NIFTYPSE | D17: 3599.05 | E17: 1199.68 | F17: 2399.37 | G17: 1199.68 | H17: 2399.37 | I17: 2399.37 | J17: 1199.68 | K17: 2399.37 | L17: 0 | M17: 0 | N17: 0 | O17: 0.00%
A18: 8 | B18: Cement | C18: ACC | D18: 1506.20 | E18: 1521.43 | F18: 1478.02 | G18: 1449.83 | H18: 1406.42 | I18: 1549.62 | J18: 1593.03 | K18: 1621.22 | L18: 1564.85 | M18: 1493.25 | N18: 1386800 | O18: 2.79%
A19: 9 | B19: Others | C19: ADANIENT | D19: 133.95 | E19: 135.55 | F19: 128.60 | G19: 123.25 | H19: 116.30 | I19: 140.90 | J19: 147.85 | K19: 153.20 | L19: 142.5 | M19: 130.2 | N19: 39376000 | O19: -1.01%
A20: 10 | B20: Others | C20: ADANIPORTS | D20: 330.85 | E20: 332.73 | F20: 326.17 | G20: 321.48 | H20: 314.92 | I20: 337.42 | J20: 343.98 | K20: 348.67 | L20: 339.3 | M20: 328.05 | N20: 10420000 | O20: -2.07%
A21: 11 | B21: Power | C21: ADANIPOWER | D21: 26.15 | E21: 26.30 | F21: 25.45 | G21: 24.75 | H21: 23.90 | I21: 27.00 | J21: 27.85 | K21: 28.55 | L21: 27.15 | M21: 25.6 | N21: 158500000 | O21: 0.92%
A22: 12 | B22: Pharma | C22: AJANTPHARM | D22: 1042.80 | E22: 1054.30 | F22: 1026.60 | G22: 1010.40 | H22: 982.70 | I22: 1070.50 | J22: 1098.20 | K22: 1114.40 | L22: 1082 | M22: 1038.1 | N22: 678500 | O22: 2.42%
A23: 13 | B23: Banking | C23: ALBK | D23: 36.55 | E23: 36.57 | F23: 34.83 | G23: 33.12 | H23: 31.38 | I23: 38.28 | J23: 40.02 | K23: 41.73 | L23: 38.3 | M23: 34.85 | N23: 18249000 | O23: -1.48%
A24: 14 | B24: Automobile | C24: AMARAJABAT | D24: 740.05 | E24: 739.77 | F24: 730.28 | G24: 720.52 | H24: 711.03 | I24: 749.53 | J24: 759.02 | K24: 768.78 | L24: 749.25 | M24: 730 | N24: 996800 | O24: -0.77%
A25: 15 | B25: Cement | C25: AMBUJACEM | D25: 213.70 | E25: 216.58 | F25: 209.17 | G25: 204.63 | H25: 197.22 | I25: 221.12 | J25: 228.53 | K25: 233.07 | L25: 224 | M25: 212.05 | N25: 13585000 | O25: -0.66%
A26: 17 | B26: Others | C26: APOLLOHOSP | D26: 1071.25 | E26: 1068.52 | F26: 1049.58 | G26: 1027.92 | H26: 1008.98 | I26: 1090.18 | J26: 1109.12 | K26: 1130.78 | L26: 1087.45 | M26: 1046.85 | N26: 1223000 | O26: 0.12%
A27: 18 | B27: Automobile | C27: APOLLOTYRE | D27: 207.10 | E27: 209.27 | F27: 204.13 | G27: 201.17 | H27: 196.03 | I27: 212.23 | J27: 217.37 | K27: 220.33 | L27: 214.4 | M27: 206.3 | N27: 12261000 | O27: 8.55%
A28: 19 | B28: Textile | C28: ARVIND | D28: 318.15 | E28: 322.52 | F28: 312.13 | G28: 306.12 | H28: 295.73 | I28: 328.53 | J28: 338.92 | K28: 344.93 | L28: 332.9 | M28: 316.5 | N28: 7968000 | O28: 2.71%
A29: 20 | B29: Automobile | C29: ASHOKLEY | D29: 119.45 | E29: 120.07 | F29: 118.38 | G29: 117.32 | H29: 115.63 | I29: 121.13 | J29: 122.82 | K29: 123.88 | L29: 121.75 | M29: 119 | N29: 57448000 | O29: -2.36%
A30: 21 | B30: FMCG | C30: ASIANPAINT | D30: 1253.85 | E30: 1260.08 | F30: 1241.17 | G30: 1228.48 | H30: 1209.57 | I30: 1272.77 | J30: 1291.68 | K30: 1304.37 | L30: 1279 | M30: 1247.4 | N30: 5170800 | O30: 1.66%
A31: 22 | B31: Pharma | C31: AUROPHARMA | D31: 773.75 | E31: 778.10 | F31: 764.35 | G31: 754.95 | H31: 741.20 | I31: 787.50 | J31: 801.25 | K31: 810.65 | L31: 791.85 | M31: 768.7 | N31: 21181000 | O31: -3.10%
A32: 23 | B32: Banking | C32: AXISBANK | D32: 575.05 | E32: 581.03 | F32: 566.07 | G32: 557.08 | H32: 542.12 | I32: 590.02 | J32: 604.98 | K32: 613.97 | L32: 596 | M32: 572.05 | N32: 38178000 | O32: -3.23%
A33: 24 | B33: Automobile | C33: BAJAJ-AUTO | D33: 2738.40 | E33: 2739.73 | F33: 2704.47 | G33: 2670.53 | H33: 2635.27 | I33: 2773.67 | J33: 2808.93 | K33: 2842.87 | L33: 2775 | M33: 2705.8 | N33: 2603250 | O33: -1.72%
A34: 25 | B34: Others | C34: BAJAJFINSV | D34: 5764.15 | E34: 5813.35 | F34: 5651.80 | G34: 5539.45 | H34: 5377.90 | I34: 5925.70 | J34: 6087.25 | K34: 6199.60 | L34: 5974.9 | M34: 5701 | N34: 772750 | O34: 12.60%
A35: 26 | B35: Finance | C35: BAJFINANCE | D35: 2235.45 | E35: 2248.30 | F35: 2162.15 | G35: 2088.85 | H35: 2002.70 | I35: 2321.60 | J35: 2407.75 | K35: 2481.05 | L35: 2334.45 | M35: 2175 | N35: 7084000 | O35: -6.43%
A36: 27 | B36: Others | C36: BALKRISIND | D36: 1055.60 | E36: 1060.37 | F36: 1035.73 | G36: 1015.87 | H36: 991.23 | I36: 1080.23 | J36: 1104.87 | K36: 1124.73 | L36: 1085 | M36: 1040.5 | N36: 2008800 | O36: -0.48%
A37: 29 | B37: Banking | C37: BANKBARODA | D37: 103.65 | E37: 104.80 | F37: 101.25 | G37: 98.85 | H37: 95.30 | I37: 107.20 | J37: 110.75 | K37: 113.15 | L37: 108.35 | M37: 102.4 | N37: 76528000 | O37: -0.10%
A38: 30 | B38: Banking | C38: BANKINDIA | D38: 80.85 | E38: 81.35 | F38: 78.20 | G38: 75.55 | H38: 72.40 | I38: 84.00 | J38: 87.15 | K38: 89.80 | L38: 84.5 | M38: 78.7 | N38: 21630000 | O38: 8.72%
A39: 31 | B39: FMCG | C39: BATAINDIA | D39: 919.80 | E39: 936.67 | F39: 898.13 | G39: 876.47 | H39: 837.93 | I39: 958.33 | J39: 996.87 | K39: 1018.53 | L39: 975.2 | M39: 915 | N39: 1808400 | O39: 18.70%
A40: 32 | B40: Capital_Goods | C40: BEL | D40: 83.60 | E40: 83.48 | F40: 81.82 | G40: 80.03 | H40: 78.37 | I40: 85.27 | J40: 86.93 | K40: 88.72 | L40: 85.15 | M40: 81.7 | N40: 35313300 | O40: -6.32%
A41: 33 | B41: Infrastructure | C41: BEML | D41: 611.70 | E41: 607.33 | F41: 583.62 | G41: 555.53 | H41: 531.82 | I41: 635.42 | J41: 659.13 | K41: 687.22 | L41: 631.05 | M41: 579.25 | N41: 1705000 | O41: -8.38%
A42: 34 | B42: Others | C42: BERGEPAINT | D42: 279.90 | E42: 280.82 | F42: 275.68 | G42: 271.47 | H42: 266.33 | I42: 285.03 | J42: 290.17 | K42: 294.38 | L42: 285.95 | M42: 276.6 | N42: 1867800 | O42: -1.85%
A43: 35 | B43: Finance | C43: BHARATFIN | D43: 1021.00 | E43: 1020.85 | F43: 1004.65 | G43: 988.30 | H43: 972.10 | I43: 1037.20 | J43: 1053.40 | K43: 1069.75 | L43: 1037.05 | M43: 1004.5 | N43: 4533500 | O43: -0.72%
A44: 36 | B44: Automobile | C44: BHARATFORG | D44: 604.80 | E44: 609.60 | F44: 598.20 | G44: 591.60 | H44: 580.20 | I44: 616.20 | J44: 627.60 | K44: 634.20 | L44: 621 | M44: 603 | N44: 7651200 | O44: -3.26%
A45: 37 | B45: Telecom | C45: BHARTIARTL | D45: 320.15 | E45: 322.57 | F45: 315.78 | G45: 311.42 | H45: 304.63 | I45: 326.93 | J45: 333.72 | K45: 338.08 | L45: 329.35 | M45: 318.2 | N45: 49548200 | O45: 0.80%
A46: 38 | B46: Capital_Goods | C46: BHEL | D46: 73.60 | E46: 73.72 | F46: 70.73 | G46: 67.87 | H46: 64.88 | I46: 76.58 | J46: 79.57 | K46: 82.43 | L46: 76.7 | M46: 70.85 | N46: 37095000 | O46: -4.90%
A47: 39 | B47: Pharma | C47: BIOCON | D47: 663.35 | E47: 671.92 | F47: 649.93 | G47: 636.52 | H47: 614.53 | I47: 685.33 | J47: 707.32 | K47: 720.73 | L47: 693.9 | M47: 658.5 | N47: 6976800 | O47: -1.60%
A48: 40 | B48: Automobile | C48: BOSCHLTD | D48: 19785.20 | E48: 19829.62 | F48: 19565.73 | G48: 19346.27 | H48: 19082.38 | I48: 20049.08 | J48: 20312.97 | K48: 20532.43 | L48: 20093.5 | M48: 19610.15 | N48: 120060 | O48: 1.57%
A49: 41 | B49: Oil_Gas | C49: BPCL | D49: 379.75 | E49: 375.18 | F49: 366.02 | G49: 352.28 | H49: 343.12 | I49: 388.92 | J49: 398.08 | K49: 411.82 | L49: 384.35 | M49: 361.45 | N49: 8015400 | O49: -0.87%
A50: 42 | B50: FMCG | C50: BRITANNIA | D50: 5755.00 | E50: 5777.60 | F50: 5697.45 | G50: 5639.90 | H50: 5559.75 | I50: 5835.15 | J50: 5915.30 | K50: 5972.85 | L50: 5857.75 | M50: 5720.05 | N50: 1367600 | O50: 0.51%
A51: 43 | B51: Pharma | C51: CADILAHC | D51: 394.55 | E51: 397.55 | F51: 388.75 | G51: 382.95 | H51: 374.15 | I51: 403.35 | J51: 412.15 | K51: 417.95 | L51: 406.35 | M51: 391.75 | N51: 10544000 | O51: -1.24%
A52: 44 | B52: Banking | C52: CANBK | D52: 232.60 | E52: 234.70 | F52: 227.90 | G52: 223.20 | H52: 216.40 | I52: 239.40 | J52: 246.20 | K52: 250.90 | L52: 241.5 | M52: 230 | N52: 8348000 | O52: 1.38%
A53: 45 | B53: Others | C53: CANFINHOME | D53: 252.50 | E53: 256.17 | F53: 246.28 | G53: 240.07 | H53: 230.18 | I53: 262.38 | J53: 272.27 | K53: 278.48 | L53: 266.05 | M53: 249.95 | N53: 5505000 | O53: -0.07%
A54: 46 | B54: Finance | C54: CAPF | D54: 507.20 | E54: 511.62 | F54: 498.58 | G54: 489.97 | H54: 476.93 | I54: 520.23 | J54: 533.27 | K54: 541.88 | L54: 524.65 | M54: 503 | N54: 5626400 | O54: 3.69%
A55: 47 | B55: Oil_Gas | C55: CASTROLIND | D55: 143.90 | E55: 144.43 | F55: 142.47 | G55: 141.03 | H55: 139.07 | I55: 145.87 | J55: 147.83 | K55: 149.27 | L55: 146.4 | M55: 143 | N55: 9427600 | O55: -0.56%
A56: 48 | B56: Automobile | C56: CEATLTD | D56: 1111.95 | E56: 1119.38 | F56: 1092.77 | G56: 1073.58 | H56: 1046.97 | I56: 1138.57 | J56: 1165.18 | K56: 1184.37 | L56: 1146 | M56: 1100.2 | N56: 1059100 | O56: 3.45%
A57: 49 | B57: Textile | C57: CENTURYTEX | D57: 808.85 | E57: 815.48 | F57: 797.47 | G57: 786.08 | H57: 768.07 | I57: 826.87 | J57: 844.88 | K57: 856.27 | L57: 833.5 | M57: 804.1 | N57: 6564800 | O57: 1.20%
A58: 50 | B58: Power | C58: CESC | D58: 864.25 | E58: 870.28 | F58: 847.57 | G58: 830.88 | H58: 808.17 | I58: 886.97 | J58: 909.68 | K58: 926.37 | L58: 893 | M58: 853.6 | N58: 5907550 | O58: -0.53%
A59: 51 | B59: Power | C59: CGPOWER | D59: 44.95 | E59: 45.18 | F59: 44.02 | G59: 43.08 | H59: 41.92 | I59: 46.12 | J59: 47.28 | K59: 48.22 | L59: 46.35 | M59: 44.25 | N59: 35016000 | O59: -1.15%
A60: 52 | B60: Others | C60: CHENNPETRO | D60: 289.40 | E60: 288.13 | F60: 273.17 | G60: 256.93 | H60: 241.97 | I60: 304.37 | J60: 319.33 | K60: 335.57 | L60: 303.1 | M60: 271.9 | N60: 1119000 | O60: 8.12%
A61: 53 | B61: Others | C61: CHOLAFIN | D61: 1201.05 | E61: 1217.55 | F61: 1175.15 | G61: 1149.25 | H61: 1106.85 | I61: 1243.45 | J61: 1285.85 | K61: 1311.75 | L61: 1259.95 | M61: 1191.65 | N61: 858500 | O61: -0.52%
A62: 54 | B62: Pharma | C62: CIPLA | D62: 654.20 | E62: 655.03 | F62: 646.57 | G62: 638.93 | H62: 630.47 | I62: 662.67 | J62: 671.13 | K62: 678.77 | L62: 663.5 | M62: 647.4 | N62: 10341000 | O62: -0.55%
A63: 55 | B63: Others | C63: COALINDIA | D63: 277.45 | E63: 276.38 | F63: 270.82 | G63: 264.18 | H63: 258.62 | I63: 283.02 | J63: 288.58 | K63: 295.22 | L63: 281.95 | M63: 269.75 | N63: 18356800 | O63: 1.88%
A64: 56 | B64: FMCG | C64: COLPAL | D64: 1089.55 | E64: 1093.35 | F64: 1080.20 | G64: 1070.85 | H64: 1057.70 | I64: 1102.70 | J64: 1115.85 | K64: 1125.20 | L64: 1106.5 | M64: 1084 | N64: 1496600 | O64: 0.56%
A65: 57 | B65: Others | C65: CONCOR | D65: 642.30 | E65: 645.03 | F65: 634.27 | G65: 626.23 | H65: 615.47 | I65: 653.07 | J65: 663.83 | K65: 671.87 | L65: 655.8 | M65: 637 | N65: 2281250 | O65: 0.61%
A66: 58 | B66: Capital_Goods | C66: CUMMINSIND | D66: 673.75 | E66: 674.10 | F66: 667.50 | G66: 661.25 | H66: 654.65 | I66: 680.35 | J66: 686.95 | K66: 693.20 | L66: 680.7 | M66: 667.85 | N66: 1176700 | O66: 1.02%
A67: 59 | B67: FMCG | C67: DABUR | D67: 426.40 | E67: 431.43 | F67: 418.47 | G67: 410.53 | H67: 397.57 | I67: 439.37 | J67: 452.33 | K67: 460.27 | L67: 444.4 | M67: 423.5 | N67: 15930000 | O67: 4.56%
A68: 60 | B68: Cement | C68: DALMIABHA | D68: 2251.65 | E68: 2269.37 | F68: 2218.88 | G68: 2186.12 | H68: 2135.63 | I68: 2302.13 | J68: 2352.62 | K68: 2385.38 | L68: 2319.85 | M68: 2236.6 | N68: 421800 | O68: 0.43%
A69: 61 | B69: Banking | C69: DCBBANK | D69: 148.25 | E69: 145.98 | F69: 142.97 | G69: 137.68 | H69: 134.67 | I69: 151.27 | J69: 154.28 | K69: 159.57 | L69: 149 | M69: 140.7 | N69: 5656500 | O69: -0.24%
A70: 62 | B70: Finance | C70: DHFL | D70: 318.45 | E70: 319.42 | F70: 303.43 | G70: 288.42 | H70: 272.43 | I70: 334.43 | J70: 350.42 | K70: 365.43 | L70: 335.4 | M70: 304.4 | N70: 14281500 | O70: -8.74%
A71: 63 | B71: Media | C71: DISHTV | D71: 57.35 | E71: 58.07 | F71: 56.43 | G71: 55.52 | H71: 53.88 | I71: 58.98 | J71: 60.62 | K71: 61.53 | L71: 59.7 | M71: 57.15 | N71: 35008000 | O71: 3.09%
A72: 64 | B72: Pharma | C72: DIVISLAB | D72: 1316.35 | E72: 1314.23 | F72: 1294.17 | G72: 1271.98 | H72: 1251.92 | I72: 1336.42 | J72: 1356.48 | K72: 1378.67 | L72: 1334.3 | M72: 1292.05 | N72: 2710400 | O72: 7.28%
A73: 65 | B73: Realty | C73: DLF | D73: 155.10 | E73: 156.68 | F73: 150.77 | G73: 146.43 | H73: 140.52 | I73: 161.02 | J73: 166.93 | K73: 171.27 | L73: 162.6 | M73: 152.35 | N73: 32420000 | O73: -0.92%
A74: 66 | B74: Pharma | C74: DRREDDY | D74: 2501.50 | E74: 2518.40 | F74: 2475.45 | G74: 2449.40 | H74: 2406.45 | I74: 2544.45 | J74: 2587.40 | K74: 2613.45 | L74: 2561.35 | M74: 2492.35 | N74: 4246750 | O74: 0.40%
A75: 67 | B75: Automobile | C75: EICHERMOT | D75: 23280.25 | E75: 23731.85 | F75: 22663.70 | G75: 22047.15 | H75: 20979.00 | I75: 24348.40 | J75: 25416.55 | K75: 26033.10 | L75: 24800 | M75: 23115.3 | N75: 276450 | O75: 11.21%
A76: 68 | B76: Infrastructure | C76: ENGINERSIN | D76: 114.25 | E76: 115.88 | F76: 111.82 | G76: 109.38 | H76: 105.32 | I76: 118.32 | J76: 122.38 | K76: 124.82 | L76: 119.95 | M76: 113.45 | N76: 10839500 | O76: 0.65%
A77: 69 | B77: Finance | C77: EQUITAS | D77: 117.00 | E77: 118.63 | F77: 114.02 | G77: 111.03 | H77: 106.42 | I77: 121.62 | J77: 126.23 | K77: 129.22 | L77: 123.25 | M77: 115.65 | N77: 15676000 | O77: 5.69%
A78: 70 | B78: Automobile | C78: ESCORTS | D78: 622.75 | E78: 625.45 | F78: 604.45 | G78: 586.15 | H78: 565.15 | I78: 643.75 | J78: 664.75 | K78: 683.05 | L78: 646.45 | M78: 607.15 | N78: 5445000 | O78: 1.23%
A79: 71 | B79: Automobile | C79: EXIDEIND | D79: 260.10 | E79: 262.92 | F79: 256.53 | G79: 252.97 | H79: 246.58 | I79: 266.48 | J79: 272.87 | K79: 276.43 | L79: 269.3 | M79: 259.35 | N79: 5112000 | O79: 2.08%
A80: 72 | B80: Banking | C80: FEDERALBNK | D80: 70.65 | E80: 71.57 | F80: 69.48 | G80: 68.32 | H80: 66.23 | I80: 72.73 | J80: 74.82 | K80: 75.98 | L80: 73.65 | M80: 70.4 | N80: 50567000 | O80: 5.57%
A81: 73 | B81: Oil_Gas | C81: GAIL | D81: 383.35 | E81: 383.12 | F81: 379.23 | G81: 375.12 | H81: 371.23 | I81: 387.23 | J81: 391.12 | K81: 395.23 | L81: 387 | M81: 379 | N81: 17804892 | O81: 3.04%
A82: 74 | B82: Pharma | C82: GLENMARK | D82: 628.85 | E82: 632.67 | F82: 620.93 | G82: 613.02 | H82: 601.28 | I82: 640.58 | J82: 652.32 | K82: 660.23 | L82: 644.4 | M82: 624.75 | N82: 3663000 | O82: 3.56%
A83: 75 | B83: Infrastructure | C83: GMRINFRA | D83: 16.65 | E83: 16.85 | F83: 16.15 | G83: 15.65 | H83: 14.95 | I83: 17.35 | J83: 18.05 | K83: 18.55 | L83: 17.55 | M83: 16.35 | N83: 196200000 | O83: 1.56%
A84: 76 | B84: Others | C84: GODFRYPHLP | D84: 740.95 | E84: 744.52 | F84: 716.53 | G84: 692.12 | H84: 664.13 | I84: 768.93 | J84: 796.92 | K84: 821.33 | L84: 772.5 | M84: 720.1 | N84: 623000 | O84: -0.89%
A85: 77 | B85: FMCG | C85: GODREJCP | D85: 769.80 | E85: 777.43 | F85: 755.47 | G85: 741.13 | H85: 719.17 | I85: 791.77 | J85: 813.73 | K85: 828.07 | L85: 799.4 | M85: 763.1 | N85: 4249200 | O85: 3.33%
A86: 78 | B86: FMCG | C86: GODREJIND | D86: 508.50 | E86: 510.47 | F86: 501.28 | G86: 494.07 | H86: 484.88 | I86: 517.68 | J86: 526.87 | K86: 534.08 | L86: 519.65 | M86: 503.25 | N86: 2070000 | O86: 1.47%
A87: 79 | B87: Pharma | C87: GRANULES | D87: 98.20 | E87: 99.13 | F87: 95.37 | G87: 92.53 | H87: 88.77 | I87: 101.97 | J87: 105.73 | K87: 108.57 | L87: 102.9 | M87: 96.3 | N87: 13975000 | O87: -1.34%
A88: 80 | B88: Cement | C88: GRASIM | D88: 973.80 | E88: 979.75 | F88: 962.45 | G88: 951.10 | H88: 933.80 | I88: 991.10 | J88: 1008.40 | K88: 1019.75 | L88: 997.05 | M88: 968.4 | N88: 3606750 | O88: 0.97%
A89: 81 | B89: Others | C89: GSFC | D89: 96.75 | E89: 97.13 | F89: 94.47 | G89: 92.18 | H89: 89.52 | I89: 99.42 | J89: 102.08 | K89: 104.37 | L89: 99.8 | M89: 94.85 | N89: 13401000 | O89: -0.47%
A90: 82 | B90: Others | C90: HAVELLS | D90: 614.15 | E90: 609.80 | F90: 594.70 | G90: 575.25 | H90: 560.15 | I90: 629.25 | J90: 644.35 | K90: 663.80 | L90: 624.9 | M90: 590.35 | N90: 4084000 | O90: -5.83%
A91: 83 | B91: Others | C91: HCC | D91: 11.55 | E91: 11.48 | F91: 10.97 | G91: 10.38 | H91: 9.87 | I91: 12.07 | J91: 12.58 | K91: 13.17 | L91: 12 | M91: 10.9 | N91: 37566000 | O91: -0.67%
A92: 84 | B92: Technology | C92: HCLTECH | D92: 1098.05 | E92: 1095.53 | F92: 1082.57 | G92: 1067.08 | H92: 1054.12 | I92: 1111.02 | J92: 1123.98 | K92: 1139.47 | L92: 1108.5 | M92: 1080.05 | N92: 7579600 | O92: -1.13%
A93: 85 | B93: Finance | C93: HDFC | D93: 1804.10 | E93: 1807.45 | F93: 1788.90 | G93: 1773.70 | H93: 1755.15 | I93: 1822.65 | J93: 1841.20 | K93: 1856.40 | L93: 1826 | M93: 1792.25 | N93: 25735000 | O93: 1.95%
A94: 86 | B94: Banking | C94: HDFCBANK | D94: 2035.80 | E94: 2037.12 | F94: 2016.78 | G94: 1997.77 | H94: 1977.43 | I94: 2056.13 | J94: 2076.47 | K94: 2095.48 | L94: 2057.45 | M94: 2018.1 | N94: 13987000 | O94: 0.96%
A95: 88 | B95: Automobile | C95: HEROMOTOCO | D95: 2929.35 | E95: 2948.93 | F95: 2895.47 | G95: 2861.58 | H95: 2808.12 | I95: 2982.82 | J95: 3036.28 | K95: 3070.17 | L95: 3002.4 | M95: 2915.05 | N95: 1330800 | O95: 4.51%
A96: 89 | B96: Technology | C96: HEXAWARE | D96: 434.90 | E96: 442.45 | F96: 424.15 | G96: 413.40 | H96: 395.10 | I96: 453.20 | J96: 471.50 | K96: 482.25 | L96: 460.75 | M96: 431.7 | N96: 4285500 | O96: -4.29%
A97: 90 | B97: Metals | C97: HINDALCO | D97: 255.30 | E97: 251.25 | F97: 244.80 | G97: 234.30 | H97: 227.85 | I97: 261.75 | J97: 268.20 | K97: 278.70 | L97: 257.7 | M97: 240.75 | N97: 41328000 | O97: 11.66%
A98: 91 | B98: Oil_Gas | C98: HINDPETRO | D98: 252.70 | E98: 250.07 | F98: 241.78 | G98: 230.87 | H98: 222.58 | I98: 260.98 | J98: 269.27 | K98: 280.18 | L98: 258.35 | M98: 239.15 | N98: 23552550 | O98: -0.03%
A99: 92 | B99: FMCG | C99: HINDUNILVR | D99: 1608.90 | E99: 1617.77 | F99: 1595.53 | G99: 1582.17 | H99: 1559.93 | I99: 1631.13 | J99: 1653.37 | K99: 1666.73 | L99: 1640 | M99: 1604.4 | N99: 9042600 | O99: 2.35%
A100: 93 | B100: Metals | C100: HINDZINC | D100: 292.35 | E100: 292.03 | F100: 286.37 | G100: 280.38 | H100: 274.72 | I100: 298.02 | J100: 303.68 | K100: 309.67 | L100: 297.7 | M100: 286.05 | N100: 7648000 | O100: 0.38%
A101: 94 | B101: Finance | C101: IBULHSGFIN | D101: 945.85 | E101: 944.78 | F101: 884.57 | G101: 823.28 | H101: 763.07 | I101: 1006.07 | J101: 1066.28 | K101: 1127.57 | L101: 1005 | M101: 883.5 | N101: 15557000 | O101: -5.66%
A102: 95 | B102: Banking | C102: ICICIBANK | D102: 305.05 | E102: 308.10 | F102: 300.60 | G102: 296.15 | H102: 288.65 | I102: 312.55 | J102: 320.05 | K102: 324.50 | L102: 315.6 | M102: 303.65 | N102: 105608250 | O102: 0.95%
A103: 96 | B103: Others | C103: ICICIPRULI | D103: 331.95 | E103: 333.97 | F103: 328.63 | G103: 325.32 | H103: 319.98 | I103: 337.28 | J103: 342.62 | K103: 345.93 | L103: 339.3 | M103: 330.65 | N103: 4669600 | O103: 1.90%
A104: 97 | B104: Banking | C104: IDBI | D104: 55.85 | E104: 55.77 | F104: 54.13 | G104: 52.42 | H104: 50.78 | I104: 57.48 | J104: 59.12 | K104: 60.83 | L104: 57.4 | M104: 54.05 | N104: 53140000 | O104: 1.88%
A105: 98 | B105: Telecom | C105: IDEA | D105: 37.00 | E105: 37.72 | F105: 36.03 | G105: 35.07 | H105: 33.38 | I105: 38.68 | J105: 40.37 | K105: 41.33 | L105: 39.4 | M105: 36.75 | N105: 153825000 | O105: 1.49%
A106: 99 | B106: Finance | C106: IDFC | D106: 40.75 | E106: 41.12 | F106: 39.83 | G106: 38.92 | H106: 37.63 | I106: 42.03 | J106: 43.32 | K106: 44.23 | L106: 42.4 | M106: 40.2 | N106: 118509600 | O106: 0.44%
A107: 100 | B107: Banking | C107: IDFCBANK | D107: 37.75 | E107: 37.92 | F107: 36.98 | G107: 36.22 | H107: 35.28 | I107: 38.68 | J107: 39.62 | K107: 40.38 | L107: 38.85 | M107: 37.15 | N107: 119064000 | O107: -0.22%
A108: 101 | B108: Finance | C108: IFCI | D108: 12.95 | E108: 12.88 | F108: 12.27 | G108: 11.58 | H108: 10.97 | I108: 13.57 | J108: 14.18 | K108: 14.87 | L108: 13.5 | M108: 12.2 | N108: 58575000 | O108: -0.72%
A109: 102 | B109: Oil_Gas | C109: IGL | D109: 242.80 | E109: 245.55 | F109: 238.40 | G109: 234.00 | H109: 226.85 | I109: 249.95 | J109: 257.10 | K109: 261.50 | L109: 252.7 | M109: 241.15 | N109: 3888500 | O109: 2.99%
A110: 103 | B110: Cement | C110: INDIACEM | D110: 99.05 | E110: 100.23 | F110: 95.92 | G110: 92.78 | H110: 88.47 | I110: 103.37 | J110: 107.68 | K110: 110.82 | L110: 104.55 | M110: 97.1 | N110: 18210500 | O110: 1.52%
A111: 104 | B111: Banking | C111: INDIANB | D111: 253.40 | E111: 252.77 | F111: 242.03 | G111: 230.67 | H111: 219.93 | I111: 264.13 | J111: 274.87 | K111: 286.23 | L111: 263.5 | M111: 241.4 | N111: 4796000 | O111: 2.74%
A112: 105 | B112: Others | C112: INDIGO | D112: 781.80 | E112: 783.02 | F112: 768.78 | G112: 755.77 | H112: 741.53 | I112: 796.03 | J112: 810.27 | K112: 823.28 | L112: 797.25 | M112: 770 | N112: 3207600 | O112: 1.17%
A113: 106 | B113: Banking | C113: INDUSINDBK | D113: 1647.50 | E113: 1643.95 | F113: 1618.55 | G113: 1589.60 | H113: 1564.20 | I113: 1672.90 | J113: 1698.30 | K113: 1727.25 | L113: 1669.35 | M113: 1615 | N113: 6890700 | O113: 6.91%
A114: 107 | B114: Technology | C114: INFIBEAM | D114: 74.50 | E114: 73.93 | F114: 68.07 | G114: 61.63 | H114: 55.77 | I114: 80.37 | J114: 86.23 | K114: 92.67 | L114: 79.8 | M114: 67.5 | N114: 18936000 | O114: 0.06%
A115: 108 | B115: Telecom | C115: INFRATEL | D115: 252.95 | E115: 256.70 | F115: 247.40 | G115: 241.85 | H115: 232.55 | I115: 262.25 | J115: 271.55 | K115: 277.10 | L115: 266 | M115: 251.15 | N115: 5475700 | O115: 10.61%
A116: 109 | B116: Technology | C116: INFY | D116: 726.10 | E116: 733.33 | F116: 716.77 | G116: 707.43 | H116: 690.87 | I116: 742.67 | J116: 759.23 | K116: 768.57 | L116: 749.9 | M116: 724 | N116: 26680800 | O116: 2.70%
A117: 110 | B117: Oil_Gas | C117: IOC | D117: 158.90 | E117: 156.93 | F117: 154.22 | G117: 149.53 | H117: 146.82 | I117: 161.62 | J117: 164.33 | K117: 169.02 | L117: 159.65 | M117: 152.25 | N117: 25074000 | O117: 0.75%
A118: 111 | B118: Infrastructure | C118: IRB | D118: 138.80 | E118: 140.72 | F118: 135.53 | G118: 132.27 | H118: 127.08 | I118: 143.98 | J118: 149.17 | K118: 152.43 | L118: 145.9 | M118: 137.45 | N118: 13227500 | O118: 2.32%
A119: 112 | B119: FMCG | C119: ITC | D119: 296.30 | E119: 297.58 | F119: 294.22 | G119: 292.13 | H119: 288.77 | I119: 299.67 | J119: 303.03 | K119: 305.12 | L119: 300.95 | M119: 295.5 | N119: 65644800 | O119: 3.02%
A120: 113 | B120: Others | C120: JETAIRWAYS | D120: 176.15 | E120: 174.25 | F120: 162.50 | G120: 148.85 | H120: 137.10 | I120: 187.90 | J120: 199.65 | K120: 213.30 | L120: 186 | M120: 160.6 | N120: 7303200 | O120: 1.79%
A121: 114 | B121: Metals | C121: JINDALSTEL | D121: 187.40 | E121: 190.60 | F121: 182.00 | G121: 176.60 | H121: 168.00 | I121: 196.00 | J121: 204.60 | K121: 210.00 | L121: 199.2 | M121: 185.2 | N121: 30044250 | O121: 5.22%
A122: 115 | B122: Others | C122: JISLJALEQS | D122: 66.65 | E122: 66.33 | F122: 63.07 | G122: 59.48 | H122: 56.22 | I122: 69.92 | J122: 73.18 | K122: 76.77 | L122: 69.6 | M122: 62.75 | N122: 36963000 | O122: -2.17%
A123: 116 | B123: Realty | C123: JPASSOCIAT | D123: 7.20 | E123: 7.15 | F123: 6.90 | G123: 6.60 | H123: 6.35 | I123: 7.45 | J123: 7.70 | K123: 8.00 | L123: 7.4 | M123: 6.85 | N123: 101762000 | O123: -6.12%
A124: 117 | B124: Metals | C124: JSWSTEEL | D124: 383.95 | E124: 384.20 | F124: 379.00 | G124: 374.05 | H124: 368.85 | I124: 389.15 | J124: 394.35 | K124: 399.30 | L124: 389.4 | M124: 379.25 | N124: 50415000 | O124: 0.15%
A125: 118 | B125: Others | C125: JUBLFOOD | D125: 1196.80 | E125: 1208.70 | F125: 1172.65 | G125: 1148.50 | H125: 1112.45 | I125: 1232.85 | J125: 1268.90 | K125: 1293.05 | L125: 1244.75 | M125: 1184.55 | N125: 3677500 | O125: 6.61%
A126: 119 | B126: Others | C126: JUSTDIAL | D126: 468.70 | E126: 471.87 | F126: 452.43 | G126: 436.17 | H126: 416.73 | I126: 488.13 | J126: 507.57 | K126: 523.83 | L126: 491.3 | M126: 455.6 | N126: 2458400 | O126: 9.34%
A127: 120 | B127: Others | C127: KAJARIACER | D127: 372.35 | E127: 376.38 | F127: 363.97 | G127: 355.58 | H127: 343.17 | I127: 384.77 | J127: 397.18 | K127: 405.57 | L127: 388.8 | M127: 368 | N127: 2540000 | O127: 2.30%
A128: 121 | B128: Banking | C128: KOTAKBANK | D128: 1102.30 | E128: 1111.57 | F128: 1080.73 | G128: 1059.17 | H128: 1028.33 | I128: 1133.13 | J128: 1163.97 | K128: 1185.53 | L128: 1142.4 | M128: 1090 | N128: 13281600 | O128: 1.90%
A129: 122 | B129: Technology | C129: KPIT | D129: 220.40 | E129: 221.13 | F129: 215.27 | G129: 210.13 | H129: 204.27 | I129: 226.27 | J129: 232.13 | K129: 237.27 | L129: 227 | M129: 216 | N129: 9832500 | O129: -0.55%
A130: 123 | B130: Others | C130: KSCL | D130: 523.60 | E130: 522.18 | F130: 478.02 | G130: 432.43 | H130: 388.27 | I130: 567.77 | J130: 611.93 | K130: 657.52 | L130: 566.35 | M130: 476.6 | N130: 849000 | O130: -0.88%
A131: 124 | B131: Banking | C131: KTKBANK | D131: 100.70 | E131: 100.82 | F131: 98.23 | G131: 95.77 | H131: 93.18 | I131: 103.28 | J131: 105.87 | K131: 108.33 | L131: 103.4 | M131: 98.35 | N131: 16312500 | O131: 2.20%
A132: 125 | B132: Finance | C132: L&TFH | D132: 128.85 | E132: 130.27 | F132: 126.73 | G132: 124.62 | H132: 121.08 | I132: 132.38 | J132: 135.92 | K132: 138.03 | L132: 133.8 | M132: 128.15 | N132: 39550500 | O132: 2.29%
A133: 126 | B133: Finance | C133: LICHSGFIN | D133: 414.15 | E133: 416.85 | F133: 408.10 | G133: 402.05 | H133: 393.30 | I133: 422.90 | J133: 431.65 | K133: 437.70 | L133: 425.6 | M133: 410.8 | N133: 10608400 | O133: -2.62%
A134: 127 | B134: Capital_Goods | C134: LT | D134: 1248.10 | E134: 1247.73 | F134: 1232.17 | G134: 1216.23 | H134: 1200.67 | I134: 1263.67 | J134: 1279.23 | K134: 1295.17 | L134: 1263.3 | M134: 1231.8 | N134: 11449500 | O134: 2.31%
A135: 128 | B135: Pharma | C135: LUPIN | D135: 900.65 | E135: 905.53 | F135: 891.62 | G135: 882.58 | H135: 868.67 | I135: 914.57 | J135: 928.48 | K135: 937.52 | L135: 919.45 | M135: 896.5 | N135: 9605400 | O135: 1.36%
A136: 129 | B136: Automobile | C136: M&M | D136: 796.35 | E136: 812.02 | F136: 776.43 | G136: 756.52 | H136: 720.93 | I136: 831.93 | J136: 867.52 | K136: 887.43 | L136: 847.6 | M136: 792.1 | N136: 15813000 | O136: 12.17%
A137: 130 | B137: Finance | C137: M&MFIN | D137: 408.35 | E137: 410.47 | F137: 403.38 | G137: 398.42 | H137: 391.33 | I137: 415.43 | J137: 422.52 | K137: 427.48 | L137: 417.55 | M137: 405.5 | N137: 11176250 | O137: 0.86%
A138: 131 | B138: Others | C138: MANAPPURAM | D138: 75.10 | E138: 75.03 | F138: 72.67 | G138: 70.23 | H138: 67.87 | I138: 77.47 | J138: 79.83 | K138: 82.27 | L138: 77.4 | M138: 72.6 | N138: 20058000 | O138: -0.80%
A139: 132 | B139: FMCG | C139: MARICO | D139: 328.75 | E139: 330.58 | F139: 325.17 | G139: 321.58 | H139: 316.17 | I139: 334.17 | J139: 339.58 | K139: 343.17 | L139: 336 | M139: 327 | N139: 8522800 | O139: 1.49%
A140: 133 | B140: Automobile | C140: MARUTI | D140: 7272.80 | E140: 7318.93 | F140: 7188.87 | G140: 7104.93 | H140: 6974.87 | I140: 7402.87 | J140: 7532.93 | K140: 7616.87 | L140: 7449 | M140: 7235 | N140: 3196200 | O140: 3.36%
A141: 134 | B141: FMCG | C141: MCDOWELL-N | D141: 504.20 | E141: 507.73 | F141: 497.27 | G141: 490.33 | H141: 479.87 | I141: 514.67 | J141: 525.13 | K141: 532.07 | L141: 518.2 | M141: 500.8 | N141: 11015000 | O141: 1.21%
A142: 135 | B142: Others | C142: MCX | D142: 713.80 | E142: 716.53 | F142: 690.72 | G142: 667.63 | H142: 641.82 | I142: 739.62 | J142: 765.43 | K142: 788.52 | L142: 742.35 | M142: 693.45 | N142: 4314800 | O142: 2.43%
A143: 136 | B143: Finance | C143: MFSL | D143: 394.55 | E143: 390.02 | F143: 377.03 | G143: 359.52 | H143: 346.53 | I143: 407.53 | J143: 420.52 | K143: 438.03 | L143: 403 | M143: 372.5 | N143: 2476800 | O143: 10.97%
A144: 137 | B144: Others | C144: MGL | D144: 810.10 | E144: 811.37 | F144: 801.73 | G144: 793.37 | H144: 783.73 | I144: 819.73 | J144: 829.37 | K144: 837.73 | L144: 821 | M144: 803 | N144: 2213400 | O144: -2.92%
A145: 138 | B145: Technology | C145: MINDTREE | D145: 1077.00 | E145: 1081.82 | F145: 1059.63 | G145: 1042.27 | H145: 1020.08 | I145: 1099.18 | J145: 1121.37 | K145: 1138.73 | L145: 1104 | M145: 1064.45 | N145: 4330800 | O145: 5.10%
A146: 139 | B146: Automobile | C146: MOTHERSUMI | D146: 244.50 | E146: 247.60 | F146: 239.25 | G146: 234.00 | H146: 225.65 | I146: 252.85 | J146: 261.20 | K146: 266.45 | L146: 255.95 | M146: 242.35 | N146: 16446400 | O146: 1.03%
A147: 140 | B147: Automobile | C147: MRF | D147: 63224.40 | E147: 63297.48 | F147: 62759.97 | G147: 62295.53 | H147: 61758.02 | I147: 63761.92 | J147: 64299.43 | K147: 64763.87 | L147: 63835 | M147: 62833.05 | N147: 28320 | O147: -1.32%
A148: 141 | B148: Others | C148: MRPL | D148: 72.15 | E148: 70.52 | F148: 64.78 | G148: 57.42 | H148: 51.68 | I148: 77.88 | J148: 83.62 | K148: 90.98 | L148: 76.25 | M148: 63.15 | N148: 5832000 | O148: 1.49%
A149: 142 | B149: Finance | C149: MUTHOOTFIN | D149: 407.95 | E149: 411.80 | F149: 401.20 | G149: 394.45 | H149: 383.85 | I149: 418.55 | J149: 429.15 | K149: 435.90 | L149: 422.4 | M149: 405.05 | N149: 2385000 | O149: 2.78%
A150: 143 | B150: Others | C150: NATIONALUM | D150: 69.45 | E150: 67.55 | F150: 64.20 | G150: 58.95 | H150: 55.60 | I150: 72.80 | J150: 76.15 | K150: 81.40 | L150: 70.9 | M150: 62.3 | N150: 50592000 | O150: 1.90%
A151: 144 | B151: Others | C151: NBCC | D151: 58.00 | E151: 58.63 | F151: 56.82 | G151: 55.63 | H151: 53.82 | I151: 59.82 | J151: 61.63 | K151: 62.82 | L151: 60.45 | M151: 57.45 | N151: 22470000 | O151: 3.34%
A152: 145 | B152: Infrastructure | C152: NCC | D152: 74.95 | E152: 74.65 | F152: 71.10 | G152: 67.25 | H152: 63.70 | I152: 78.50 | J152: 82.05 | K152: 85.90 | L152: 78.2 | M152: 70.8 | N152: 46136000 | O152: -0.71%
A153: 146 | B153: Others | C153: NESTLEIND | D153: 9390.65 | E153: 9467.68 | F153: 9295.57 | G153: 9200.48 | H153: 9028.37 | I153: 9562.77 | J153: 9734.88 | K153: 9829.97 | L153: 9639.8 | M153: 9372.6 | N153: 357600 | O153: 2.67%
A154: 147 | B154: Power | C154: NHPC | D154: 23.05 | E154: 23.13 | F154: 22.82 | G154: 22.58 | H154: 22.27 | I154: 23.37 | J154: 23.68 | K154: 23.92 | L154: 23.45 | M154: 22.9 | N154: 22140000 | O154: -2.38%
A155: 148 | B155: Technology | C155: NIITTECH | D155: 1207.50 | E155: 1205.12 | F155: 1173.33 | G155: 1139.17 | H155: 1107.38 | I155: 1239.28 | J155: 1271.07 | K155: 1305.23 | L155: 1236.9 | M155: 1170.95 | N155: 1539000 | O155: -8.31%
A156: 149 | B156: Metals | C156: NMDC | D156: 114.85 | E156: 114.77 | F156: 111.38 | G156: 107.92 | H156: 104.53 | I156: 118.23 | J156: 121.62 | K156: 125.08 | L156: 118.15 | M156: 111.3 | N156: 21378000 | O156: -1.55%
A157: 150 | B157: Power | C157: NTPC | D157: 168.05 | E157: 168.27 | F157: 166.53 | G157: 165.02 | H157: 163.28 | I157: 169.78 | J157: 171.52 | K157: 173.03 | L157: 170 | M157: 166.75 | N157: 34396000 | O157: 0.40%
A158: 151 | B158: Technology | C158: OFSS | D158: 4051.10 | E158: 4057.33 | F158: 3975.07 | G158: 3899.03 | H158: 3816.77 | I158: 4133.37 | J158: 4215.63 | K158: 4291.67 | L158: 4139.6 | M158: 3981.3 | N158: 340050 | O158: -1.22%
A159: 152 | B159: Oil_Gas | C159: OIL | D159: 221.85 | E159: 222.42 | F159: 219.73 | G159: 217.62 | H159: 214.93 | I159: 224.53 | J159: 227.22 | K159: 229.33 | L159: 225.1 | M159: 220.3 | N159: 3290232 | O159: 2.54%
A160: 153 | B160: Oil_Gas | C160: ONGC | D160: 182.15 | E160: 181.77 | F160: 179.03 | G160: 175.92 | H160: 173.18 | I160: 184.88 | J160: 187.62 | K160: 190.73 | L160: 184.5 | M160: 178.65 | N160: 45795000 | O160: 1.24%
A161: 154 | B161: Banking | C161: ORIENTBANK | D161: 65.65 | E161: 66.08 | F161: 63.37 | G161: 61.08 | H161: 58.37 | I161: 68.37 | J161: 71.08 | K161: 73.37 | L161: 68.8 | M161: 63.8 | N161: 11868000 | O161: -1.10%
A162: 155 | B162: Textile | C162: PAGEIND | D162: 32095.60 | E162: 32496.43 | F162: 31599.22 | G162: 31102.83 | H162: 30205.62 | I162: 32992.82 | J162: 33890.03 | K162: 34386.42 | L162: 33393.65 | M162: 32000.05 | N162: 133525 | O162: 4.28%
A163: 156 | B163: Others | C163: PCJEWELLER | D163: 55.95 | E163: 56.53 | F163: 54.02 | G163: 52.08 | H163: 49.57 | I163: 58.47 | J163: 60.98 | K163: 62.92 | L163: 59.05 | M163: 54.6 | N163: 9295500 | O163: 4.27%
A164: 157 | B164: Pharma | C164: PEL | D164: 2316.35 | E164: 2325.98 | F164: 2224.97 | G164: 2133.58 | H164: 2032.57 | I164: 2417.37 | J164: 2518.38 | K164: 2609.77 | L164: 2427 | M164: 2234.6 | N164: 3761410 | O164: -0.69%
A165: 158 | B165: Oil_Gas | C165: PETRONET | D165: 222.95 | E165: 223.90 | F165: 220.60 | G165: 218.25 | H165: 214.95 | I165: 226.25 | J165: 229.55 | K165: 231.90 | L165: 227.2 | M165: 221.55 | N165: 12768000 | O165: -0.26%
A166: 159 | B166: Finance | C166: PFC | D166: 80.10 | E166: 80.77 | F166: 77.63 | G166: 75.17 | H166: 72.03 | I166: 83.23 | J166: 86.37 | K166: 88.83 | L166: 83.9 | M166: 78.3 | N166: 80208000 | O166: -0.23%
A167: 160 | B167: FMCG | C167: PIDILITIND | D167: 1001.50 | E167: 1010.60 | F167: 987.75 | G167: 974.00 | H167: 951.15 | I167: 1024.35 | J167: 1047.20 | K167: 1060.95 | L167: 1033.45 | M167: 996.85 | N167: 3221000 | O167: 4.44%
A168: 161 | B168: Banking | C168: PNB | D168: 64.80 | E168: 64.87 | F168: 62.98 | G168: 61.17 | H168: 59.28 | I168: 66.68 | J168: 68.57 | K168: 70.38 | L168: 66.75 | M168: 63.05 | N168: 114565000 | O168: -0.79%
A169: 162 | B169: Power | C169: POWERGRID | D169: 190.15 | E169: 190.98 | F169: 188.67 | G169: 187.18 | H169: 184.87 | I169: 192.47 | J169: 194.78 | K169: 196.27 | L169: 193.3 | M169: 189.5 | N169: 41668000 | O169: 1.34%
A170: 163 | B170: Power | C170: PTC | D170: 72.65 | E170: 72.60 | F170: 70.30 | G170: 67.95 | H170: 65.65 | I170: 74.95 | J170: 77.25 | K170: 79.60 | L170: 74.9 | M170: 70.25 | N170: 9936000 | O170: -4.68%
A171: 164 | B171: Others | C171: PVR | D171: 1230.10 | E171: 1239.77 | F171: 1213.33 | G171: 1196.57 | H171: 1170.13 | I171: 1256.53 | J171: 1282.97 | K171: 1299.73 | L171: 1266.2 | M171: 1223 | N171: 1026400 | O171: -1.00%
A172: 165 | B172: Cement | C172: RAMCOCEM | D172: 632.70 | E172: 637.88 | F172: 621.82 | G172: 610.93 | H172: 594.87 | I172: 648.77 | J172: 664.83 | K172: 675.72 | L172: 653.95 | M172: 627 | N172: 810400 | O172: 18.34%
A173: 166 | B173: Others | C173: RAYMOND | D173: 667.95 | E173: 674.98 | F173: 656.97 | G173: 645.98 | H173: 627.97 | I173: 685.97 | J173: 703.98 | K173: 714.97 | L173: 693 | M173: 664 | N173: 4932800 | O173: 1.72%
A174: 167 | B174: Banking | C174: RBLBANK | D174: 526.10 | E174: 528.92 | F174: 519.23 | G174: 512.37 | H174: 502.68 | I174: 535.78 | J174: 545.47 | K174: 552.33 | L174: 538.6 | M174: 522.05 | N174: 4776000 | O174: -0.20%
A175: 168 | B175: Telecom | C175: RCOM | D175: 11.75 | E175: 11.87 | F175: 11.23 | G175: 10.72 | H175: 10.08 | I175: 12.38 | J175: 13.02 | K175: 13.53 | L175: 12.5 | M175: 11.35 | N175: 95060000 | O175: 0.33%
A176: 169 | B176: Power | C176: RECLTD | D176: 105.35 | E176: 105.22 | F176: 101.53 | G176: 97.72 | H176: 94.03 | I176: 109.03 | J176: 112.72 | K176: 116.53 | L176: 108.9 | M176: 101.4 | N176: 39000000 | O176: -2.56%
A177: 170 | B177: Finance | C177: RELCAPITAL | D177: 277.90 | E177: 282.62 | F177: 271.18 | G177: 264.47 | H177: 253.03 | I177: 289.33 | J177: 300.77 | K177: 307.48 | L177: 294.05 | M177: 275.9 | N177: 10773000 | O177: 10.36%
A178: 171 | B178: Oil_Gas | C178: RELIANCE | D178: 1211.85 | E178: 1221.27 | F178: 1197.48 | G178: 1183.12 | H178: 1159.33 | I178: 1235.63 | J178: 1259.42 | K178: 1273.78 | L178: 1245.05 | M178: 1206.9 | N178: 44808000 | O178: 4.23%
A179: 172 | B179: Power | C179: RELINFRA | D179: 300.90 | E179: 303.40 | F179: 288.45 | G179: 276.00 | H179: 261.05 | I179: 315.85 | J179: 330.80 | K179: 343.25 | L179: 318.35 | M179: 290.95 | N179: 8437000 | O179: -1.76%
A180: 173 | B180: Others | C180: REPCOHOME | D180: 418.10 | E180: 419.77 | F180: 407.53 | G180: 396.97 | H180: 384.73 | I180: 430.33 | J180: 442.57 | K180: 453.13 | L180: 432 | M180: 409.2 | N180: 582300 | O180: -1.22%
A181: 174 | B181: Power | C181: RPOWER | D181: 27.25 | E181: 27.30 | F181: 26.15 | G181: 25.05 | H181: 23.90 | I181: 28.40 | J181: 29.55 | K181: 30.65 | L181: 28.45 | M181: 26.2 | N181: 45279000 | O181: 0.78%
A182: 175 | B182: Metals | C182: SAIL | D182: 69.05 | E182: 69.62 | F182: 67.58 | G182: 66.12 | H182: 64.08 | I182: 71.08 | J182: 73.12 | K182: 74.58 | L182: 71.65 | M182: 68.15 | N182: 73980000 | O182: -0.32%
A183: 176 | B183: Banking | C183: SBIN | D183: 272.40 | E183: 274.58 | F183: 269.22 | G183: 266.03 | H183: 260.67 | I183: 277.77 | J183: 283.13 | K183: 286.32 | L183: 279.95 | M183: 271.4 | N183: 83733000 | O183: 2.99%
A184: 177 | B184: Cement | C184: SHREECEM | D184: 16715.25 | E184: 16727.42 | F184: 16502.83 | G184: 16290.42 | H184: 16065.83 | I184: 16939.83 | J184: 17164.42 | K184: 17376.83 | L184: 16952 | M184: 16515 | N184: 100500 | O184: 0.35%
A185: 178 | B185: Capital_Goods | C185: SIEMENS | D185: 984.75 | E185: 973.25 | F185: 951.50 | G185: 918.25 | H185: 896.50 | I185: 1006.50 | J185: 1028.25 | K185: 1061.50 | L185: 995 | M185: 940 | N185: 1315000 | O185: -9.03%
A186: 179 | B186: Banking | C186: SOUTHBANK | D186: 14.25 | E186: 14.15 | F186: 13.70 | G186: 13.15 | H186: 12.70 | I186: 14.70 | J186: 15.15 | K186: 15.70 | L186: 14.6 | M186: 13.6 | N186: 128189388 | O186: -0.15%
A187: 180 | B187: Others | C187: SREINFRA | D187: 35.55 | E187: 35.90 | F187: 34.00 | G187: 32.45 | H187: 30.55 | I187: 37.45 | J187: 39.35 | K187: 40.90 | L187: 37.8 | M187: 34.35 | N187: 15267000 | O187: -1.76%
A188: 181 | B188: Textile | C188: SRF | D188: 1763.50 | E188: 1745.62 | F188: 1696.28 | G188: 1629.07 | H188: 1579.73 | I188: 1812.83 | J188: 1862.17 | K188: 1929.38 | L188: 1794.95 | M188: 1678.4 | N188: 722000 | O188: -5.44%
A189: 182 | B189: Finance | C189: SRTRANSFIN | D189: 1083.55 | E189: 1104.25 | F189: 1041.30 | G189: 999.05 | H189: 936.10 | I189: 1146.50 | J189: 1209.45 | K189: 1251.70 | L189: 1167.2 | M189: 1062 | N189: 4866600 | O189: 1.30%
A190: 183 | B190: Pharma | C190: STAR | D190: 449.40 | E190: 450.60 | F190: 437.00 | G190: 424.60 | H190: 411.00 | I190: 463.00 | J190: 476.60 | K190: 489.00 | L190: 464.2 | M190: 438.2 | N190: 4826400 | O190: 1.51%
A191: 184 | B191: Pharma | C191: SUNPHARMA | D191: 624.55 | E191: 629.85 | F191: 617.25 | G191: 609.95 | H191: 597.35 | I191: 637.15 | J191: 649.75 | K191: 657.05 | L191: 642.45 | M191: 622.55 | N191: 31383000 | O191: 0.83%
A192: 185 | B192: Media | C192: SUNTV | D192: 629.90 | E192: 639.30 | F192: 614.60 | G192: 599.30 | H192: 574.60 | I192: 654.60 | J192: 679.30 | K192: 694.60 | L192: 664 | M192: 624 | N192: 6707000 | O192: -3.91%
A193: 186 | B193: Power | C193: SUZLON | D193: 5.95 | E193: 5.95 | F193: 5.60 | G193: 5.25 | H193: 4.90 | I193: 6.30 | J193: 6.65 | K193: 7.00 | L193: 6.3 | M193: 5.6 | N193: 313605000 | O193: -0.39%
A194: 187 | B194: Banking | C194: SYNDIBANK | D194: 32.50 | E194: 32.60 | F194: 31.20 | G194: 29.90 | H194: 28.50 | I194: 33.90 | J194: 35.30 | K194: 36.60 | L194: 34 | M194: 31.3 | N194: 25128000 | O194: 0.25%
A195: 188 | B195: Fertilisers | C195: TATACHEM | D195: 672.95 | E195: 680.55 | F195: 662.05 | G195: 651.15 | H195: 632.65 | I195: 691.45 | J195: 709.95 | K195: 720.85 | L195: 699.05 | M195: 669.65 | N195: 3081750 | O195: 4.05%
A196: 189 | B196: Telecom | C196: TATACOMM | D196: 490.20 | E196: 494.98 | F196: 481.27 | G196: 472.33 | H196: 458.62 | I196: 503.92 | J196: 517.63 | K196: 526.57 | L196: 508.7 | M196: 486.05 | N196: 3010400 | O196: 0.56%
A197: 190 | B197: Technology | C197: TATAELXSI | D197: 1190.35 | E197: 1190.75 | F197: 1163.50 | G197: 1136.65 | H197: 1109.40 | I197: 1217.60 | J197: 1244.85 | K197: 1271.70 | L197: 1218 | M197: 1163.9 | N197: 1817600 | O197: 1.20%
A198: 191 | B198: FMCG | C198: TATAGLOBAL | D198: 228.20 | E198: 230.98 | F198: 224.12 | G198: 220.03 | H198: 213.17 | I198: 235.07 | J198: 241.93 | K198: 246.02 | L198: 237.85 | M198: 226.9 | N198: 11499750 | O198: -0.18%
A199: 192 | B199: Automobile | C199: TATAMOTORS | D199: 228.50 | E199: 229.90 | F199: 225.50 | G199: 222.50 | H199: 218.10 | I199: 232.90 | J199: 237.30 | K199: 240.30 | L199: 234.3 | M199: 226.9 | N199: 75385500 | O199: 1.31%
A200: 193 | B200: Automobile | C200: TATAMTRDVR | D200: 120.95 | E200: 121.62 | F200: 119.03 | G200: 117.12 | H200: 114.53 | I200: 123.53 | J200: 126.12 | K200: 128.03 | L200: 124.2 | M200: 119.7 | N200: 31623200 | O200: -1.80%
A201: 194 | B201: Power | C201: TATAPOWER | D201: 67.90 | E201: 68.10 | F201: 66.50 | G201: 65.10 | H201: 63.50 | I201: 69.50 | J201: 71.10 | K201: 72.50 | L201: 69.7 | M201: 66.7 | N201: 43317000 | O201: 0.23%
A202: 195 | B202: Metals | C202: TATASTEEL | D202: 580.95 | E202: 585.40 | F202: 574.20 | G202: 567.45 | H202: 556.25 | I202: 592.15 | J202: 603.35 | K202: 610.10 | L202: 596.6 | M202: 578.65 | N202: 33582772 | O202: -0.79%
A203: 196 | B203: Technology | C203: TCS | D203: 2175.15 | E203: 2202.55 | F203: 2141.10 | G203: 2107.05 | H203: 2045.60 | I203: 2236.60 | J203: 2298.05 | K203: 2332.10 | L203: 2264 | M203: 2168.5 | N203: 8003500 | O203: 9.85%
A204: 197 | B204: Technology | C204: TECHM | D204: 753.75 | E204: 762.40 | F204: 739.90 | G204: 726.05 | H204: 703.55 | I204: 776.25 | J204: 798.75 | K204: 812.60 | L204: 784.9 | M204: 748.55 | N204: 14839200 | O204: 1.54%
A205: 198 | B205: FMCG | C205: TITAN | D205: 798.15 | E205: 803.83 | F205: 789.42 | G205: 780.68 | H205: 766.27 | I205: 812.57 | J205: 826.98 | K205: 835.72 | L205: 818.25 | M205: 795.1 | N205: 13983000 | O205: 2.63%
A206: 199 | B206: Pharma | C206: TORNTPHARM | D206: 1653.00 | E206: 1654.60 | F206: 1639.35 | G206: 1625.70 | H206: 1610.45 | I206: 1668.25 | J206: 1683.50 | K206: 1697.15 | L206: 1669.85 | M206: 1640.95 | N206: 582500 | O206: 2.64%
... 33 more rows

Sheet Cash Intra
M5: Back to Main Page
A6: FOR INTRA DAY TRADING | K6: =Main!B10 -> 2018-10-04
A8: Sr.no | B8: Scrip | C8: CLOSE RATE | D8: Pivot Point | E8: Supports | H8: Resistances
C9: Point | E9: S1 | F9: S2 | G9: S3 | H9: R1 | I9: R2 | J9: R3 | K9: HIGH | L9: LOW | M9: Total Trade Quanity in Lakhs
A10: 1 | B10: Nifty 50 | C10: 10858.25 | D10: 10897.02 | E10: 10804.98 | F10: 10751.72 | G10: 10659.68 | H10: 10950.28 | I10: 11042.32 | J10: 11095.58 | K10: 10989.05 | L10: 10843.75
A11: 2 | B11: Nifty Bank | C11: 25069.9 | D11: 25188.77 | E11: 24907.48 | F11: 24745.07 | G11: 24463.78 | H11: 25351.18 | I11: 25632.47 | J11: 25794.88 | K11: 25470.05 | L11: 25026.35
A12: 3 | B12: Nifty CPSE | C12: 2341 | D12: 2334.22 | E12: 2310.23 | F12: 2279.47 | G12: 2255.48 | H12: 2364.98 | I12: 2388.97 | J12: 2419.73 | K12: 2358.2 | L12: 2303.45
A13: 4 | B13: Nifty Infra | C13: 2933.45 | D13: 2940.58 | E13: 2913.92 | F13: 2894.38 | G13: 2867.72 | H13: 2960.12 | I13: 2986.78 | J13: 3006.32 | K13: 2967.25 | L13: 2921.05
A14: 5 | B14: Nifty IT | C14: 15909.8 | D14: 16020.68 | E14: 15763.37 | F14: 15616.93 | G14: 15359.62 | H14: 16167.12 | I14: 16424.43 | J14: 16570.87 | K14: 16278 | L14: 15874.25
A15: 6 | B15: Nifty PSE | C15: 3629.5 | D15: 3619.98 | E15: 3580.92 | F15: 3532.33 | G15: 3493.27 | H15: 3668.57 | I15: 3707.63 | J15: 3756.22 | K15: 3659.05 | L15: 3571.4
A16: 7 | B16: Nifty Midcap 50 | C16: 4650.45 | D16: 4673.88 | E16: 4614.62 | F16: 4578.78 | G16: 4519.52 | H16: 4709.72 | I16: 4768.98 | J16: 4804.82 | K16: 4733.15 | L16: 4638.05
A17: 8 | B17: ABB | C17: 1422.2 | D17: 1429.68 | E17: 1395.42 | F17: 1368.63 | G17: 1334.37 | H17: 1456.47 | I17: 1490.73 | J17: 1517.52 | K17: 1463.95 | L17: 1402.9 | M17: 1.2154
A18: 9 | B18: ACC | C18: 1509.7 | D18: 1523.40 | E18: 1480.80 | F18: 1451.90 | G18: 1409.30 | H18: 1552.30 | I18: 1594.90 | J18: 1623.80 | K18: 1566 | L18: 1494.5 | M18: 5.45265
A19: 10 | B19: AIAENG | C19: 1741.25 | D19: 1739.15 | E19: 1719.10 | F19: 1696.95 | G19: 1676.90 | H19: 1761.30 | I19: 1781.35 | J19: 1803.50 | K19: 1759.2 | L19: 1717 | M19: 0.35441
A20: 11 | B20: AUBANK | C20: 564.75 | D20: 561.98 | E20: 549.47 | F20: 534.18 | G20: 521.67 | H20: 577.27 | I20: 589.78 | J20: 605.07 | K20: 574.5 | L20: 546.7 | M20: 7.63903
A21: 12 | B21: ADANIENT | C21: 134.8 | D21: 135.45 | E21: 129.40 | F21: 124.00 | G21: 117.95 | H21: 140.85 | I21: 146.90 | J21: 152.30 | K21: 141.5 | L21: 130.05 | M21: 68.29117
A22: 13 | B22: ADANIPORTS | C22: 329.75 | D22: 331.38 | E22: 324.77 | F22: 319.78 | G22: 313.17 | H22: 336.37 | I22: 342.98 | J22: 347.97 | K22: 338 | L22: 326.4 | M22: 44.38442
A23: 14 | B23: ADANIPOWER | C23: 25.95 | D23: 26.13 | E23: 25.32 | F23: 24.68 | G23: 23.87 | H23: 26.77 | I23: 27.58 | J23: 28.22 | K23: 26.95 | L23: 25.5 | M23: 190.0848
A24: 15 | B24: ABFRL | C24: 182.2 | D24: 182.07 | E24: 178.33 | F24: 174.47 | G24: 170.73 | H24: 185.93 | I24: 189.67 | J24: 193.53 | K24: 185.8 | L24: 178.2 | M24: 7.59036
A25: 16 | B25: AJANTPHARM | C25: 1039.05 | D25: 1048.25 | E25: 1022.55 | F25: 1006.05 | G25: 980.35 | H25: 1064.75 | I25: 1090.45 | J25: 1106.95 | K25: 1073.95 | L25: 1031.75 | M25: 3.63464
A26: 17 | B26: ALKEM | C26: 2053.4 | D26: 2065.53 | E26: 2033.17 | F26: 2012.93 | G26: 1980.57 | H26: 2085.77 | I26: 2118.13 | J26: 2138.37 | K26: 2097.9 | L26: 2045.3 | M26: 1.22344
A27: 18 | B27: AMARAJABAT | C27: 737.5 | D27: 736.75 | E27: 726.80 | F27: 716.10 | G27: 706.15 | H27: 747.45 | I27: 757.40 | J27: 768.10 | K27: 746.7 | L27: 726.05 | M27: 5.07973
A28: 19 | B28: AMBUJACEM | C28: 213.3 | D28: 215.50 | E28: 208.80 | F28: 204.30 | G28: 197.60 | H28: 220.00 | I28: 226.70 | J28: 231.20 | K28: 222.2 | L28: 211 | M28: 44.33444
A29: 20 | B29: APOLLOHOSP | C29: 1071.3 | D29: 1067.00 | E29: 1049.30 | F29: 1027.30 | G29: 1009.60 | H29: 1089.00 | I29: 1106.70 | J29: 1128.70 | K29: 1084.7 | L29: 1045 | M29: 5.27109
A30: 21 | B30: APOLLOTYRE | C30: 206 | D30: 208.57 | E30: 202.68 | F30: 199.37 | G30: 193.48 | H30: 211.88 | I30: 217.77 | J30: 221.08 | K30: 214.45 | L30: 205.25 | M30: 36.24093
A31: 22 | B31: ARVIND | C31: 316.7 | D31: 320.88 | E31: 310.52 | F31: 304.33 | G31: 293.97 | H31: 327.07 | I31: 337.43 | J31: 343.62 | K31: 331.25 | L31: 314.7 | M31: 15.96619
A32: 23 | B32: ASHOKLEY | C32: 119.15 | D32: 119.72 | E32: 118.03 | F32: 116.92 | G32: 115.23 | H32: 120.83 | I32: 122.52 | J32: 123.63 | K32: 121.4 | L32: 118.6 | M32: 172.6279
A33: 24 | B33: ASIANPAINT | C33: 1251.75 | D33: 1255.63 | E33: 1242.27 | F33: 1232.78 | G33: 1219.42 | H33: 1265.12 | I33: 1278.48 | J33: 1287.97 | K33: 1269 | L33: 1246.15 | M33: 12.36645
A34: 25 | B34: AUROPHARMA | C34: 771.6 | D34: 775.60 | E34: 762.20 | F34: 752.80 | G34: 739.40 | H34: 785.00 | I34: 798.40 | J34: 807.80 | K34: 789 | L34: 766.2 | M34: 54.42277
A35: 26 | B35: DMART | C35: 1301.4 | D35: 1316.77 | E35: 1272.63 | F35: 1243.87 | G35: 1199.73 | H35: 1345.53 | I35: 1389.67 | J35: 1418.43 | K35: 1360.9 | L35: 1288 | M35: 5.35074
A36: 27 | B36: AXISBANK | C36: 572.25 | D36: 577.98 | E36: 563.37 | F36: 554.48 | G36: 539.87 | H36: 586.87 | I36: 601.48 | J36: 610.37 | K36: 592.6 | L36: 569.1 | M36: 183.85327
A37: 28 | B37: BAJAJ-AUTO | C37: 2731.4 | D37: 2734.43 | E37: 2698.97 | F37: 2666.53 | G37: 2631.07 | H37: 2766.87 | I37: 2802.33 | J37: 2834.77 | K37: 2769.9 | L37: 2702 | M37: 5.0458
A38: 29 | B38: BAJFINANCE | C38: 2232.2 | D38: 2242.73 | E38: 2155.52 | F38: 2078.83 | G38: 1991.62 | H38: 2319.42 | I38: 2406.63 | J38: 2483.32 | K38: 2329.95 | L38: 2166.05 | M38: 55.67701
A39: 30 | B39: BAJAJFINSV | C39: 5752.5 | D39: 5800.83 | E39: 5652.67 | F39: 5552.83 | G39: 5404.67 | H39: 5900.67 | I39: 6048.83 | J39: 6148.67 | K39: 5949 | L39: 5701 | M39: 3.1292
A40: 31 | B40: BALKRISIND | C40: 1052.8 | D40: 1057.60 | E40: 1031.20 | F40: 1009.60 | G40: 983.20 | H40: 1079.20 | I40: 1105.60 | J40: 1127.20 | K40: 1084 | L40: 1036 | M40: 8.42713
A41: 32 | B41: BANKBARODA | C41: 103.3 | D41: 104.25 | E41: 100.85 | F41: 98.40 | G41: 95.00 | H41: 106.70 | I41: 110.10 | J41: 112.55 | K41: 107.65 | L41: 101.8 | M41: 304.40427
A42: 33 | B42: BANKINDIA | C42: 80.6 | D42: 80.88 | E42: 77.82 | F42: 75.03 | G42: 71.97 | H42: 83.67 | I42: 86.73 | J42: 89.52 | K42: 83.95 | L42: 78.1 | M42: 97.19469
A43: 34 | B43: BATAINDIA | C43: 915.3 | D43: 932.12 | E43: 894.18 | F43: 873.07 | G43: 835.13 | H43: 953.23 | I43: 991.17 | J43: 1012.28 | K43: 970.05 | L43: 911 | M43: 15.47225
A44: 35 | B44: BERGEPAINT | C44: 283.5 | D44: 282.65 | E44: 278.35 | F44: 273.20 | G44: 268.90 | H44: 287.80 | I44: 292.10 | J44: 297.25 | K44: 286.95 | L44: 277.5 | M44: 6.09999
A45: 36 | B45: BEL | C45: 83.4 | D45: 83.10 | E45: 81.45 | F45: 79.50 | G45: 77.85 | H45: 85.05 | I45: 86.70 | J45: 88.65 | K45: 84.75 | L45: 81.15 | M45: 103.11235
A46: 37 | B46: BHARATFIN | C46: 1016.55 | D46: 1016.18 | E46: 998.67 | F46: 980.78 | G46: 963.27 | H46: 1034.07 | I46: 1051.58 | J46: 1069.47 | K46: 1033.7 | L46: 998.3 | M46: 10.25025
A47: 38 | B47: BHARATFORG | C47: 603.45 | D47: 607.98 | E47: 597.47 | F47: 591.48 | G47: 580.97 | H47: 613.97 | I47: 624.48 | J47: 630.47 | K47: 618.5 | L47: 602 | M47: 11.54916
A48: 39 | B48: BHEL | C48: 73.5 | D48: 73.48 | E48: 70.62 | F48: 67.73 | G48: 64.87 | H48: 76.37 | I48: 79.23 | J48: 82.12 | K48: 76.35 | L48: 70.6 | M48: 164.56814
A49: 40 | B49: BPCL | C49: 377.85 | D49: 373.00 | E49: 364.20 | F49: 350.55 | G49: 341.75 | H49: 386.65 | I49: 395.45 | J49: 409.10 | K49: 381.8 | L49: 359.35 | M49: 48.71882
A50: 41 | B50: BHARTIARTL | C50: 318.45 | D50: 320.70 | E50: 314.10 | F50: 309.75 | G50: 303.15 | H50: 325.05 | I50: 331.65 | J50: 336.00 | K50: 327.3 | L50: 316.35 | M50: 66.59938
A51: 42 | B51: INFRATEL | C51: 251.7 | D51: 256.43 | E51: 245.27 | F51: 238.83 | G51: 227.67 | H51: 262.87 | I51: 274.03 | J51: 280.47 | K51: 267.6 | L51: 250 | M51: 29.89267
A52: 43 | B52: BIOCON | C52: 660.9 | D52: 668.63 | E52: 647.27 | F52: 633.63 | G52: 612.27 | H52: 682.27 | I52: 703.63 | J52: 717.27 | K52: 690 | L52: 655 | M52: 17.78466
A53: 44 | B53: BOSCHLTD | C53: 19698.1 | D53: 19749.37 | E53: 19548.73 | F53: 19399.37 | G53: 19198.73 | H53: 19898.73 | I53: 20099.37 | J53: 20248.73 | K53: 19950 | L53: 19600 | M53: 0.1791
A54: 45 | B54: BRITANNIA | C54: 5739.4 | D54: 5758.68 | E54: 5682.72 | F54: 5626.03 | G54: 5550.07 | H54: 5815.37 | I54: 5891.33 | J54: 5948.02 | K54: 5834.65 | L54: 5702 | M54: 1.33506
A55: 46 | B55: CRISIL | C55: 1695.45 | D55: 1697.82 | E55: 1689.63 | F55: 1683.82 | G55: 1675.63 | H55: 1703.63 | I55: 1711.82 | J55: 1717.63 | K55: 1706 | L55: 1692 | M55: 0.0722
A56: 47 | B56: CADILAHC | C56: 393.8 | D56: 395.97 | E56: 387.93 | F56: 382.07 | G56: 374.03 | H56: 401.83 | I56: 409.87 | J56: 415.73 | K56: 404 | L56: 390.1 | M56: 18.31607
A57: 48 | B57: CANBK | C57: 231.8 | D57: 233.50 | E57: 227.10 | F57: 222.40 | G57: 216.00 | H57: 238.20 | I57: 244.60 | J57: 249.30 | K57: 239.9 | L57: 228.8 | M57: 84.75653
A58: 49 | B58: CASTROLIND | C58: 143.55 | D58: 143.97 | E58: 141.78 | F58: 140.02 | G58: 137.83 | H58: 145.73 | I58: 147.92 | J58: 149.68 | K58: 146.15 | L58: 142.2 | M58: 16.07092
A59: 50 | B59: CENTRALBK | C59: 40.2 | D59: 40.40 | E59: 39.45 | F59: 38.70 | G59: 37.75 | H59: 41.15 | I59: 42.10 | J59: 42.85 | K59: 41.35 | L59: 39.65 | M59: 12.02322
A60: 51 | B60: CENTURYTEX | C60: 805.2 | D60: 812.97 | E60: 792.23 | F60: 779.27 | G60: 758.53 | H60: 825.93 | I60: 846.67 | J60: 859.63 | K60: 833.7 | L60: 800 | M60: 5.09379
A61: 52 | B61: CHOLAFIN | C61: 1198.05 | D61: 1215.52 | E61: 1167.53 | F61: 1137.02 | G61: 1089.03 | H61: 1246.03 | I61: 1294.02 | J61: 1324.53 | K61: 1263.5 | L61: 1185 | M61: 6.42997
A62: 53 | B62: CIPLA | C62: 654.55 | D62: 656.17 | E62: 648.38 | F62: 642.22 | G62: 634.43 | H62: 662.33 | I62: 670.12 | J62: 676.28 | K62: 663.95 | L62: 650 | M62: 15.3399
A63: 54 | B63: COALINDIA | C63: 276.75 | D63: 275.53 | E63: 270.07 | F63: 263.38 | G63: 257.92 | H63: 282.22 | I63: 287.68 | J63: 294.37 | K63: 281 | L63: 268.85 | M63: 29.87093
A64: 55 | B64: COLPAL | C64: 1089.2 | D64: 1091.73 | E64: 1078.47 | F64: 1067.73 | G64: 1054.47 | H64: 1102.47 | I64: 1115.73 | J64: 1126.47 | K64: 1105 | L64: 1081 | M64: 1.65735
A65: 56 | B65: CONCOR | C65: 641.2 | D65: 643.10 | E65: 633.00 | F65: 624.80 | G65: 614.70 | H65: 651.30 | I65: 661.40 | J65: 669.60 | K65: 653.2 | L65: 634.9 | M65: 7.5614
A66: 57 | B66: COROMANDEL | C66: 392.45 | D66: 393.18 | E66: 389.37 | F66: 386.28 | G66: 382.47 | H66: 396.27 | I66: 400.08 | J66: 403.17 | K66: 397 | L66: 390.1 | M66: 0.4348
A67: 58 | B67: CROMPTON | C67: 211.8 | D67: 213.33 | E67: 207.72 | F67: 203.63 | G67: 198.02 | H67: 217.42 | I67: 223.03 | J67: 227.12 | K67: 218.95 | L67: 209.25 | M67: 21.8556
A68: 59 | B68: CUMMINSIND | C68: 669.8 | D68: 670.75 | E68: 663.80 | F68: 657.80 | G68: 650.85 | H68: 676.75 | I68: 683.70 | J68: 689.70 | K68: 677.7 | L68: 664.75 | M68: 5.68871
A69: 60 | B69: DLF | C69: 154.8 | D69: 156.08 | E69: 150.42 | F69: 146.03 | G69: 140.37 | H69: 160.47 | I69: 166.13 | J69: 170.52 | K69: 161.75 | L69: 151.7 | M69: 197.84307
A70: 61 | B70: DABUR | C70: 425.3 | D70: 429.80 | E70: 417.10 | F70: 408.90 | G70: 396.20 | H70: 438.00 | I70: 450.70 | J70: 458.90 | K70: 442.5 | L70: 421.6 | M70: 22.73144
A71: 62 | B71: DALMIABHA | C71: 2252.65 | D71: 2278.70 | E71: 2209.45 | F71: 2166.25 | G71: 2097.00 | H71: 2321.90 | I71: 2391.15 | J71: 2434.35 | K71: 2347.95 | L71: 2235.5 | M71: 0.62059
A72: 63 | B72: DHFL | C72: 317.65 | D72: 318.47 | E72: 303.23 | F72: 288.82 | G72: 273.58 | H72: 332.88 | I72: 348.12 | J72: 362.53 | K72: 333.7 | L72: 304.05 | M72: 296.58538
A73: 64 | B73: DISHTV | C73: 57.1 | D73: 57.80 | E73: 56.10 | F73: 55.10 | G73: 53.40 | H73: 58.80 | I73: 60.50 | J73: 61.50 | K73: 59.5 | L73: 56.8 | M73: 37.82741
A74: 65 | B74: DIVISLAB | C74: 1309.15 | D74: 1306.18 | E74: 1286.47 | F74: 1263.78 | G74: 1244.07 | H74: 1328.87 | I74: 1348.58 | J74: 1371.27 | K74: 1325.9 | L74: 1283.5 | M74: 9.37244
A75: 66 | B75: LALPATHLAB | C75: 958.55 | D75: 951.87 | E75: 928.73 | F75: 898.92 | G75: 875.78 | H75: 981.68 | I75: 1004.82 | J75: 1034.63 | K75: 975 | L75: 922.05 | M75: 1.00823
A76: 67 | B76: DRREDDY | C76: 2489.55 | D76: 2506.85 | E76: 2464.70 | F76: 2439.85 | G76: 2397.70 | H76: 2531.70 | I76: 2573.85 | J76: 2598.70 | K76: 2549 | L76: 2482 | M76: 7.05888
A77: 68 | B77: EDELWEISS | C77: 192.65 | D77: 192.42 | E77: 182.23 | F77: 171.82 | G77: 161.63 | H77: 202.83 | I77: 213.02 | J77: 223.43 | K77: 202.6 | L77: 182 | M77: 65.3767
A78: 69 | B78: EICHERMOT | C78: 23235.75 | D78: 23678.58 | E78: 22607.17 | F78: 21978.58 | G78: 20907.17 | H78: 24307.17 | I78: 25378.58 | J78: 26007.17 | K78: 24750 | L78: 23050 | M78: 2.46747
A79: 70 | B79: EMAMILTD | C79: 494.8 | D79: 500.25 | E79: 485.55 | F79: 476.30 | G79: 461.60 | H79: 509.50 | I79: 524.20 | J79: 533.45 | K79: 514.95 | L79: 491 | M79: 1.99301
A80: 71 | B80: ENDURANCE | C80: 1307.45 | D80: 1320.82 | E80: 1291.63 | F80: 1275.82 | G80: 1246.63 | H80: 1336.63 | I80: 1365.82 | J80: 1381.63 | K80: 1350 | L80: 1305 | M80: 0.66774
A81: 72 | B81: ENGINERSIN | C81: 114 | D81: 115.50 | E81: 111.50 | F81: 109.00 | G81: 105.00 | H81: 118.00 | I81: 122.00 | J81: 124.50 | K81: 119.5 | L81: 113 | M81: 43.1497
A82: 73 | B82: EXIDEIND | C82: 259.05 | D82: 261.77 | E82: 254.93 | F82: 250.82 | G82: 243.98 | H82: 265.88 | I82: 272.72 | J82: 276.83 | K82: 268.6 | L82: 257.65 | M82: 12.04106
A83: 74 | B83: FEDERALBNK | C83: 70.2 | D83: 71.17 | E83: 69.03 | F83: 67.87 | G83: 65.73 | H83: 72.33 | I83: 74.47 | J83: 75.63 | K83: 73.3 | L83: 70 | M83: 101.76791
A84: 75 | B84: GAIL | C84: 381.75 | D84: 382.17 | E84: 378.63 | F84: 375.52 | G84: 371.98 | H84: 385.28 | I84: 388.82 | J84: 391.93 | K84: 385.7 | L84: 379.05 | M84: 39.03687
A85: 76 | B85: GMRINFRA | C85: 16.7 | D85: 16.85 | E85: 16.15 | F85: 15.60 | G85: 14.90 | H85: 17.40 | I85: 18.10 | J85: 18.65 | K85: 17.55 | L85: 16.3 | M85: 356.90004
A86: 77 | B86: GSKCONS | C86: 6722.8 | D86: 6817.27 | E86: 6560.53 | F86: 6398.27 | G86: 6141.53 | H86: 6979.53 | I86: 7236.27 | J86: 7398.53 | K86: 7074 | L86: 6655 | M86: 0.19871
A87: 78 | B87: GLAXO | C87: 1463.2 | D87: 1457.67 | E87: 1440.53 | F87: 1417.87 | G87: 1400.73 | H87: 1480.33 | I87: 1497.47 | J87: 1520.13 | K87: 1474.8 | L87: 1435 | M87: 0.10811
A88: 79 | B88: GLENMARK | C88: 625.65 | D88: 629.75 | E88: 617.50 | F88: 609.35 | G88: 597.10 | H88: 637.90 | I88: 650.15 | J88: 658.30 | K88: 642 | L88: 621.6 | M88: 6.7656
A89: 80 | B89: GODREJCP | C89: 765.45 | D89: 775.97 | E89: 749.48 | F89: 733.52 | G89: 707.03 | H89: 791.93 | I89: 818.42 | J89: 834.38 | K89: 802.45 | L89: 760 | M89: 9.30245
A90: 81 | B90: GODREJIND | C90: 506.65 | D90: 508.70 | E90: 499.40 | F90: 492.15 | G90: 482.85 | H90: 515.95 | I90: 525.25 | J90: 532.50 | K90: 518 | L90: 501.45 | M90: 3.17847
A91: 82 | B91: GRUH | C91: 281.4 | D91: 283.72 | E91: 272.68 | F91: 263.97 | G91: 252.93 | H91: 292.43 | I91: 303.47 | J91: 312.18 | K91: 294.75 | L91: 275 | M91: 5.53908
A92: 83 | B92: GPPL | C92: 103.7 | D92: 103.98 | E92: 99.77 | F92: 95.83 | G92: 91.62 | H92: 107.92 | I92: 112.13 | J92: 116.07 | K92: 108.2 | L92: 100.05 | M92: 1.10056
A93: 84 | B93: GSPL | C93: 181.95 | D93: 180.98 | E93: 179.07 | F93: 176.18 | G93: 174.27 | H93: 183.87 | I93: 185.78 | J93: 188.67 | K93: 182.9 | L93: 178.1 | M93: 5.36607
A94: 85 | B94: HCLTECH | C94: 1091.3 | D94: 1088.93 | E94: 1076.17 | F94: 1061.03 | G94: 1048.27 | H94: 1104.07 | I94: 1116.83 | J94: 1131.97 | K94: 1101.7 | L94: 1073.8 | M94: 23.6536
A95: 86 | B95: HDFCBANK | C95: 2031.15 | D95: 2030.12 | E95: 2008.03 | F95: 1984.92 | G95: 1962.83 | H95: 2053.23 | I95: 2075.32 | J95: 2098.43 | K95: 2052.2 | L95: 2007 | M95: 38.33037
A96: 87 | B96: HAVELLS | C96: 612.9 | D96: 607.48 | E96: 591.97 | F96: 571.03 | G96: 555.52 | H96: 628.42 | I96: 643.93 | J96: 664.87 | K96: 623 | L96: 586.55 | M96: 26.49695
A97: 88 | B97: HEROMOTOCO | C97: 2913.5 | D97: 2936.17 | E97: 2877.33 | F97: 2841.17 | G97: 2782.33 | H97: 2972.33 | I97: 3031.17 | J97: 3067.33 | K97: 2995 | L97: 2900 | M97: 5.03936
A98: 89 | B98: HEXAWARE | C98: 433.9 | D98: 441.12 | E98: 422.83 | F98: 411.77 | G98: 393.48 | H98: 452.18 | I98: 470.47 | J98: 481.53 | K98: 459.4 | L98: 430.05 | M98: 22.03202
A99: 90 | B99: HINDALCO | C99: 253.75 | D99: 249.77 | E99: 243.28 | F99: 232.82 | G99: 226.33 | H99: 260.23 | I99: 266.72 | J99: 277.18 | K99: 256.25 | L99: 239.3 | M99: 165.41649
A100: 91 | B100: HINDPETRO | C100: 251.15 | D100: 248.63 | E100: 240.32 | F100: 229.48 | G100: 221.17 | H100: 259.47 | I100: 267.78 | J100: 278.62 | K100: 256.95 | L100: 237.8 | M100: 70.52862
A101: 92 | B101: HINDUNILVR | C101: 1618.85 | D101: 1622.52 | E101: 1602.98 | F101: 1587.12 | G101: 1567.58 | H101: 1638.38 | I101: 1657.92 | J101: 1673.78 | K101: 1642.05 | L101: 1606.65 | M101: 12.13562
A102: 93 | B102: HINDZINC | C102: 294.3 | D102: 293.42 | E102: 288.18 | F102: 282.07 | G102: 276.83 | H102: 299.53 | I102: 304.77 | J102: 310.88 | K102: 298.65 | L102: 287.3 | M102: 6.90856
A103: 94 | B103: HUDCO | C103: 44.35 | D103: 44.40 | E103: 43.45 | F103: 42.55 | G103: 41.60 | H103: 45.30 | I103: 46.25 | J103: 47.15 | K103: 45.35 | L103: 43.5 | M103: 21.27574
A104: 95 | B104: HDFC | C104: 1797.55 | D104: 1800.88 | E104: 1782.32 | F104: 1767.08 | G104: 1748.52 | H104: 1816.12 | I104: 1834.68 | J104: 1849.92 | K104: 1819.45 | L104: 1785.65 | M104: 38.08517
A105: 96 | B105: ITC | C105: 295.2 | D105: 296.62 | E105: 293.23 | F105: 291.27 | G105: 287.88 | H105: 298.58 | I105: 301.97 | J105: 303.93 | K105: 300 | L105: 294.65 | M105: 75.7016
A106: 97 | B106: ICICIBANK | C106: 303.7 | D106: 306.88 | E106: 299.27 | F106: 294.83 | G106: 287.22 | H106: 311.32 | I106: 318.93 | J106: 323.37 | K106: 314.5 | L106: 302.45 | M106: 191.05555
A107: 98 | B107: ICICIPRULI | C107: 330.35 | D107: 331.98 | E107: 326.92 | F107: 323.48 | G107: 318.42 | H107: 335.42 | I107: 340.48 | J107: 343.92 | K107: 337.05 | L107: 328.55 | M107: 8.80648
A108: 99 | B108: IDBI | C108: 55.65 | D108: 55.45 | E108: 53.80 | F108: 51.95 | G108: 50.30 | H108: 57.30 | I108: 58.95 | J108: 60.80 | K108: 57.1 | L108: 53.6 | M108: 140.51084
A109: 100 | B109: IDFCBANK | C109: 37.5 | D109: 37.70 | E109: 36.75 | F109: 36.00 | G109: 35.05 | H109: 38.45 | I109: 39.40 | J109: 40.15 | K109: 38.65 | L109: 36.95 | M109: 96.21471
A110: 101 | B110: IDFC | C110: 40.65 | D110: 41.02 | E110: 39.78 | F110: 38.92 | G110: 37.68 | H110: 41.88 | I110: 43.12 | J110: 43.98 | K110: 42.25 | L110: 40.15 | M110: 46.84249
A111: 102 | B111: IRB | C111: 138.15 | D111: 139.85 | E111: 134.85 | F111: 131.55 | G111: 126.55 | H111: 143.15 | I111: 148.15 | J111: 151.45 | K111: 144.85 | L111: 136.55 | M111: 32.45739
A112: 103 | B112: IDEA | C112: 36.7 | D112: 37.47 | E112: 35.73 | F112: 34.77 | G112: 33.03 | H112: 38.43 | I112: 40.17 | J112: 41.13 | K112: 39.2 | L112: 36.5 | M112: 306.90251
A113: 104 | B113: IBULHSGFIN | C113: 943.95 | D113: 942.78 | E113: 881.67 | F113: 819.38 | G113: 758.27 | H113: 1005.07 | I113: 1066.18 | J113: 1128.47 | K113: 1003.9 | L113: 880.5 | M113: 125.95878
A114: 105 | B114: INDIANB | C114: 252.05 | D114: 251.53 | E114: 241.07 | F114: 230.08 | G114: 219.62 | H114: 262.52 | I114: 272.98 | J114: 283.97 | K114: 262 | L114: 240.55 | M114: 23.58346
A115: 106 | B115: INDHOTEL | C115: 124.65 | D115: 125.72 | E115: 122.93 | F115: 121.22 | G115: 118.43 | H115: 127.43 | I115: 130.22 | J115: 131.93 | K115: 128.5 | L115: 124 | M115: 10.82224
A116: 107 | B116: IOC | C116: 158.4 | D116: 156.20 | E116: 153.30 | F116: 148.20 | G116: 145.30 | H116: 161.30 | I116: 164.20 | J116: 169.30 | K116: 159.1 | L116: 151.1 | M116: 81.51662
A117: 108 | B117: IGL | C117: 241.2 | D117: 244.10 | E117: 236.70 | F117: 232.20 | G117: 224.80 | H117: 248.60 | I117: 256.00 | J117: 260.50 | K117: 251.5 | L117: 239.6 | M117: 18.98472
A118: 109 | B118: INDUSINDBK | C118: 1638.7 | D118: 1634.63 | E118: 1610.07 | F118: 1581.43 | G118: 1556.87 | H118: 1663.27 | I118: 1687.83 | J118: 1716.47 | K118: 1659.2 | L118: 1606 | M118: 51.12718
A119: 110 | B119: NAUKRI | C119: 1392.95 | D119: 1399.32 | E119: 1358.63 | F119: 1324.32 | G119: 1283.63 | H119: 1433.63 | I119: 1474.32 | J119: 1508.63 | K119: 1440 | L119: 1365 | M119: 0.41967
A120: 111 | B120: INFY | C120: 728.5 | D120: 735.58 | E120: 719.22 | F120: 709.93 | G120: 693.57 | H120: 744.87 | I120: 761.23 | J120: 770.52 | K120: 751.95 | L120: 726.3 | M120: 77.92464
A121: 112 | B121: INDIGO | C121: 778.3 | D121: 782.10 | E121: 768.20 | F121: 758.10 | G121: 744.20 | H121: 792.20 | I121: 806.10 | J121: 816.20 | K121: 796 | L121: 772 | M121: 17.38525
A122: 113 | B122: IPCALAB | C122: 655.1 | D122: 660.03 | E122: 645.07 | F122: 635.03 | G122: 620.07 | H122: 670.07 | I122: 685.03 | J122: 695.07 | K122: 675 | L122: 650 | M122: 0.50041
A123: 114 | B123: JSWENERGY | C123: 63.2 | D123: 62.32 | E123: 60.93 | F123: 58.67 | G123: 57.28 | H123: 64.58 | I123: 65.97 | J123: 68.23 | K123: 63.7 | L123: 60.05 | M123: 10.42021
A124: 115 | B124: JSWSTEEL | C124: 383.4 | D124: 382.52 | E124: 377.53 | F124: 371.67 | G124: 366.68 | H124: 388.38 | I124: 393.37 | J124: 399.23 | K124: 387.5 | L124: 376.65 | M124: 74.36585
A125: 116 | B125: JINDALSTEL | C125: 186.55 | D125: 189.65 | E125: 181.50 | F125: 176.45 | G125: 168.30 | H125: 194.70 | I125: 202.85 | J125: 207.90 | K125: 197.8 | L125: 184.6 | M125: 134.39885
A126: 117 | B126: JUBLFOOD | C126: 1192.1 | D126: 1204.40 | E126: 1167.80 | F126: 1143.50 | G126: 1106.90 | H126: 1228.70 | I126: 1265.30 | J126: 1289.60 | K126: 1241 | L126: 1180.1 | M126: 12.86107
A127: 118 | B127: JUBILANT | C127: 696.1 | D127: 701.42 | E127: 687.53 | F127: 678.97 | G127: 665.08 | H127: 709.98 | I127: 723.87 | J127: 732.43 | K127: 715.3 | L127: 692.85 | M127: 2.25339
A128: 119 | B128: KARURVYSYA | C128: 79.8 | D128: 79.73 | E128: 78.52 | F128: 77.23 | G128: 76.02 | H128: 81.02 | I128: 82.23 | J128: 83.52 | K128: 80.95 | L128: 78.45 | M128: 17.82958
A129: 120 | B129: KOTAKBANK | C129: 1098.25 | D129: 1107.63 | E129: 1076.72 | F129: 1055.18 | G129: 1024.27 | H129: 1129.17 | I129: 1160.08 | J129: 1181.62 | K129: 1138.55 | L129: 1086.1 | M129: 29.61974
A130: 121 | B130: L&TFH | C130: 128.15 | D130: 129.48 | E130: 126.17 | F130: 124.18 | G130: 120.87 | H130: 131.47 | I130: 134.78 | J130: 136.77 | K130: 132.8 | L130: 127.5 | M130: 154.90764
A131: 122 | B131: LICHSGFIN | C131: 412.05 | D131: 414.67 | E131: 406.38 | F131: 400.72 | G131: 392.43 | H131: 420.33 | I131: 428.62 | J131: 434.28 | K131: 422.95 | L131: 409 | M131: 17.00257
A132: 123 | B132: LT | C132: 1245.45 | D132: 1244.70 | E132: 1227.40 | F132: 1209.35 | G132: 1192.05 | H132: 1262.75 | I132: 1280.05 | J132: 1298.10 | K132: 1262 | L132: 1226.65 | M132: 43.02314
A133: 124 | B133: LUPIN | C133: 898.05 | D133: 901.50 | E133: 889.10 | F133: 880.15 | G133: 867.75 | H133: 910.45 | I133: 922.85 | J133: 931.80 | K133: 913.9 | L133: 892.55 | M133: 20.85452
A134: 125 | B134: MRF | C134: 63138.8 | D134: 63115.95 | E134: 62577.90 | F134: 62017.00 | G134: 61478.95 | H134: 63676.85 | I134: 64214.90 | J134: 64775.80 | K134: 63654 | L134: 62555.05 | M134: 0.10722
A135: 126 | B135: MGL | C135: 809.7 | D135: 809.78 | E135: 801.92 | F135: 794.13 | G135: 786.27 | H135: 817.57 | I135: 825.43 | J135: 833.22 | K135: 817.65 | L135: 802 | M135: 2.79991
A136: 127 | B136: M&MFIN | C136: 406.2 | D136: 408.28 | E136: 401.57 | F136: 396.93 | G136: 390.22 | H136: 412.92 | I136: 419.63 | J136: 424.27 | K136: 415 | L136: 403.65 | M136: 13.09812
A137: 128 | B137: M&M | C137: 791.6 | D137: 808.03 | E137: 770.57 | F137: 749.53 | G137: 712.07 | H137: 829.07 | I137: 866.53 | J137: 887.57 | K137: 845.5 | L137: 787 | M137: 66.80994
A138: 129 | B138: MANAPPURAM | C138: 74.95 | D138: 74.77 | E138: 72.48 | F138: 70.02 | G138: 67.73 | H138: 77.23 | I138: 79.52 | J138: 81.98 | K138: 77.05 | L138: 72.3 | M138: 32.901
A139: 130 | B139: MRPL | C139: 71.85 | D139: 70.68 | E139: 65.37 | F139: 58.88 | G139: 53.57 | H139: 77.17 | I139: 82.48 | J139: 88.97 | K139: 76 | L139: 64.2 | M139: 99.33048
A140: 131 | B140: MARICO | C140: 327.2 | D140: 328.93 | E140: 323.47 | F140: 319.73 | G140: 314.27 | H140: 332.67 | I140: 338.13 | J140: 341.87 | K140: 334.4 | L140: 325.2 | M140: 11.72993
A141: 132 | B141: MARUTI | C141: 7246 | D141: 7289.23 | E141: 7167.77 | F141: 7089.53 | G141: 6968.07 | H141: 7367.47 | I141: 7488.93 | J141: 7567.17 | K141: 7410.7 | L141: 7211 | M141: 11.48091
A142: 133 | B142: MFSL | C142: 392.65 | D142: 389.68 | E142: 373.52 | F142: 354.38 | G142: 338.22 | H142: 408.82 | I142: 424.98 | J142: 444.12 | K142: 405.85 | L142: 370.55 | M142: 27.32381
A143: 134 | B143: MINDTREE | C143: 1073.35 | D143: 1077.45 | E143: 1055.90 | F143: 1038.45 | G143: 1016.90 | H143: 1094.90 | I143: 1116.45 | J143: 1133.90 | K143: 1099 | L143: 1060 | M143: 13.14309
A144: 135 | B144: MOTHERSUMI | C144: 242.85 | D144: 245.93 | E144: 237.67 | F144: 232.48 | G144: 224.22 | H144: 251.12 | I144: 259.38 | J144: 264.57 | K144: 254.2 | L144: 240.75 | M144: 45.58267
A145: 136 | B145: MPHASIS | C145: 1159.4 | D145: 1166.80 | E145: 1150.60 | F145: 1141.80 | G145: 1125.60 | H145: 1175.60 | I145: 1191.80 | J145: 1200.60 | K145: 1183 | L145: 1158 | M145: 7.0791
A146: 137 | B146: MUTHOOTFIN | C146: 407.1 | D146: 411.07 | E146: 399.43 | F146: 391.77 | G146: 380.13 | H146: 418.73 | I146: 430.37 | J146: 438.03 | K146: 422.7 | L146: 403.4 | M146: 11.76176
A147: 138 | B147: NATCOPHARM | C147: 752.95 | D147: 753.37 | E147: 747.58 | F147: 742.22 | G147: 736.43 | H147: 758.73 | I147: 764.52 | J147: 769.88 | K147: 759.15 | L147: 748 | M147: 2.36025
A148: 139 | B148: NBCC | C148: 57.6 | D148: 58.30 | E148: 56.50 | F148: 55.40 | G148: 53.60 | H148: 59.40 | I148: 61.20 | J148: 62.30 | K148: 60.1 | L148: 57.2 | M148: 56.50894
A149: 140 | B149: NHPC | C149: 23 | D149: 23.05 | E149: 22.75 | F149: 22.50 | G149: 22.20 | H149: 23.30 | I149: 23.60 | J149: 23.85 | K149: 23.35 | L149: 22.8 | M149: 27.63357
A150: 141 | B150: NMDC | C150: 114.6 | D150: 114.20 | E150: 110.90 | F150: 107.20 | G150: 103.90 | H150: 117.90 | I150: 121.20 | J150: 124.90 | K150: 117.5 | L150: 110.5 | M150: 32.22722
A151: 142 | B151: NTPC | C151: 167.35 | D151: 167.43 | E151: 166.02 | F151: 164.68 | G151: 163.27 | H151: 168.77 | I151: 170.18 | J151: 171.52 | K151: 168.85 | L151: 166.1 | M151: 48.16772
A152: 143 | B152: NATIONALUM | C152: 69 | D152: 67.18 | E152: 63.92 | F152: 58.83 | G152: 55.57 | H152: 72.27 | I152: 75.53 | J152: 80.62 | K152: 70.45 | L152: 62.1 | M152: 291.31722
A153: 144 | B153: OBEROIRLTY | C153: 399.95 | D153: 399.03 | E153: 389.97 | F153: 379.98 | G153: 370.92 | H153: 409.02 | I153: 418.08 | J153: 428.07 | K153: 408.1 | L153: 389.05 | M153: 18.56871
A154: 145 | B154: ONGC | C154: 181.45 | D154: 180.95 | E154: 178.40 | F154: 175.35 | G154: 172.80 | H154: 184.00 | I154: 186.55 | J154: 189.60 | K154: 183.5 | L154: 177.9 | M154: 88.93914
A155: 146 | B155: OIL | C155: 220.45 | D155: 221.10 | E155: 218.20 | F155: 215.95 | G155: 213.05 | H155: 223.35 | I155: 226.25 | J155: 228.50 | K155: 224 | L155: 218.85 | M155: 8.10599
A156: 147 | B156: OFSS | C156: 4043.95 | D156: 4044.35 | E156: 3970.70 | F156: 3897.45 | G156: 3823.80 | H156: 4117.60 | I156: 4191.25 | J156: 4264.50 | K156: 4118 | L156: 3971.1 | M156: 0.28502
A157: 148 | B157: PCJEWELLER | C157: 55.55 | D157: 56.13 | E157: 53.52 | F157: 51.48 | G157: 48.87 | H157: 58.17 | I157: 60.78 | J157: 62.82 | K157: 58.75 | L157: 54.1 | M157: 151.61305
A158: 149 | B158: PIIND | C158: 710.2 | D158: 713.97 | E158: 695.23 | F158: 680.27 | G158: 661.53 | H158: 728.93 | I158: 747.67 | J158: 762.63 | K158: 732.7 | L158: 699 | M158: 0.83033
A159: 150 | B159: PNBHOUSING | C159: 907.1 | D159: 919.02 | E159: 883.08 | F159: 859.07 | G159: 823.13 | H159: 943.03 | I159: 978.97 | J159: 1002.98 | K159: 954.95 | L159: 895 | M159: 3.81743
A160: 151 | B160: PAGEIND | C160: 32483.1 | D160: 32809.37 | E160: 31935.78 | F160: 31388.47 | G160: 30514.88 | H160: 33356.68 | I160: 34230.27 | J160: 34777.58 | K160: 33682.95 | L160: 32262.05 | M160: 0.38784
A161: 152 | B161: PETRONET | C161: 221.7 | D161: 222.62 | E161: 219.23 | F161: 216.77 | G161: 213.38 | H161: 225.08 | I161: 228.47 | J161: 230.93 | K161: 226 | L161: 220.15 | M161: 24.69045
A162: 153 | B162: PIDILITIND | C162: 995.85 | D162: 1010.37 | E162: 976.03 | F162: 956.22 | G162: 921.88 | H162: 1030.18 | I162: 1064.52 | J162: 1084.33 | K162: 1044.7 | L162: 990.55 | M162: 9.63062
A163: 154 | B163: PEL | C163: 2307.45 | D163: 2317.53 | E163: 2216.32 | F163: 2125.18 | G163: 2023.97 | H163: 2408.67 | I163: 2509.88 | J163: 2601.02 | K163: 2418.75 | L163: 2226.4 | M163: 7.4909
A164: 155 | B164: PFC | C164: 79.75 | D164: 80.35 | E164: 77.40 | F164: 75.05 | G164: 72.10 | H164: 82.70 | I164: 85.65 | J164: 88.00 | K164: 83.3 | L164: 78 | M164: 77.63671
A165: 156 | B165: POWERGRID | C165: 188.95 | D165: 189.87 | E165: 187.43 | F165: 185.92 | G165: 183.48 | H165: 191.38 | I165: 193.82 | J165: 195.33 | K165: 192.3 | L165: 188.35 | M165: 58.21641
A166: 157 | B166: PRESTIGE | C166: 210.1 | D166: 210.45 | E166: 206.75 | F166: 203.40 | G166: 199.70 | H166: 213.80 | I166: 217.50 | J166: 220.85 | K166: 214.15 | L166: 207.1 | M166: 0.66166
A167: 158 | B167: PGHH | C167: 9459.55 | D167: 9501.68 | E167: 9358.87 | F167: 9258.18 | G167: 9115.37 | H167: 9602.37 | I167: 9745.18 | J167: 9845.87 | K167: 9644.5 | L167: 9401 | M167: 0.04027
A168: 159 | B168: PNB | C168: 64.65 | D168: 64.57 | E168: 62.78 | F168: 60.92 | G168: 59.13 | H168: 66.43 | I168: 68.22 | J168: 70.08 | K168: 66.35 | L168: 62.7 | M168: 422.3167
A169: 160 | B169: RBLBANK | C169: 526.15 | D169: 527.92 | E169: 517.43 | F169: 508.72 | G169: 498.23 | H169: 536.63 | I169: 547.12 | J169: 555.83 | K169: 538.4 | L169: 519.2 | M169: 15.24905
A170: 161 | B170: RAJESHEXPO | C170: 661.6 | D170: 659.38 | E170: 648.82 | F170: 636.03 | G170: 625.47 | H170: 672.17 | I170: 682.73 | J170: 695.52 | K170: 669.95 | L170: 646.6 | M170: 4.86221
A171: 162 | B171: RELCAPITAL | C171: 277.1 | D171: 281.40 | E171: 270.50 | F171: 263.90 | G171: 253.00 | H171: 288.00 | I171: 298.90 | J171: 305.50 | K171: 292.3 | L171: 274.8 | M171: 88.58604
A172: 163 | B172: RCOM | C172: 11.8 | D172: 11.85 | E172: 11.25 | F172: 10.70 | G172: 10.10 | H172: 12.40 | I172: 13.00 | J172: 13.55 | K172: 12.45 | L172: 11.3 | M172: 737.88111
A173: 164 | B173: RELIANCE | C173: 1205.1 | D173: 1214.92 | E173: 1190.23 | F173: 1175.37 | G173: 1150.68 | H173: 1229.78 | I173: 1254.47 | J173: 1269.33 | K173: 1239.6 | L173: 1200.05 | M173: 73.76575
A174: 165 | B174: RELINFRA | C174: 301.75 | D174: 302.90 | E174: 288.40 | F174: 275.05 | G174: 260.55 | H174: 316.25 | I174: 330.75 | J174: 344.10 | K174: 317.4 | L174: 289.55 | M174: 57.46629
A175: 166 | B175: RPOWER | C175: 27.05 | D175: 27.13 | E175: 26.02 | F175: 24.98 | G175: 23.87 | H175: 28.17 | I175: 29.28 | J175: 30.32 | K175: 28.25 | L175: 26.1 | M175: 85.84137
A176: 167 | B176: RECLTD | C176: 105.25 | D176: 104.92 | E176: 101.33 | F176: 97.42 | G176: 93.83 | H176: 108.83 | I176: 112.42 | J176: 116.33 | K176: 108.5 | L176: 101 | M176: 117.22883
A177: 168 | B177: SRF | C177: 1763.1 | D177: 1739.28 | E177: 1693.82 | F177: 1624.53 | G177: 1579.07 | H177: 1808.57 | I177: 1854.03 | J177: 1923.32 | K177: 1784.75 | L177: 1670 | M177: 5.03588
A178: 169 | B178: SHREECEM | C178: 16632.35 | D178: 16670.30 | E178: 16366.25 | F178: 16100.15 | G178: 15796.10 | H178: 16936.40 | I178: 17240.45 | J178: 17506.55 | K178: 16974.35 | L178: 16404.2 | M178: 0.64331
A179: 170 | B179: SRTRANSFIN | C179: 1077.9 | D179: 1096.63 | E179: 1039.82 | F179: 1001.73 | G179: 944.92 | H179: 1134.72 | I179: 1191.53 | J179: 1229.62 | K179: 1153.45 | L179: 1058.55 | M179: 13.41451
A180: 171 | B180: SIEMENS | C180: 980.3 | D180: 968.28 | E180: 947.57 | F180: 914.83 | G180: 894.12 | H180: 1001.02 | I180: 1021.73 | J180: 1054.47 | K180: 989 | L180: 935.55 | M180: 3.27612
A181: 172 | B181: SBIN | C181: 271.7 | D181: 273.67 | E181: 268.63 | F181: 265.57 | G181: 260.53 | H181: 276.73 | I181: 281.77 | J181: 284.83 | K181: 278.7 | L181: 270.6 | M181: 197.14943
A182: 173 | B182: SAIL | C182: 68.95 | D182: 69.43 | E182: 67.52 | F182: 66.08 | G182: 64.17 | H182: 70.87 | I182: 72.78 | J182: 74.22 | K182: 71.35 | L182: 68 | M182: 121.02431
A183: 174 | B183: SPARC | C183: 332.6 | D183: 334.28 | E183: 329.17 | F183: 325.73 | G183: 320.62 | H183: 337.72 | I183: 342.83 | J183: 346.27 | K183: 339.4 | L183: 330.85 | M183: 1.64556
A184: 175 | B184: SUNPHARMA | C184: 620.85 | D184: 626.70 | E184: 612.65 | F184: 604.45 | G184: 590.40 | H184: 634.90 | I184: 648.95 | J184: 657.15 | K184: 640.75 | L184: 618.5 | M184: 47.23773
A185: 176 | B185: SUNTV | C185: 628.5 | D185: 637.83 | E185: 613.17 | F185: 597.83 | G185: 573.17 | H185: 653.17 | I185: 677.83 | J185: 693.17 | K185: 662.5 | L185: 622.5 | M185: 16.78602
A186: 177 | B186: SUZLON | C186: 5.9 | D186: 5.92 | E186: 5.53 | F186: 5.17 | G186: 4.78 | H186: 6.28 | I186: 6.67 | J186: 7.03 | K186: 6.3 | L186: 5.55 | M186: 539.18008
A187: 178 | B187: SYNDIBANK | C187: 32.4 | D187: 32.42 | E187: 31.13 | F187: 29.87 | G187: 28.58 | H187: 33.68 | I187: 34.97 | J187: 36.23 | K187: 33.7 | L187: 31.15 | M187: 61.64525
A188: 179 | B188: SYNGENE | C188: 600.85 | D188: 599.20 | E188: 592.65 | F188: 584.45 | G188: 577.90 | H188: 607.40 | I188: 613.95 | J188: 622.15 | K188: 605.75 | L188: 591 | M188: 0.54913
A189: 180 | B189: TV18BRDCST | C189: 35.45 | D189: 35.13 | E189: 34.12 | F189: 32.78 | G189: 31.77 | H189: 36.47 | I189: 37.48 | J189: 38.82 | K189: 36.15 | L189: 33.8 | M189: 74.40705
A190: 181 | B190: TVSMOTOR | C190: 538.45 | D190: 547.15 | E190: 525.05 | F190: 511.65 | G190: 489.55 | H190: 560.55 | I190: 582.65 | J190: 596.05 | K190: 569.25 | L190: 533.75 | M190: 27.37454
A191: 182 | B191: TATACHEM | C191: 669.25 | D191: 677.10 | E191: 658.20 | F191: 647.15 | G191: 628.25 | H191: 688.15 | I191: 707.05 | J191: 718.10 | K191: 696 | L191: 666.05 | M191: 5.07086
A192: 183 | B192: TATACOMM | C192: 488.1 | D192: 492.67 | E192: 478.88 | F192: 469.67 | G192: 455.88 | H192: 501.88 | I192: 515.67 | J192: 524.88 | K192: 506.45 | L192: 483.45 | M192: 9.73892
A193: 184 | B193: TCS | C193: 2162.85 | D193: 2191.15 | E193: 2127.30 | F193: 2091.75 | G193: 2027.90 | H193: 2226.70 | I193: 2290.55 | J193: 2326.10 | K193: 2255 | L193: 2155.6 | M193: 39.02322
A194: 185 | B194: TATAGLOBAL | C194: 227.6 | D194: 230.28 | E194: 223.07 | F194: 218.53 | G194: 211.32 | H194: 234.82 | I194: 242.03 | J194: 246.57 | K194: 237.5 | L194: 225.75 | M194: 17.0859
A195: 186 | B195: TATAMTRDVR | C195: 120.65 | D195: 121.17 | E195: 118.68 | F195: 116.72 | G195: 114.23 | H195: 123.13 | I195: 125.62 | J195: 127.58 | K195: 123.65 | L195: 119.2 | M195: 20.20387
A196: 187 | B196: TATAMOTORS | C196: 227.6 | D196: 228.73 | E196: 224.67 | F196: 221.73 | G196: 217.67 | H196: 231.67 | I196: 235.73 | J196: 238.67 | K196: 232.8 | L196: 225.8 | M196: 90.94685
A197: 188 | B197: TATAPOWER | C197: 67.5 | D197: 67.70 | E197: 66.15 | F197: 64.80 | G197: 63.25 | H197: 69.05 | I197: 70.60 | J197: 71.95 | K197: 69.25 | L197: 66.35 | M197: 36.5028
A198: 189 | B198: TATASTEEL | C198: 579.6 | D198: 583.40 | E198: 572.40 | F198: 565.20 | G198: 554.20 | H198: 590.60 | I198: 601.60 | J198: 608.80 | K198: 594.4 | L198: 576.2 | M198: 72.17063
A199: 190 | B199: TECHM | C199: 750.15 | D199: 758.45 | E199: 736.10 | F199: 722.05 | G199: 699.70 | H199: 772.50 | I199: 794.85 | J199: 808.90 | K199: 780.8 | L199: 744.4 | M199: 52.36214
A200: 191 | B200: RAMCOCEM | C200: 637.35 | D200: 639.70 | E200: 627.65 | F200: 617.95 | G200: 605.90 | H200: 649.40 | I200: 661.45 | J200: 671.15 | K200: 651.75 | L200: 630 | M200: 2.49575
A201: 192 | B201: TITAN | C201: 794.5 | D201: 799.57 | E201: 786.13 | F201: 777.77 | G201: 764.33 | H201: 807.93 | I201: 821.37 | J201: 829.73 | K201: 813 | L201: 791.2 | M201: 34.78716
A202: 193 | B202: TORNTPHARM | C202: 1649.3 | D202: 1648.78 | E202: 1637.57 | F202: 1625.83 | G202: 1614.62 | H202: 1660.52 | I202: 1671.73 | J202: 1683.47 | K202: 1660 | L202: 1637.05 | M202: 2.597
A203: 194 | B203: TORNTPOWER | C203: 229.2 | D203: 229.20 | E203: 220.30 | F203: 211.40 | G203: 202.50 | H203: 238.10 | I203: 247.00 | J203: 255.90 | K203: 238.1 | L203: 220.3 | M203: 14.95455
A204: 195 | B204: UPL | C204: 642.65 | D204: 650.38 | E204: 631.67 | F204: 620.68 | G204: 601.97 | H204: 661.37 | I204: 680.08 | J204: 691.07 | K204: 669.1 | L204: 639.4 | M204: 34.96373
A205: 196 | B205: ULTRACEMCO | C205: 3860.3 | D205: 3881.63 | E205: 3791.72 | F205: 3723.13 | G205: 3633.22 | H205: 3950.22 | I205: 4040.13 | J205: 4108.72 | K205: 3971.55 | L205: 3813.05 | M205: 5.00577
... 30 more rows

Sheet MidCap Intra
L5: Back To Main Page
A6: FOR INTRA DAY TRADING | K6: =Main!B10 -> 2018-10-04
A9: Sr.no | B9: Scrip | C9: CLOSE RATE | D9: Pivot Point | E9: Supports | H9: Resistances
C10: Point | E10: S1 | F10: S2 | G10: S3 | H10: R1 | I10: R2 | J10: R3 | K10: HIGH | L10: LOW | M10: Total Trade Quanity in Lakhs
A11: 1 | B11: 3MINDIA | C11: 22656.4 | D11: 23011.40 | E11: 22222.80 | F11: 21789.20 | G11: 21000.60 | H11: 23445.00 | I11: 24233.60 | J11: 24667.20 | K11: 23800 | L11: 22577.8 | M11: 0.0172
A12: 2 | B12: 8KMILES | C12: 172.75 | D12: 172.75 | E12: 172.75 | F12: 172.75 | G12: 172.75 | H12: 172.75 | I12: 172.75 | J12: 172.75 | K12: 172.75 | L12: 172.75 | M12: 0.50732
A13: 3 | B13: AARTIIND | C13: 1207.05 | D13: 1190.28 | E13: 1155.62 | F13: 1104.18 | G13: 1069.52 | H13: 1241.72 | I13: 1276.38 | J13: 1327.82 | K13: 1224.95 | L13: 1138.85 | M13: 0.41029
A14: 4 | B14: ABAN | C14: 82.7 | D14: 82.68 | E14: 81.07 | F14: 79.43 | G14: 77.82 | H14: 84.32 | I14: 85.93 | J14: 87.57 | K14: 84.3 | L14: 81.05 | M14: 8.31298
A15: 5 | B15: ABB | C15: 1422.2 | D15: 1429.68 | E15: 1395.42 | F15: 1368.63 | G15: 1334.37 | H15: 1456.47 | I15: 1490.73 | J15: 1517.52 | K15: 1463.95 | L15: 1402.9 | M15: 1.2154
A16: 6 | B16: ABCAPITAL | C16: 110.25 | D16: 110.77 | E16: 108.33 | F16: 106.42 | G16: 103.98 | H16: 112.68 | I16: 115.12 | J16: 117.03 | K16: 113.2 | L16: 108.85 | M16: 18.98083
A17: 7 | B17: ABFRL | C17: 182.2 | D17: 182.07 | E17: 178.33 | F17: 174.47 | G17: 170.73 | H17: 185.93 | I17: 189.67 | J17: 193.53 | K17: 185.8 | L17: 178.2 | M17: 7.59036
A18: 8 | B18: ACC | C18: 1509.7 | D18: 1523.40 | E18: 1480.80 | F18: 1451.90 | G18: 1409.30 | H18: 1552.30 | I18: 1594.90 | J18: 1623.80 | K18: 1566 | L18: 1494.5 | M18: 5.45265
A19: 9 | B19: ADANIPORTS | C19: 329.75 | D19: 331.38 | E19: 324.77 | F19: 319.78 | G19: 313.17 | H19: 336.37 | I19: 342.98 | J19: 347.97 | K19: 338 | L19: 326.4 | M19: 44.38442
A20: 10 | B20: ADANIPOWER | C20: 25.95 | D20: 26.13 | E20: 25.32 | F20: 24.68 | G20: 23.87 | H20: 26.77 | I20: 27.58 | J20: 28.22 | K20: 26.95 | L20: 25.5 | M20: 190.0848
A21: 11 | B21: ADANITRANS | C21: 154.85 | D21: 156.15 | E21: 150.80 | F21: 146.75 | G21: 141.40 | H21: 160.20 | I21: 165.55 | J21: 169.60 | K21: 161.5 | L21: 152.1 | M21: 2.12429
A22: 12 | B22: ADVENZYMES | C22: 186.5 | D22: 185.27 | E22: 182.28 | F22: 178.07 | G22: 175.08 | H22: 189.48 | I22: 192.47 | J22: 196.68 | K22: 188.25 | L22: 181.05 | M22: 0.80474
A23: 13 | B23: AEGISCHEM | C23: 187.15 | D23: 189.00 | E23: 183.05 | F23: 178.95 | G23: 173.00 | H23: 193.10 | I23: 199.05 | J23: 203.15 | K23: 194.95 | L23: 184.9 | M23: 1.20516
A24: 14 | B24: AIAENG | C24: 1741.25 | D24: 1739.15 | E24: 1719.10 | F24: 1696.95 | G24: 1676.90 | H24: 1761.30 | I24: 1781.35 | J24: 1803.50 | K24: 1759.2 | L24: 1717 | M24: 0.35441
A25: 15 | B25: AJANTPHARM | C25: 1039.05 | D25: 1048.25 | E25: 1022.55 | F25: 1006.05 | G25: 980.35 | H25: 1064.75 | I25: 1090.45 | J25: 1106.95 | K25: 1073.95 | L25: 1031.75 | M25: 3.63464
A26: 16 | B26: AKZOINDIA | C26: 1595.9 | D26: 1600.28 | E26: 1585.62 | F26: 1575.33 | G26: 1560.67 | H26: 1610.57 | I26: 1625.23 | J26: 1635.52 | K26: 1614.95 | L26: 1590 | M26: 0.03237
A27: 17 | B27: ALBK | C27: 36.9 | D27: 36.92 | E27: 35.58 | F27: 34.27 | G27: 32.93 | H27: 38.23 | I27: 39.57 | J27: 40.88 | K27: 38.25 | L27: 35.6 | M27: 54.72553
A28: 18 | B28: ALKEM | C28: 2053.4 | D28: 2065.53 | E28: 2033.17 | F28: 2012.93 | G28: 1980.57 | H28: 2085.77 | I28: 2118.13 | J28: 2138.37 | K28: 2097.9 | L28: 2045.3 | M28: 1.22344
A29: 19 | B29: ALLCARGO | C29: 98.65 | D29: 99.23 | E29: 96.92 | F29: 95.18 | G29: 92.87 | H29: 100.97 | I29: 103.28 | J29: 105.02 | K29: 101.55 | L29: 97.5 | M29: 3.00726
A30: 20 | B30: AMARAJABAT | C30: 737.5 | D30: 736.75 | E30: 726.80 | F30: 716.10 | G30: 706.15 | H30: 747.45 | I30: 757.40 | J30: 768.10 | K30: 746.7 | L30: 726.05 | M30: 5.07973
A31: 21 | B31: AMBUJACEM | C31: 213.3 | D31: 215.50 | E31: 208.80 | F31: 204.30 | G31: 197.60 | H31: 220.00 | I31: 226.70 | J31: 231.20 | K31: 222.2 | L31: 211 | M31: 44.33444
A32: 22 | B32: ANDHRABANK | C32: 27.45 | D32: 27.48 | E32: 27.02 | F32: 26.58 | G32: 26.12 | H32: 27.92 | I32: 28.38 | J32: 28.82 | K32: 27.95 | L32: 27.05 | M32: 23.78257
A33: 23 | B33: APLAPOLLO | C33: 1255.65 | D33: 1274.95 | E33: 1228.35 | F33: 1201.05 | G33: 1154.45 | H33: 1302.25 | I33: 1348.85 | J33: 1376.15 | K33: 1321.55 | L33: 1247.65 | M33: 1.38219
A34: 24 | B34: APLLTD | C34: 621.55 | D34: 629.55 | E34: 608.10 | F34: 594.65 | G34: 573.20 | H34: 643.00 | I34: 664.45 | J34: 677.90 | K34: 651 | L34: 616.1 | M34: 0.28478
A35: 25 | B35: APOLLOHOSP | C35: 1071.3 | D35: 1067.00 | E35: 1049.30 | F35: 1027.30 | G35: 1009.60 | H35: 1089.00 | I35: 1106.70 | J35: 1128.70 | K35: 1084.7 | L35: 1045 | M35: 5.27109
A36: 26 | B36: APOLLOTYRE | C36: 206 | D36: 208.57 | E36: 202.68 | F36: 199.37 | G36: 193.48 | H36: 211.88 | I36: 217.77 | J36: 221.08 | K36: 214.45 | L36: 205.25 | M36: 36.24093
A37: 27 | B37: ARVIND | C37: 316.7 | D37: 320.88 | E37: 310.52 | F37: 304.33 | G37: 293.97 | H37: 327.07 | I37: 337.43 | J37: 343.62 | K37: 331.25 | L37: 314.7 | M37: 15.96619
A38: 28 | B38: ASAHIINDIA | C38: 312.25 | D38: 312.47 | E38: 306.98 | F38: 301.72 | G38: 296.23 | H38: 317.73 | I38: 323.22 | J38: 328.48 | K38: 317.95 | L38: 307.2 | M38: 0.12469
A39: 29 | B39: ASHOKA | C39: 110.85 | D39: 110.27 | E39: 107.58 | F39: 104.32 | G39: 101.63 | H39: 113.53 | I39: 116.22 | J39: 119.48 | K39: 112.95 | L39: 107 | M39: 3.01007
A40: 30 | B40: ASHOKLEY | C40: 119.15 | D40: 119.72 | E40: 118.03 | F40: 116.92 | G40: 115.23 | H40: 120.83 | I40: 122.52 | J40: 123.63 | K40: 121.4 | L40: 118.6 | M40: 172.6279
A41: 31 | B41: ASIANPAINT | C41: 1251.75 | D41: 1255.63 | E41: 1242.27 | F41: 1232.78 | G41: 1219.42 | H41: 1265.12 | I41: 1278.48 | J41: 1287.97 | K41: 1269 | L41: 1246.15 | M41: 12.36645
A42: 32 | B42: ASTRAL | C42: 920.45 | D42: 929.43 | E42: 897.07 | F42: 873.68 | G42: 841.32 | H42: 952.82 | I42: 985.18 | J42: 1008.57 | K42: 961.8 | L42: 906.05 | M42: 1.39461
A43: 33 | B43: ATUL | C43: 3138.15 | D43: 3131.23 | E43: 3092.47 | F43: 3046.78 | G43: 3008.02 | H43: 3176.92 | I43: 3215.68 | J43: 3261.37 | K43: 3170 | L43: 3085.55 | M43: 0.15247
A44: 34 | B44: AUBANK | C44: 564.75 | D44: 561.98 | E44: 549.47 | F44: 534.18 | G44: 521.67 | H44: 577.27 | I44: 589.78 | J44: 605.07 | K44: 574.5 | L44: 546.7 | M44: 7.63903
A45: 35 | B45: AUROPHARMA | C45: 771.6 | D45: 775.60 | E45: 762.20 | F45: 752.80 | G45: 739.40 | H45: 785.00 | I45: 798.40 | J45: 807.80 | K45: 789 | L45: 766.2 | M45: 54.42277
A46: 36 | B46: AVANTIFEED | C46: 366 | D46: 370.77 | E46: 357.58 | F46: 349.17 | G46: 335.98 | H46: 379.18 | I46: 392.37 | J46: 400.78 | K46: 383.95 | L46: 362.35 | M46: 4.84351
A47: 37 | B47: AXISBANK | C47: 572.25 | D47: 577.98 | E47: 563.37 | F47: 554.48 | G47: 539.87 | H47: 586.87 | I47: 601.48 | J47: 610.37 | K47: 592.6 | L47: 569.1 | M47: 183.85327
A48: 38 | B48: BAJAJ-AUTO | C48: 2731.4 | D48: 2734.43 | E48: 2698.97 | F48: 2666.53 | G48: 2631.07 | H48: 2766.87 | I48: 2802.33 | J48: 2834.77 | K48: 2769.9 | L48: 2702 | M48: 5.0458
A49: 39 | B49: BAJAJCORP | C49: 400 | D49: 399.75 | E49: 396.30 | F49: 392.60 | G49: 389.15 | H49: 403.45 | I49: 406.90 | J49: 410.60 | K49: 403.2 | L49: 396.05 | M49: 2.35967
A50: 40 | B50: BAJAJELEC | C50: 495.7 | D50: 499.37 | E50: 488.83 | F50: 481.97 | G50: 471.43 | H50: 506.23 | I50: 516.77 | J50: 523.63 | K50: 509.9 | L50: 492.5 | M50: 1.67872
A51: 41 | B51: BAJAJFINSV | C51: 5752.5 | D51: 5800.83 | E51: 5652.67 | F51: 5552.83 | G51: 5404.67 | H51: 5900.67 | I51: 6048.83 | J51: 6148.67 | K51: 5949 | L51: 5701 | M51: 3.1292
A52: 42 | B52: BAJAJHIND | C52: 8.5 | D52: 8.32 | E52: 7.93 | F52: 7.37 | G52: 6.98 | H52: 8.88 | I52: 9.27 | J52: 9.83 | K52: 8.7 | L52: 7.75 | M52: 85.11519
A53: 43 | B53: BAJAJHLDNG | C53: 3005.65 | D53: 2992.97 | E53: 2949.68 | F53: 2893.72 | G53: 2850.43 | H53: 3048.93 | I53: 3092.22 | J53: 3148.18 | K53: 3036.25 | L53: 2937 | M53: 0.11542
A54: 44 | B54: BAJFINANCE | C54: 2232.2 | D54: 2242.73 | E54: 2155.52 | F54: 2078.83 | G54: 1991.62 | H54: 2319.42 | I54: 2406.63 | J54: 2483.32 | K54: 2329.95 | L54: 2166.05 | M54: 55.67701
A55: 45 | B55: BALKRISIND | C55: 1052.8 | D55: 1057.60 | E55: 1031.20 | F55: 1009.60 | G55: 983.20 | H55: 1079.20 | I55: 1105.60 | J55: 1127.20 | K55: 1084 | L55: 1036 | M55: 8.42713
A56: 46 | B56: BALLARPUR | C56: 6.9 | D56: 6.85 | E56: 6.60 | F56: 6.30 | G56: 6.05 | H56: 7.15 | I56: 7.40 | J56: 7.70 | K56: 7.1 | L56: 6.55 | M56: 4.78304
A57: 47 | B57: BALMLAWRIE | C57: 186.85 | D57: 187.12 | E57: 183.83 | F57: 180.82 | G57: 177.53 | H57: 190.13 | I57: 193.42 | J57: 196.43 | K57: 190.4 | L57: 184.1 | M57: 0.57241
A58: 48 | B58: BALRAMCHIN | C58: 76.2 | D58: 75.73 | E58: 72.47 | F58: 68.73 | G58: 65.47 | H58: 79.47 | I58: 82.73 | J58: 86.47 | K58: 79 | L58: 72 | M58: 76.45791
A59: 49 | B59: BANKBARODA | C59: 103.3 | D59: 104.25 | E59: 100.85 | F59: 98.40 | G59: 95.00 | H59: 106.70 | I59: 110.10 | J59: 112.55 | K59: 107.65 | L59: 101.8 | M59: 304.40427
A60: 50 | B60: BANKINDIA | C60: 80.6 | D60: 80.88 | E60: 77.82 | F60: 75.03 | G60: 71.97 | H60: 83.67 | I60: 86.73 | J60: 89.52 | K60: 83.95 | L60: 78.1 | M60: 97.19469
A61: 51 | B61: BASF | C61: 1807.75 | D61: 1815.58 | E61: 1782.17 | F61: 1756.58 | G61: 1723.17 | H61: 1841.17 | I61: 1874.58 | J61: 1900.17 | K61: 1849 | L61: 1790 | M61: 0.02766
A62: 52 | B62: BATAINDIA | C62: 915.3 | D62: 932.12 | E62: 894.18 | F62: 873.07 | G62: 835.13 | H62: 953.23 | I62: 991.17 | J62: 1012.28 | K62: 970.05 | L62: 911 | M62: 15.47225
A63: 53 | B63: BBTC | C63: 1311.2 | D63: 1315.92 | E63: 1281.83 | F63: 1252.47 | G63: 1218.38 | H63: 1345.28 | I63: 1379.37 | J63: 1408.73 | K63: 1350 | L63: 1286.55 | M63: 2.15818
A64: 54 | B64: BEL | C64: 83.4 | D64: 83.10 | E64: 81.45 | F64: 79.50 | G64: 77.85 | H64: 85.05 | I64: 86.70 | J64: 88.65 | K64: 84.75 | L64: 81.15 | M64: 103.11235
A65: 55 | B65: BEML | C65: 609.75 | D65: 604.52 | E65: 581.23 | F65: 552.72 | G65: 529.43 | H65: 633.03 | I65: 656.32 | J65: 684.83 | K65: 627.8 | L65: 576 | M65: 17.47364
A66: 56 | B66: BERGEPAINT | C66: 283.5 | D66: 282.65 | E66: 278.35 | F66: 273.20 | G66: 268.90 | H66: 287.80 | I66: 292.10 | J66: 297.25 | K66: 286.95 | L66: 277.5 | M66: 6.09999
A67: 57 | B67: BFUTILITIE | C67: 218.85 | D67: 220.63 | E67: 214.52 | F67: 210.18 | G67: 204.07 | H67: 224.97 | I67: 231.08 | J67: 235.42 | K67: 226.75 | L67: 216.3 | M67: 3.43731
A68: 58 | B68: BGRENERGY | C68: 55.85 | D68: 55.33 | E68: 52.87 | F68: 49.88 | G68: 47.42 | H68: 58.32 | I68: 60.78 | J68: 63.77 | K68: 57.8 | L68: 52.35 | M68: 1.03537
A69: 59 | B69: BHARATFIN | C69: 1016.55 | D69: 1016.18 | E69: 998.67 | F69: 980.78 | G69: 963.27 | H69: 1034.07 | I69: 1051.58 | J69: 1069.47 | K69: 1033.7 | L69: 998.3 | M69: 10.25025
A70: 60 | B70: BHARATFORG | C70: 603.45 | D70: 607.98 | E70: 597.47 | F70: 591.48 | G70: 580.97 | H70: 613.97 | I70: 624.48 | J70: 630.47 | K70: 618.5 | L70: 602 | M70: 11.54916
A71: 61 | B71: BHARTIARTL | C71: 318.45 | D71: 320.70 | E71: 314.10 | F71: 309.75 | G71: 303.15 | H71: 325.05 | I71: 331.65 | J71: 336.00 | K71: 327.3 | L71: 316.35 | M71: 66.59938
A72: 62 | B72: BHEL | C72: 73.5 | D72: 73.48 | E72: 70.62 | F72: 67.73 | G72: 64.87 | H72: 76.37 | I72: 79.23 | J72: 82.12 | K72: 76.35 | L72: 70.6 | M72: 164.56814
A73: 63 | B73: BHUSANSTL | C73: 25.25 | D73: 25.07 | E73: 24.88 | F73: 24.52 | G73: 24.33 | H73: 25.43 | I73: 25.62 | J73: 25.98 | K73: 25.25 | L73: 24.7 | M73: 4.12103
A74: 64 | B74: BIOCON | C74: 660.9 | D74: 668.63 | E74: 647.27 | F74: 633.63 | G74: 612.27 | H74: 682.27 | I74: 703.63 | J74: 717.27 | K74: 690 | L74: 655 | M74: 17.78466
A75: 65 | B75: BIRLACORPN | C75: 636.1 | D75: 646.03 | E75: 622.07 | F75: 608.03 | G75: 584.07 | H75: 660.07 | I75: 684.03 | J75: 698.07 | K75: 670 | L75: 632 | M75: 0.42043
A76: 66 | B76: BLISSGVS | C76: 177.1 | D76: 177.37 | E76: 173.78 | F76: 170.47 | G76: 166.88 | H76: 180.68 | I76: 184.27 | J76: 187.58 | K76: 180.95 | L76: 174.05 | M76: 1.46502
A77: 67 | B77: BLUEDART | C77: 2967.55 | D77: 2962.68 | E77: 2925.37 | F77: 2883.18 | G77: 2845.87 | H77: 3004.87 | I77: 3042.18 | J77: 3084.37 | K77: 3000 | L77: 2920.5 | M77: 0.01144
A78: 68 | B78: BLUESTARCO | C78: 581.15 | D78: 574.28 | E78: 559.87 | F78: 538.58 | G78: 524.17 | H78: 595.57 | I78: 609.98 | J78: 631.27 | K78: 588.7 | L78: 553 | M78: 0.3218
A79: 69 | B79: BOMDYEING | C79: 151.45 | D79: 151.45 | E79: 151.45 | F79: 151.45 | G79: 151.45 | H79: 151.45 | I79: 151.45 | J79: 151.45 | K79: 151.45 | L79: 151.45 | M79: 8.38785
A80: 70 | B80: BOSCHLTD | C80: 19698.1 | D80: 19749.37 | E80: 19548.73 | F80: 19399.37 | G80: 19198.73 | H80: 19898.73 | I80: 20099.37 | J80: 20248.73 | K80: 19950 | L80: 19600 | M80: 0.1791
A81: 71 | B81: BPCL | C81: 377.85 | D81: 373.00 | E81: 364.20 | F81: 350.55 | G81: 341.75 | H81: 386.65 | I81: 395.45 | J81: 409.10 | K81: 381.8 | L81: 359.35 | M81: 48.71882
A82: 72 | B82: BRFL | C82: 14.75 | D82: 15.23 | E82: 14.27 | F82: 13.78 | G82: 12.82 | H82: 15.72 | I82: 16.68 | J82: 17.17 | K82: 16.2 | L82: 14.75 | M82: 1.02288
A83: 73 | B83: BRIGADE | C83: 190.35 | D83: 190.23 | E83: 187.62 | F83: 184.88 | G83: 182.27 | H83: 192.97 | I83: 195.58 | J83: 198.32 | K83: 192.85 | L83: 187.5 | M83: 0.20244
A84: 74 | B84: BRITANNIA | C84: 5739.4 | D84: 5758.68 | E84: 5682.72 | F84: 5626.03 | G84: 5550.07 | H84: 5815.37 | I84: 5891.33 | J84: 5948.02 | K84: 5834.65 | L84: 5702 | M84: 1.33506
A85: 75 | B85: BSE | C85: 672.4 | D85: 673.28 | E85: 667.12 | F85: 661.83 | G85: 655.67 | H85: 678.57 | I85: 684.73 | J85: 690.02 | K85: 679.45 | L85: 668 | M85: 1.39702
A86: 77 | B86: CADILAHC | C86: 393.8 | D86: 395.97 | E86: 387.93 | F86: 382.07 | G86: 374.03 | H86: 401.83 | I86: 409.87 | J86: 415.73 | K86: 404 | L86: 390.1 | M86: 18.31607
A87: 78 | B87: CANBK | C87: 231.8 | D87: 233.50 | E87: 227.10 | F87: 222.40 | G87: 216.00 | H87: 238.20 | I87: 244.60 | J87: 249.30 | K87: 239.9 | L87: 228.8 | M87: 84.75653
A88: 79 | B88: CANFINHOME | C88: 251.9 | D88: 254.83 | E88: 245.37 | F88: 238.83 | G88: 229.37 | H88: 261.37 | I88: 270.83 | J88: 277.37 | K88: 264.3 | L88: 248.3 | M88: 17.07752
A89: 80 | B89: CAPF | C89: 503.75 | D89: 508.02 | E89: 494.63 | F89: 485.52 | G89: 472.13 | H89: 517.13 | I89: 530.52 | J89: 539.63 | K89: 521.4 | L89: 498.9 | M89: 5.84619
A90: 81 | B90: CAPLIPOINT | C90: 454.45 | D90: 447.58 | E90: 428.77 | F90: 403.08 | G90: 384.27 | H90: 473.27 | I90: 492.08 | J90: 517.77 | K90: 466.4 | L90: 421.9 | M90: 0.97122
A91: 82 | B91: CARBORUNIV | C91: 369.1 | D91: 376.70 | E91: 359.40 | F91: 349.70 | G91: 332.40 | H91: 386.40 | I91: 403.70 | J91: 413.40 | K91: 394 | L91: 367 | M91: 0.77104
A92: 83 | B92: CARERATING | C92: 1173.25 | D92: 1175.85 | E92: 1147.70 | F92: 1122.15 | G92: 1094.00 | H92: 1201.40 | I92: 1229.55 | J92: 1255.10 | K92: 1204 | L92: 1150.3 | M92: 0.23588
A93: 84 | B93: CASTROLIND | C93: 143.55 | D93: 143.97 | E93: 141.78 | F93: 140.02 | G93: 137.83 | H93: 145.73 | I93: 147.92 | J93: 149.68 | K93: 146.15 | L93: 142.2 | M93: 16.07092
A94: 85 | B94: CCL | C94: 250.3 | D94: 255.62 | E94: 243.23 | F94: 236.17 | G94: 223.78 | H94: 262.68 | I94: 275.07 | J94: 282.13 | K94: 268 | L94: 248.55 | M94: 1.36355
A95: 86 | B95: CDSL | C95: 227.15 | D95: 224.25 | E95: 220.10 | F95: 213.05 | G95: 208.90 | H95: 231.30 | I95: 235.45 | J95: 242.50 | K95: 228.4 | L95: 217.2 | M95: 1.58717
A96: 87 | B96: CEATLTD | C96: 1109.15 | D96: 1114.68 | E96: 1089.47 | F96: 1069.78 | G96: 1044.57 | H96: 1134.37 | I96: 1159.58 | J96: 1179.27 | K96: 1139.9 | L96: 1095 | M96: 4.96937
A97: 88 | B97: CENTRALBK | C97: 40.2 | D97: 40.40 | E97: 39.45 | F97: 38.70 | G97: 37.75 | H97: 41.15 | I97: 42.10 | J97: 42.85 | K97: 41.35 | L97: 39.65 | M97: 12.02322
A98: 89 | B98: CENTURYPLY | C98: 178.1 | D98: 178.72 | E98: 174.43 | F98: 170.77 | G98: 166.48 | H98: 182.38 | I98: 186.67 | J98: 190.33 | K98: 183 | L98: 175.05 | M98: 1.148
A99: 90 | B99: CENTURYTEX | C99: 805.2 | D99: 812.97 | E99: 792.23 | F99: 779.27 | G99: 758.53 | H99: 825.93 | I99: 846.67 | J99: 859.63 | K99: 833.7 | L99: 800 | M99: 5.09379
A100: 91 | B100: CERA | C100: 2452.3 | D100: 2470.78 | E100: 2426.57 | F100: 2400.83 | G100: 2356.62 | H100: 2496.52 | I100: 2540.73 | J100: 2566.47 | K100: 2515 | L100: 2445.05 | M100: 0.02099
A101: 92 | B101: CGPOWER | C101: 44.7 | D101: 45.00 | E101: 43.85 | F101: 43.00 | G101: 41.85 | H101: 45.85 | I101: 47.00 | J101: 47.85 | K101: 46.15 | L101: 44.15 | M101: 29.29417
A102: 93 | B102: CHAMBLFERT | C102: 151.25 | D102: 150.13 | E102: 147.77 | F102: 144.28 | G102: 141.92 | H102: 153.62 | I102: 155.98 | J102: 159.47 | K102: 152.5 | L102: 146.65 | M102: 1.66605
A103: 94 | B103: CHENNPETRO | C103: 290.2 | D103: 288.40 | E103: 275.80 | F103: 261.40 | G103: 248.80 | H103: 302.80 | I103: 315.40 | J103: 329.80 | K103: 301 | L103: 274 | M103: 6.78181
A104: 95 | B104: CHOLAFIN | C104: 1198.05 | D104: 1215.52 | E104: 1167.53 | F104: 1137.02 | G104: 1089.03 | H104: 1246.03 | I104: 1294.02 | J104: 1324.53 | K104: 1263.5 | L104: 1185 | M104: 6.42997
A105: 96 | B105: CIPLA | C105: 654.55 | D105: 656.17 | E105: 648.38 | F105: 642.22 | G105: 634.43 | H105: 662.33 | I105: 670.12 | J105: 676.28 | K105: 663.95 | L105: 650 | M105: 15.3399
A106: 97 | B106: COALINDIA | C106: 276.75 | D106: 275.53 | E106: 270.07 | F106: 263.38 | G106: 257.92 | H106: 282.22 | I106: 287.68 | J106: 294.37 | K106: 281 | L106: 268.85 | M106: 29.87093
A107: 98 | B107: COCHINSHIP | C107: 396.65 | D107: 394.22 | E107: 387.43 | F107: 378.22 | G107: 371.43 | H107: 403.43 | I107: 410.22 | J107: 419.43 | K107: 401 | L107: 385 | M107: 1.02472
A108: 99 | B108: COFFEEDAY | C108: 270.75 | D108: 273.72 | E108: 267.03 | F108: 263.32 | G108: 256.63 | H108: 277.43 | I108: 284.12 | J108: 287.83 | K108: 280.4 | L108: 270 | M108: 0.70885
A109: 100 | B109: COLPAL | C109: 1089.2 | D109: 1091.73 | E109: 1078.47 | F109: 1067.73 | G109: 1054.47 | H109: 1102.47 | I109: 1115.73 | J109: 1126.47 | K109: 1105 | L109: 1081 | M109: 1.65735
A110: 101 | B110: CONCOR | C110: 641.2 | D110: 643.10 | E110: 633.00 | F110: 624.80 | G110: 614.70 | H110: 651.30 | I110: 661.40 | J110: 669.60 | K110: 653.2 | L110: 634.9 | M110: 7.5614
A111: 102 | B111: COROMANDEL | C111: 392.45 | D111: 393.18 | E111: 389.37 | F111: 386.28 | G111: 382.47 | H111: 396.27 | I111: 400.08 | J111: 403.17 | K111: 397 | L111: 390.1 | M111: 0.4348
A112: 103 | B112: COX&KINGS | C112: 191.4 | D112: 186.82 | E112: 178.33 | F112: 165.27 | G112: 156.78 | H112: 199.88 | I112: 208.37 | J112: 221.43 | K112: 195.3 | L112: 173.75 | M112: 2.00154
A113: 104 | B113: CRISIL | C113: 1695.45 | D113: 1697.82 | E113: 1689.63 | F113: 1683.82 | G113: 1675.63 | H113: 1703.63 | I113: 1711.82 | J113: 1717.63 | K113: 1706 | L113: 1692 | M113: 0.0722
A114: 105 | B114: CROMPTON | C114: 211.8 | D114: 213.33 | E114: 207.72 | F114: 203.63 | G114: 198.02 | H114: 217.42 | I114: 223.03 | J114: 227.12 | K114: 218.95 | L114: 209.25 | M114: 21.8556
A115: 106 | B115: CUB | C115: 168.65 | D115: 170.00 | E115: 166.25 | F115: 163.85 | G115: 160.10 | H115: 172.40 | I115: 176.15 | J115: 178.55 | K115: 173.75 | L115: 167.6 | M115: 7.27377
A116: 107 | B116: CUMMINSIND | C116: 669.8 | D116: 670.75 | E116: 663.80 | F116: 657.80 | G116: 650.85 | H116: 676.75 | I116: 683.70 | J116: 689.70 | K116: 677.7 | L116: 664.75 | M116: 5.68871
A117: 108 | B117: CYIENT | C117: 771.95 | D117: 767.57 | E117: 755.18 | F117: 738.42 | G117: 726.03 | H117: 784.33 | I117: 796.72 | J117: 813.48 | K117: 779.95 | L117: 750.8 | M117: 1.39223
A118: 109 | B118: DABUR | C118: 425.3 | D118: 429.80 | E118: 417.10 | F118: 408.90 | G118: 396.20 | H118: 438.00 | I118: 450.70 | J118: 458.90 | K118: 442.5 | L118: 421.6 | M118: 22.73144
A119: 110 | B119: DBCORP | C119: 204.7 | D119: 205.43 | E119: 203.27 | F119: 201.83 | G119: 199.67 | H119: 206.87 | I119: 209.03 | J119: 210.47 | K119: 207.6 | L119: 204 | M119: 0.39523
A120: 111 | B120: DBL | C120: 637.35 | D120: 637.87 | E120: 629.48 | F120: 621.62 | G120: 613.23 | H120: 645.73 | I120: 654.12 | J120: 661.98 | K120: 646.25 | L120: 630 | M120: 1.51608
A121: 112 | B121: DBREALTY | C121: 21.2 | D121: 21.10 | E121: 20.00 | F121: 18.80 | G121: 17.70 | H121: 22.30 | I121: 23.40 | J121: 24.60 | K121: 22.2 | L121: 19.9 | M121: 9.11524
A122: 113 | B122: DCAL | C122: 240.25 | D122: 241.12 | E122: 235.78 | F122: 231.32 | G122: 225.98 | H122: 245.58 | I122: 250.92 | J122: 255.38 | K122: 246.45 | L122: 236.65 | M122: 1.46814
A123: 114 | B123: DCBBANK | C123: 149.3 | D123: 148.02 | E123: 144.48 | F123: 139.67 | G123: 136.13 | H123: 152.83 | I123: 156.37 | J123: 161.18 | K123: 151.55 | L123: 143.2 | M123: 18.71934
A124: 115 | B124: DCMSHRIRAM | C124: 426.25 | D124: 403.20 | E124: 370.15 | F124: 314.05 | G124: 281.00 | H124: 459.30 | I124: 492.35 | J124: 548.45 | K124: 436.25 | L124: 347.1 | M124: 2.24652
A125: 116 | B125: DEEPAKFERT | C125: 197.35 | D125: 196.42 | E125: 190.93 | F125: 184.52 | G125: 179.03 | H125: 202.83 | I125: 208.32 | J125: 214.73 | K125: 201.9 | L125: 190 | M125: 1.02994
A126: 117 | B126: DELTACORP | C126: 216.15 | D126: 215.17 | E126: 209.38 | F126: 202.62 | G126: 196.83 | H126: 221.93 | I126: 227.72 | J126: 234.48 | K126: 220.95 | L126: 208.4 | M126: 10.88665
A127: 118 | B127: DEN | C127: 59 | D127: 57.45 | E127: 54.20 | F127: 49.40 | G127: 46.15 | H127: 62.25 | I127: 65.50 | J127: 70.30 | K127: 60.7 | L127: 52.65 | M127: 4.31001
A128: 119 | B128: DENABANK | C128: 15.5 | D128: 15.47 | E128: 15.13 | F128: 14.77 | G128: 14.43 | H128: 15.83 | I128: 16.17 | J128: 16.53 | K128: 15.8 | L128: 15.1 | M128: 12.85517
A129: 120 | B129: DHFL | C129: 317.65 | D129: 318.47 | E129: 303.23 | F129: 288.82 | G129: 273.58 | H129: 332.88 | I129: 348.12 | J129: 362.53 | K129: 333.7 | L129: 304.05 | M129: 296.58538
A130: 121 | B130: DISHTV | C130: 57.1 | D130: 57.80 | E130: 56.10 | F130: 55.10 | G130: 53.40 | H130: 58.80 | I130: 60.50 | J130: 61.50 | K130: 59.5 | L130: 56.8 | M130: 37.82741
A131: 122 | B131: DIVISLAB | C131: 1309.15 | D131: 1306.18 | E131: 1286.47 | F131: 1263.78 | G131: 1244.07 | H131: 1328.87 | I131: 1348.58 | J131: 1371.27 | K131: 1325.9 | L131: 1283.5 | M131: 9.37244
A132: 123 | B132: DIXON | C132: 2551.2 | D132: 2558.73 | E132: 2527.47 | F132: 2503.73 | G132: 2472.47 | H132: 2582.47 | I132: 2613.73 | J132: 2637.47 | K132: 2590 | L132: 2535 | M132: 0.24029
A133: 124 | B133: DLF | C133: 154.8 | D133: 156.08 | E133: 150.42 | F133: 146.03 | G133: 140.37 | H133: 160.47 | I133: 166.13 | J133: 170.52 | K133: 161.75 | L133: 151.7 | M133: 197.84307
A134: 125 | B134: DMART | C134: 1301.4 | D134: 1316.77 | E134: 1272.63 | F134: 1243.87 | G134: 1199.73 | H134: 1345.53 | I134: 1389.67 | J134: 1418.43 | K134: 1360.9 | L134: 1288 | M134: 5.35074
A135: 126 | B135: DREDGECORP | C135: 328.7 | D135: 326.68 | E135: 313.57 | F135: 298.43 | G135: 285.32 | H135: 341.82 | I135: 354.93 | J135: 370.07 | K135: 339.8 | L135: 311.55 | M135: 2.17682
A136: 127 | B136: DRREDDY | C136: 2489.55 | D136: 2506.85 | E136: 2464.70 | F136: 2439.85 | G136: 2397.70 | H136: 2531.70 | I136: 2573.85 | J136: 2598.70 | K136: 2549 | L136: 2482 | M136: 7.05888
A137: 128 | B137: ECLERX | C137: 1048.65 | D137: 1052.33 | E137: 1035.67 | F137: 1022.68 | G137: 1006.02 | H137: 1065.32 | I137: 1081.98 | J137: 1094.97 | K137: 1069 | L137: 1039.35 | M137: 0.06849
A138: 129 | B138: EDELWEISS | C138: 192.65 | D138: 192.42 | E138: 182.23 | F138: 171.82 | G138: 161.63 | H138: 202.83 | I138: 213.02 | J138: 223.43 | K138: 202.6 | L138: 182 | M138: 65.3767
A139: 130 | B139: EICHERMOT | C139: 23235.75 | D139: 23678.58 | E139: 22607.17 | F139: 21978.58 | G139: 20907.17 | H139: 24307.17 | I139: 25378.58 | J139: 26007.17 | K139: 24750 | L139: 23050 | M139: 2.46747
A140: 131 | B140: EIDPARRY | C140: 196.6 | D140: 198.60 | E140: 193.00 | F140: 189.40 | G140: 183.80 | H140: 202.20 | I140: 207.80 | J140: 211.40 | K140: 204.2 | L140: 195 | M140: 3.39204
A141: 132 | B141: EIHOTEL | C141: 147.1 | D141: 147.60 | E141: 145.60 | F141: 144.10 | G141: 142.10 | H141: 149.10 | I141: 151.10 | J141: 152.60 | K141: 149.6 | L141: 146.1 | M141: 0.34114
A142: 133 | B142: EMAMILTD | C142: 494.8 | D142: 500.25 | E142: 485.55 | F142: 476.30 | G142: 461.60 | H142: 509.50 | I142: 524.20 | J142: 533.45 | K142: 514.95 | L142: 491 | M142: 1.99301
A143: 134 | B143: ENDURANCE | C143: 1307.45 | D143: 1320.82 | E143: 1291.63 | F143: 1275.82 | G143: 1246.63 | H143: 1336.63 | I143: 1365.82 | J143: 1381.63 | K143: 1350 | L143: 1305 | M143: 0.66774
A144: 135 | B144: ENGINERSIN | C144: 114 | D144: 115.50 | E144: 111.50 | F144: 109.00 | G144: 105.00 | H144: 118.00 | I144: 122.00 | J144: 124.50 | K144: 119.5 | L144: 113 | M144: 43.1497
A145: 136 | B145: EQUITAS | C145: 116.45 | D145: 118.13 | E145: 113.52 | F145: 110.58 | G145: 105.97 | H145: 121.07 | I145: 125.68 | J145: 128.62 | K145: 122.75 | L145: 115.2 | M145: 34.57966
A146: 137 | B146: ERIS | C146: 709.55 | D146: 714.23 | E146: 701.97 | F146: 694.38 | G146: 682.12 | H146: 721.82 | I146: 734.08 | J146: 741.67 | K146: 726.5 | L146: 706.65 | M146: 0.03352
A147: 138 | B147: EROSMEDIA | C147: 77.15 | D147: 76.65 | E147: 70.80 | F147: 64.45 | G147: 58.60 | H147: 83.00 | I147: 88.85 | J147: 95.20 | K147: 82.5 | L147: 70.3 | M147: 13.21714
A148: 139 | B148: ESCORTS | C148: 621 | D148: 624.63 | E148: 605.57 | F148: 590.13 | G148: 571.07 | H148: 640.07 | I148: 659.13 | J148: 674.57 | K148: 643.7 | L148: 609.2 | M148: 14.07086
A149: 140 | B149: EVEREADY | C149: 211.6 | D149: 209.05 | E149: 201.00 | F149: 190.40 | G149: 182.35 | H149: 219.65 | I149: 227.70 | J149: 238.30 | K149: 217.1 | L149: 198.45 | M149: 0.47968
A150: 141 | B150: EXIDEIND | C150: 259.05 | D150: 261.77 | E150: 254.93 | F150: 250.82 | G150: 243.98 | H150: 265.88 | I150: 272.72 | J150: 276.83 | K150: 268.6 | L150: 257.65 | M150: 12.04106
A151: 142 | B151: FCONSUMER | C151: 39.7 | D151: 39.63 | E151: 38.07 | F151: 36.43 | G151: 34.87 | H151: 41.27 | I151: 42.83 | J151: 44.47 | K151: 41.2 | L151: 38 | M151: 32.66315
A152: 143 | B152: FEDERALBNK | C152: 70.2 | D152: 71.17 | E152: 69.03 | F152: 67.87 | G152: 65.73 | H152: 72.33 | I152: 74.47 | J152: 75.63 | K152: 73.3 | L152: 70 | M152: 101.76791
A153: 144 | B153: FINCABLES | C153: 507.25 | D153: 512.47 | E153: 499.78 | F153: 492.32 | G153: 479.63 | H153: 519.93 | I153: 532.62 | J153: 540.08 | K153: 525.15 | L153: 505 | M153: 0.24339
A154: 145 | B154: FINPIPE | C154: 525 | D154: 525.67 | E154: 524.33 | F154: 523.67 | G154: 522.33 | H154: 526.33 | I154: 527.67 | J154: 528.33 | K154: 527 | L154: 525 | M154: 0.17083
A155: 146 | B155: FLFL | C155: 389.5 | D155: 391.77 | E155: 378.73 | F155: 367.97 | G155: 354.93 | H155: 402.53 | I155: 415.57 | J155: 426.33 | K155: 404.8 | L155: 381 | M155: 0.24825
A156: 147 | B156: FSL | C156: 62.05 | D156: 62.42 | E156: 60.68 | F156: 59.32 | G156: 57.58 | H156: 63.78 | I156: 65.52 | J156: 66.88 | K156: 64.15 | L156: 61.05 | M156: 20.99964
A157: 148 | B157: GAIL | C157: 381.75 | D157: 382.17 | E157: 378.63 | F157: 375.52 | G157: 371.98 | H157: 385.28 | I157: 388.82 | J157: 391.93 | K157: 385.7 | L157: 379.05 | M157: 39.03687
A158: 149 | B158: GATI | C158: 80.6 | D158: 77.35 | E158: 73.25 | F158: 65.90 | G158: 61.80 | H158: 84.70 | I158: 88.80 | J158: 96.15 | K158: 81.45 | L158: 70 | M158: 41.29916
A159: 150 | B159: GDL | C159: 145.05 | D159: 143.77 | E159: 141.53 | F159: 138.02 | G159: 135.78 | H159: 147.28 | I159: 149.52 | J159: 153.03 | K159: 146 | L159: 140.25 | M159: 0.25701
A160: 151 | B160: GEPIL | C160: 740.25 | D160: 735.07 | E160: 725.28 | F160: 710.32 | G160: 700.53 | H160: 750.03 | I160: 759.82 | J160: 774.78 | K160: 744.85 | L160: 720.1 | M160: 0.09788
A161: 152 | B161: GESHIP | C161: 280.1 | D161: 280.62 | E161: 275.73 | F161: 271.37 | G161: 266.48 | H161: 284.98 | I161: 289.87 | J161: 294.23 | K161: 285.5 | L161: 276.25 | M161: 0.22063
A162: 153 | B162: GET&D | C162: 262.4 | D162: 253.78 | E162: 242.67 | F162: 222.93 | G162: 211.82 | H162: 273.52 | I162: 284.63 | J162: 304.37 | K162: 264.9 | L162: 234.05 | M162: 0.63202
A163: 154 | B163: GHCL | C163: 209.85 | D163: 211.87 | E163: 200.73 | F163: 191.62 | G163: 180.48 | H163: 220.98 | I163: 232.12 | J163: 241.23 | K163: 223 | L163: 202.75 | M163: 1.50349
A164: 155 | B164: GICRE | C164: 327.85 | D164: 325.62 | E164: 319.23 | F164: 310.62 | G164: 304.23 | H164: 334.23 | I164: 340.62 | J164: 349.23 | K164: 332 | L164: 317 | M164: 0.45568
A165: 156 | B165: GILLETTE | C165: 6699.55 | D165: 6649.85 | E165: 6549.75 | F165: 6399.95 | G165: 6299.85 | H165: 6799.65 | I165: 6899.75 | J165: 7049.55 | K165: 6749.95 | L165: 6500.05 | M165: 0.04759
A166: 157 | B166: GLAXO | C166: 1463.2 | D166: 1457.67 | E166: 1440.53 | F166: 1417.87 | G166: 1400.73 | H166: 1480.33 | I166: 1497.47 | J166: 1520.13 | K166: 1474.8 | L166: 1435 | M166: 0.10811
A167: 158 | B167: GLENMARK | C167: 625.65 | D167: 629.75 | E167: 617.50 | F167: 609.35 | G167: 597.10 | H167: 637.90 | I167: 650.15 | J167: 658.30 | K167: 642 | L167: 621.6 | M167: 6.7656
A168: 159 | B168: GMDCLTD | C168: 89.95 | D168: 91.43 | E168: 88.07 | F168: 86.18 | G168: 82.82 | H168: 93.32 | I168: 96.68 | J168: 98.57 | K168: 94.8 | L168: 89.55 | M168: 4.65647
A169: 160 | B169: GMRINFRA | C169: 16.7 | D169: 16.85 | E169: 16.15 | F169: 15.60 | G169: 14.90 | H169: 17.40 | I169: 18.10 | J169: 18.65 | K169: 17.55 | L169: 16.3 | M169: 356.90004
A170: 161 | B170: GNFC | C170: 339.7 | D170: 336.70 | E170: 327.40 | F170: 315.10 | G170: 305.80 | H170: 349.00 | I170: 358.30 | J170: 370.60 | K170: 346 | L170: 324.4 | M170: 3.8775
A171: 162 | B171: GODFRYPHLP | C171: 742.65 | D171: 744.50 | E171: 718.15 | F171: 693.65 | G171: 667.30 | H171: 769.00 | I171: 795.35 | J171: 819.85 | K171: 770.85 | L171: 720 | M171: 1.66127
A172: 163 | B172: GODREJAGRO | C172: 532.1 | D172: 533.85 | E172: 515.70 | F172: 499.30 | G172: 481.15 | H172: 550.25 | I172: 568.40 | J172: 584.80 | K172: 552 | L172: 517.45 | M172: 0.85514
A173: 164 | B173: GODREJCP | C173: 765.45 | D173: 775.97 | E173: 749.48 | F173: 733.52 | G173: 707.03 | H173: 791.93 | I173: 818.42 | J173: 834.38 | K173: 802.45 | L173: 760 | M173: 9.30245
A174: 165 | B174: GODREJIND | C174: 506.65 | D174: 508.70 | E174: 499.40 | F174: 492.15 | G174: 482.85 | H174: 515.95 | I174: 525.25 | J174: 532.50 | K174: 518 | L174: 501.45 | M174: 3.17847
A175: 166 | B175: GODREJPROP | C175: 608.45 | D175: 604.43 | E175: 594.07 | F175: 579.68 | G175: 569.32 | H175: 618.82 | I175: 629.18 | J175: 643.57 | K175: 614.8 | L175: 590.05 | M175: 0.72256
A176: 167 | B176: GPPL | C176: 103.7 | D176: 103.98 | E176: 99.77 | F176: 95.83 | G176: 91.62 | H176: 107.92 | I176: 112.13 | J176: 116.07 | K176: 108.2 | L176: 100.05 | M176: 1.10056
A177: 168 | B177: GRANULES | C177: 97.8 | D177: 98.62 | E177: 95.03 | F177: 92.27 | G177: 88.68 | H177: 101.38 | I177: 104.97 | J177: 107.73 | K177: 102.2 | L177: 95.85 | M177: 36.88942
A178: 169 | B178: GRAPHITE | C178: 846.75 | D178: 848.25 | E178: 823.50 | F178: 800.25 | G178: 775.50 | H178: 871.50 | I178: 896.25 | J178: 919.50 | K178: 873 | L178: 825 | M178: 3.87819
A179: 170 | B179: GRASIM | C179: 969.5 | D179: 974.98 | E179: 956.82 | F179: 944.13 | G179: 925.97 | H179: 987.67 | I179: 1005.83 | J179: 1018.52 | K179: 993.15 | L179: 962.3 | M179: 11.44829
A180: 171 | B180: GREAVESCOT | C180: 129.8 | D180: 129.12 | E180: 127.03 | F180: 124.27 | G180: 122.18 | H180: 131.88 | I180: 133.97 | J180: 136.73 | K180: 131.2 | L180: 126.35 | M180: 3.27255
A181: 172 | B181: GREENPLY | C181: 151.1 | D181: 151.62 | E181: 147.08 | F181: 143.07 | G181: 138.53 | H181: 155.63 | I181: 160.17 | J181: 164.18 | K181: 156.15 | L181: 147.6 | M181: 1.51589
A182: 173 | B182: GRUH | C182: 281.4 | D182: 283.72 | E182: 272.68 | F182: 263.97 | G182: 252.93 | H182: 292.43 | I182: 303.47 | J182: 312.18 | K182: 294.75 | L182: 275 | M182: 5.53908
A183: 174 | B183: GSFC | C183: 96.55 | D183: 96.60 | E183: 93.95 | F183: 91.35 | G183: 88.70 | H183: 99.20 | I183: 101.85 | J183: 104.45 | K183: 99.25 | L183: 94 | M183: 21.22805
A184: 175 | B184: GSKCONS | C184: 6722.8 | D184: 6817.27 | E184: 6560.53 | F184: 6398.27 | G184: 6141.53 | H184: 6979.53 | I184: 7236.27 | J184: 7398.53 | K184: 7074 | L184: 6655 | M184: 0.19871
A185: 176 | B185: GSPL | C185: 181.95 | D185: 180.98 | E185: 179.07 | F185: 176.18 | G185: 174.27 | H185: 183.87 | I185: 185.78 | J185: 188.67 | K185: 182.9 | L185: 178.1 | M185: 5.36607
A186: 177 | B186: GUJALKALI | C186: 608.05 | D186: 605.58 | E186: 594.17 | F186: 580.28 | G186: 568.87 | H186: 619.47 | I186: 630.88 | J186: 644.77 | K186: 617 | L186: 591.7 | M186: 0.79481
A187: 178 | B187: GUJFLUORO | C187: 810.55 | D187: 801.60 | E187: 784.20 | F187: 757.85 | G187: 740.45 | H187: 827.95 | I187: 845.35 | J187: 871.70 | K187: 819 | L187: 775.25 | M187: 0.6381
A188: 179 | B188: GUJGASLTD | C188: 618.95 | D188: 621.78 | E188: 607.57 | F188: 596.18 | G188: 581.97 | H188: 633.17 | I188: 647.38 | J188: 658.77 | K188: 636 | L188: 610.4 | M188: 0.22133
A189: 180 | B189: GULFOILLUB | C189: 741.15 | D189: 747.07 | E189: 735.18 | F189: 729.22 | G189: 717.33 | H189: 753.03 | I189: 764.92 | J189: 770.88 | K189: 758.95 | L189: 741.1 | M189: 0.10165
A190: 181 | B190: GVKPIL | C190: 7.8 | D190: 7.75 | E190: 7.60 | F190: 7.40 | G190: 7.25 | H190: 7.95 | I190: 8.10 | J190: 8.30 | K190: 7.9 | L190: 7.55 | M190: 21.28278
A191: 182 | B191: HATHWAY | C191: 27.75 | D191: 27.20 | E191: 26.60 | F191: 25.45 | G191: 24.85 | H191: 28.35 | I191: 28.95 | J191: 30.10 | K191: 27.8 | L191: 26.05 | M191: 48.66613
A192: 183 | B192: HATSUN | C192: 672.95 | D192: 676.37 | E192: 658.78 | F192: 644.62 | G192: 627.03 | H192: 690.53 | I192: 708.12 | J192: 722.28 | K192: 693.95 | L192: 662.2 | M192: 0.05747
A193: 184 | B193: HAVELLS | C193: 612.9 | D193: 607.48 | E193: 591.97 | F193: 571.03 | G193: 555.52 | H193: 628.42 | I193: 643.93 | J193: 664.87 | K193: 623 | L193: 586.55 | M193: 26.49695
A194: 185 | B194: HCC | C194: 11.55 | D194: 11.47 | E194: 10.93 | F194: 10.32 | G194: 9.78 | H194: 12.08 | I194: 12.62 | J194: 13.23 | K194: 12 | L194: 10.85 | M194: 170.95023
A195: 186 | B195: HCL-INSYS | C195: 23.5 | D195: 23.35 | E195: 22.20 | F195: 20.90 | G195: 19.75 | H195: 24.65 | I195: 25.80 | J195: 27.10 | K195: 24.5 | L195: 22.05 | M195: 13.72771
A196: 187 | B196: HCLTECH | C196: 1091.3 | D196: 1088.93 | E196: 1076.17 | F196: 1061.03 | G196: 1048.27 | H196: 1104.07 | I196: 1116.83 | J196: 1131.97 | K196: 1101.7 | L196: 1073.8 | M196: 23.6536
A197: 188 | B197: HDFC | C197: 1797.55 | D197: 1800.88 | E197: 1782.32 | F197: 1767.08 | G197: 1748.52 | H197: 1816.12 | I197: 1834.68 | J197: 1849.92 | K197: 1819.45 | L197: 1785.65 | M197: 38.08517
A198: 189 | B198: HDFCBANK | C198: 2031.15 | D198: 2030.12 | E198: 2008.03 | F198: 1984.92 | G198: 1962.83 | H198: 2053.23 | I198: 2075.32 | J198: 2098.43 | K198: 2052.2 | L198: 2007 | M198: 38.33037
A199: 190 | B199: HDIL | C199: 20.65 | D199: 20.30 | E199: 19.50 | F199: 18.35 | G199: 17.55 | H199: 21.45 | I199: 22.25 | J199: 23.40 | K199: 21.1 | L199: 19.15 | M199: 64.41508
A200: 191 | B200: HEG | C200: 3438.15 | D200: 3395.78 | E200: 3302.57 | F200: 3166.98 | G200: 3073.77 | H200: 3531.37 | I200: 3624.58 | J200: 3760.17 | K200: 3489 | L200: 3260.2 | M200: 1.81353
A201: 192 | B201: HEIDELBERG | C201: 138.6 | D201: 140.80 | E201: 133.90 | F201: 129.20 | G201: 122.30 | H201: 145.50 | I201: 152.40 | J201: 157.10 | K201: 147.7 | L201: 136.1 | M201: 1.59777
A202: 193 | B202: HERITGFOOD | C202: 504.55 | D202: 504.15 | E202: 496.40 | F202: 488.25 | G202: 480.50 | H202: 512.30 | I202: 520.05 | J202: 528.20 | K202: 511.9 | L202: 496 | M202: 0.19012
A203: 194 | B203: HEROMOTOCO | C203: 2913.5 | D203: 2936.17 | E203: 2877.33 | F203: 2841.17 | G203: 2782.33 | H203: 2972.33 | I203: 3031.17 | J203: 3067.33 | K203: 2995 | L203: 2900 | M203: 5.03936
A204: 195 | B204: HEXAWARE | C204: 433.9 | D204: 441.12 | E204: 422.83 | F204: 411.77 | G204: 393.48 | H204: 452.18 | I204: 470.47 | J204: 481.53 | K204: 459.4 | L204: 430.05 | M204: 22.03202
A205: 196 | B205: HFCL | C205: 19.75 | D205: 19.92 | E205: 19.38 | F205: 19.02 | G205: 18.48 | H205: 20.28 | I205: 20.82 | J205: 21.18 | K205: 20.45 | L205: 19.55 | M205: 29.8586
A206: 197 | B206: HIMATSEIDE | C206: 236.1 | D206: 235.32 | E206: 224.58 | F206: 213.07 | G206: 202.33 | H206: 246.83 | I206: 257.57 | J206: 269.08 | K206: 246.05 | L206: 223.8 | M206: 0.75357
... 304 more rows

Sheet Bulk Deals
E6: Back To Main Page
A7: Subject : | B7: BULK DEAL | D7: =Main!B10 -> 2018-10-04
A9: Date | B9: Scrip code | C9: Scrip Name | D9: Client Name | E9: Buy / Sell | F9: Quantity Traded | G9: Trade Price / Wt.Avg.trade price | H9: Exchange
A10: 2018-10-03 | B10: 540697 | C10: AMFL | D10: PANNU BALWANTSINGH UJAGARSINGH | E10: BUY | F10: 64,000 | G10: 9.18 | H10: BSE
A11: 2018-10-03 | B11: 540024 | C11: ASHARI | D11: VIJAY KUMAR AGGARWAL | E11: SELL | F11: 110,000 | G11: 27.2 | H11: BSE
A12: 2018-10-03 | B12: 540024 | C12: ASHARI | D12: RESOURCE OPZIONE CONSULTANCY PRIVATE LIMITED | E12: BUY | F12: 107,500 | G12: 27.1 | H12: BSE
A13: 2018-10-03 | B13: 540024 | C13: ASHARI | D13: VIBRANT SECURITIES PRIVATE LIMITED | E13: SELL | F13: 65,002 | G13: 27.2 | H13: BSE
A14: 2018-10-03 | B14: 540024 | C14: ASHARI | D14: VIBRANT SECURITIES PRIVATE LIMITED | E14: BUY | F14: 65,002 | G14: 27.1 | H14: BSE
A15: 2018-10-03 | B15: 540024 | C15: ASHARI | D15: VAGABOUND TRADEX PRIVATE LIMITED | E15: SELL | F15: 50,000 | G15: 27.2 | H15: BSE
A16: 2018-10-03 | B16: 541865 | C16: ASPL | D16: VIBRANT INVESTMENTS | E16: SELL | F16: 60,000 | G16: 26.6 | H16: BSE
A17: 2018-10-03 | B17: 541865 | C17: ASPL | D17: SAPNA MAHESH RUPANI | E17: BUY | F17: 60,000 | G17: 26.6 | H17: BSE
A18: 2018-10-03 | B18: 530859 | C18: COSBOARD | D18: RATTAN CHAND | E18: SELL | F18: 59,000 | G18: 21.62 | H18: BSE
A19: 2018-10-03 | B19: 530859 | C19: COSBOARD | D19: RATTAN CHAND | E19: BUY | F19: 59,000 | G19: 20.82 | H19: BSE
A20: 2018-10-03 | B20: 530859 | C20: COSBOARD | D20: RUCHIKA JAIN | E20: SELL | F20: 32,000 | G20: 22.08 | H20: BSE
A21: 2018-10-03 | B21: 530859 | C21: COSBOARD | D21: RUCHIKA JAIN | E21: BUY | F21: 32,000 | G21: 19.93 | H21: BSE
A22: 2018-10-03 | B22: 530859 | C22: COSBOARD | D22: LOVE BANSAL | E22: SELL | F22: 65,695 | G22: 20.61 | H22: BSE
A23: 2018-10-03 | B23: 530859 | C23: COSBOARD | D23: LOVE BANSAL | E23: BUY | F23: 64,397 | G23: 21.73 | H23: BSE
A24: 2018-10-03 | B24: 530859 | C24: COSBOARD | D24: KUSH BANSAL | E24: SELL | F24: 48,500 | G24: 20.44 | H24: BSE
A25: 2018-10-03 | B25: 530859 | C25: COSBOARD | D25: KUSH BANSAL | E25: BUY | F25: 49,250 | G25: 21.78 | H25: BSE
A26: 2018-10-03 | B26: 539770 | C26: DARJEELING | D26: VEENA RAJESH SHAH | E26: BUY | F26: 30,000 | G26: 65 | H26: BSE
A27: 2018-10-03 | B27: 539770 | C27: DARJEELING | D27: KRUTI KEVIN KAPADIA | E27: SELL | F27: 25,500 | G27: 65 | H27: BSE
A28: 2018-10-03 | B28: 539559 | C28: DDIL | D28: DHIRAJ A SHARMA | E28: SELL | F28: 55,500 | G28: 10.05 | H28: BSE
A29: 2018-10-03 | B29: 539559 | C29: DDIL | D29: PRAKASH R SOLANKI | E29: BUY | F29: 55,548 | G29: 10.05 | H29: BSE
A30: 2018-10-03 | B30: 502933 | C30: KATRSPG | D30: KAMLESH J JHAVERI | E30: SELL | F30: 28,967 | G30: 7.13 | H30: BSE
A31: 2018-10-03 | B31: 531456 | C31: MINAXI | D31: MUKESHBHAI PURSHOTTAMDAS PATEL | E31: BUY | F31: 278,118 | G31: 0.95 | H31: BSE
A32: 2018-10-03 | B32: 531083 | C32: NIHARINF | D32: LAVANYA RAVULAKOLLU | E32: SELL | F32: 40,000 | G32: 13.55 | H32: BSE
A33: 2018-10-03 | B33: 531157 | C33: ORGCOAT | D33: MEHUL KRISHNAKANT SHAH | E33: SELL | F33: 40,000 | G33: 10.93 | H33: BSE
A34: 2018-10-03 | B34: 531157 | C34: ORGCOAT | D34: AJAY RAJNIKANT SHAH | E34: BUY | F34: 40,000 | G34: 10.93 | H34: BSE
A35: 2018-10-03 | B35: 531512 | C35: ORIENTTR | D35: RAVINDER KAUR BEDI | E35: BUY | F35: 100,000 | G35: 7.32 | H35: BSE
A36: 2018-10-03 | B36: 531512 | C36: ORIENTTR | D36: KRISHAN KUMAR AGRAWAL | E36: SELL | F36: 100,000 | G36: 7.32 | H36: BSE
A37: 2018-10-03 | B37: 526905 | C37: PADMAIND | D37: BHARATI ARVIND SHAH | E37: SELL | F37: 107 | G37: 107.95 | H37: BSE
A38: 2018-10-03 | B38: 526905 | C38: PADMAIND | D38: BHARATI ARVIND SHAH | E38: BUY | F38: 33,398 | G38: 105.63 | H38: BSE
A39: 2018-10-03 | B39: 541945 | C39: RANJEET | D39: NIKUNJ RAMESHBHAI SAKHIYA | E39: SELL | F39: 36,000 | G39: 27 | H39: BSE
A40: 2018-10-03 | B40: 541945 | C40: RANJEET | D40: MAHESH K SHAH HUF | E40: SELL | F40: 54,000 | G40: 27.03 | H40: BSE
A41: 2018-10-03 | B41: 541945 | C41: RANJEET | D41: VAISHALI JIGNESH SHAH | E41: BUY | F41: 48,000 | G41: 27 | H41: BSE
A42: 2018-10-03 | B42: 541945 | C42: RANJEET | D42: JIGNESH BABULAL SHAH H.U.F | E42: BUY | F42: 42,000 | G42: 27 | H42: BSE
A43: 2018-10-03 | B43: 514264 | C43: SEASONST | D43: RATTAN CHAND | E43: SELL | F43: 67,980 | G43: 11.83 | H43: BSE
A44: 2018-10-03 | B44: 514264 | C44: SEASONST | D44: RATTAN CHAND | E44: BUY | F44: 67,980 | G44: 10.89 | H44: BSE
A45: 2018-10-03 | B45: 514264 | C45: SEASONST | D45: LOVE BANSAL | E45: SELL | F45: 46,500 | G45: 10.88 | H45: BSE
A46: 2018-10-03 | B46: 514264 | C46: SEASONST | D46: LOVE BANSAL | E46: BUY | F46: 51,461 | G46: 11.74 | H46: BSE
A47: 2018-10-03 | B47: 505515 | C47: SHYMINV | D47: SWAPNIL KASHINATH KAWLI | E47: BUY | F47: 70,000 | G47: 32.8 | H47: BSE
A48: 2018-10-03 | B48: 541967 | C48: SKYGOLD | D48: PURAVVIRATBHAISHAH | E48: SELL | F48: 28,000 | G48: 180.45 | H48: BSE
A49: 2018-10-03 | B49: 541967 | C49: SKYGOLD | D49: MUKESH COMMOTRADE LTD | E49: BUY | F49: 40,000 | G49: 180.45 | H49: BSE
A50: 2018-10-03 | B50: 541967 | C50: SKYGOLD | D50: VIRATKUMAR SEVANTILAL SHAH | E50: SELL | F50: 53,600 | G50: 180.45 | H50: BSE
A51: 2018-10-03 | B51: 541967 | C51: SKYGOLD | D51: N | E51: SELL | F51: 30,400 | G51: 180.45 | H51: BSE
A52: 2018-10-03 | B52: 541967 | C52: SKYGOLD | D52: SAGAR RAJESHBHAI JHAVERI | E52: SELL | F52: 56,000 | G52: 180.45 | H52: BSE
A53: 2018-10-03 | B53: 541967 | C53: SKYGOLD | D53: NOPEA CAPITAL SERVICES PRIVATE LIMITED | E53: BUY | F53: 160,000 | G53: 180.44 | H53: BSE
A54: 2018-10-03 | B54: 532025 | C54: SOWBHAGYA | D54: AVINASH TIKAMCHAND JAIN | E54: SELL | F54: 93,000 | G54: 1.74 | H54: BSE
A55: 2018-10-03 | B55: 532025 | C55: SOWBHAGYA | D55: VINAP AVINASH JAIN | E55: SELL | F55: 68,035 | G55: 1.74 | H55: BSE
A56: 2018-10-03 | B56: 532025 | C56: SOWBHAGYA | D56: PINNAMANENI ESTATES PRIVATE LIMITED | E56: BUY | F56: 164,835 | G56: 1.74 | H56: BSE
A57: 2018-10-03 | B57: 539835 | C57: SUPERIOR | D57: SIYA RAM BANSAL HUF | E57: SELL | F57: 25,000 | G57: 14.65 | H57: BSE
A58: 2018-10-03 | B58: 512064 | C58: VISTR | D58: M M GANDHI | E58: BUY | F58: 4,000 | G58: 45.5 | H58: BSE
A59: 2018-10-03 | B59: 512064 | C59: VISTR | D59: WARDEN INTERNATIONAL AGENCIES PRIVATE LIMITED | E59: SELL | F59: 2,500 | G59: 45.5 | H59: BSE
A60: 2018-10-03 | B60: 512064 | C60: VISTR | D60: RISHABH ENTERPRISES LTD | E60: SELL | F60: 1,500 | G60: 45.5 | H60: BSE
A61: 2018-10-03 | B61: 516030 | C61: YASHPPR | D61: ANKUR JALAN | E61: SELL | F61: 200,000 | G61: 61.86 | H61: BSE
A62: 2018-10-03 | B62: AHLADA | C62: Ahlada Engineers Limited | D62: JAGDISH N MASTER | E62: BUY | F62: 128,000 | G62: 135 | H62: NSE
A63: 2018-10-03 | B63: GSS | C63: GSS Infotech Limited | D63: SIRSA DEPOSITS AND ADVANCES LIMITED | E63: BUY | F63: 95,000 | G63: 107.26 | H63: NSE
A64: 2018-10-03 | B64: INFIBEAM | C64: Infibeam Avenues Limited | D64: THE EZRAH CHARITABLE TRUST | E64: BUY | F64: 3,882,694 | G64: 73.99 | H64: NSE
A65: 2018-10-03 | B65: JETAIRWAYS | C65: Jet Airways (India) Ltd. | D65: ALPHAGREP SECURITIES PRIVATE LIMITED | E65: BUY | F65: 992,350 | G65: 175.41 | H65: NSE
A66: 2018-10-03 | B66: JETAIRWAYS | C66: Jet Airways (India) Ltd. | D66: SHAASTRA SECURITIES TRADING PRIVATE LIMITED | E66: BUY | F66: 1,028,531 | G66: 175.13 | H66: NSE
A67: 2018-10-03 | B67: JPASSOCIAT | C67: Jaiprakash Associates Lim | D67: SHAASTRA SECURITIES TRADING PRIVATE LIMITED | E67: BUY | F67: 12,987,892 | G67: 7.14 | H67: NSE
A68: 2018-10-03 | B68: KARDA | C68: Karda Constructions Ltd | D68: MBL & COMPANY LTD. | E68: BUY | F68: 62,335 | G68: 155.45 | H68: NSE
A69: 2018-10-03 | B69: MITTAL | C69: Mittal Life Style Limited | D69: CHOICE EQUITY BROKING PRIVATE LIMITED | E69: BUY | F69: 48,000 | G69: 22.5 | H69: NSE
A70: 2018-10-03 | B70: SPECTRUM | C70: Spectrum Electric Ind Ltd | D70: FESTINO VINCOM LIMITED | E70: BUY | F70: 500000 | G70: 65.5 | H70: NSE
A71: 2018-10-03 | B71: SPECTRUM | C71: Spectrum Electric Ind Ltd | D71: SUNIL PRALHAD JANGLE | E71: BUY | F71: 366000 | G71: 65.8 | H71: NSE
A72: 2018-10-03 | B72: TOUCHWOOD | C72: Touchwood Entertain Ltd. | D72: MANOJ AGARWAL | E72: BUY | F72: 81000 | G72: 35 | H72: NSE
A73: 2018-10-03 | B73: TOUCHWOOD | C73: Touchwood Entertain Ltd. | D73: SUNIL KUMAR | E73: BUY | F73: 21000 | G73: 33.71 | H73: NSE
A74: 2018-10-03 | B74: A2ZINFRA | C74: A2z Infra Engineering Ltd | D74: GLOBE FINCAP LTD | E74: SELL | F74: 1804448 | G74: 9.23 | H74: NSE
A75: 2018-10-03 | B75: AHLADA | C75: Ahlada Engineers Limited | D75: RESONANCE OPPORTUNITIES FUND | E75: SELL | F75: 128000 | G75: 135 | H75: NSE
A76: 2018-10-03 | B76: JETAIRWAYS | C76: Jet Airways (India) Ltd. | D76: ALPHAGREP SECURITIES PRIVATE LIMITED | E76: SELL | F76: 992350 | G76: 175.49 | H76: NSE
A77: 2018-10-03 | B77: JETAIRWAYS | C77: Jet Airways (India) Ltd. | D77: SHAASTRA SECURITIES TRADING PRIVATE LIMITED | E77: SELL | F77: 1028531 | G77: 175.45 | H77: NSE
A78: 2018-10-03 | B78: JPASSOCIAT | C78: Jaiprakash Associates Lim | D78: SHAASTRA SECURITIES TRADING PRIVATE LIMITED | E78: SELL | F78: 12987892 | G78: 7.14 | H78: NSE
A79: 2018-10-03 | B79: KARDA | C79: Karda Constructions Ltd | D79: MBL & COMPANY LTD. | E79: SELL | F79: 62335 | G79: 155.79 | H79: NSE
A80: 2018-10-03 | B80: MITTAL | C80: Mittal Life Style Limited | D80: CHOICE EQUITY BROKING PRIVATE LIMITED | E80: SELL | F80: 18000 | G80: 21.23 | H80: NSE
A81: 2018-10-03 | B81: MPTODAY | C81: M P Today Media Limited | D81: MEHUL S AGARWAL | E81: SELL | F81: 48000 | G81: 36.27 | H81: NSE
A82: 2018-10-03 | B82: SPECTRUM | C82: Spectrum Electric Ind Ltd | D82: HARSHA RAJESHBHAI JHAVERI | E82: SELL | F82: 120000 | G82: 65.5 | H82: NSE
A83: 2018-10-03 | B83: SPECTRUM | C83: Spectrum Electric Ind Ltd | D83: RAJESH NANUBHAI JHAVERI | E83: SELL | F83: 120000 | G83: 65.5 | H83: NSE
A84: 2018-10-03 | B84: SPECTRUM | C84: Spectrum Electric Ind Ltd | D84: VICKY RAJESH JHAVERI | E84: SELL | F84: 120000 | G84: 65.5 | H84: NSE
A85: 2018-10-03 | B85: SPECTRUM | C85: Spectrum Electric Ind Ltd | D85: VIRALI VICKY JHAVERI | E85: SELL | F85: 120000 | G85: 65.5 | H85: NSE
A86: 2018-10-03 | B86: TOUCHWOOD | C86: Touchwood Entertain Ltd. | D86: BEELINE BROKING LTD | E86: SELL | F86: 21000 | G86: 33.71 | H86: NSE
A87: 2018-10-03 | B87: TOUCHWOOD | C87: Touchwood Entertain Ltd. | D87: DIMPLE BHARATKUMAR JAIN | E87: SELL | F87: 24000 | G87: 35 | H87: NSE

Sheet Call Tracker (Equity & F&O)
M5: Back To Main Page
A6: Retail Research Technical Calls & Fundamental Performance Report for the month of October -2018
M7: =Main!B10 -> 2018-10-04
B8: Positional Call
A9: Sr.no | B9: Date | D9: Company | E9: Rec | F9: Rec Price | G9: Stop Loss*** | H9: Call Closed At | I9: Target | J9: Remark | K9: Profit / Loss per Share | L9: Gain / Loss % | M9: Status | N9: Closed Date | O9: NSE Closed Price
A10: 1 | B10: 2018-09-24 | D10: SUNPHARMA | E10: Buy | F10: 630-635 | G10: 610 | I10: 670-680 | J10: Open | O10: =VLOOKUP(D10,Sheet2!$A$1:M2213,6,0) -> 620.85 | R10: H
A11: 2 | B11: 2018-09-26 | D11: SBIN | E11: Buy | F11: 266 | G11: 249.7 | H11: 274.5 | I11: 285-295 | J11: Profit of Rs. 8.50/- | K11: =H11-F11 -> 8.5 | L11: =K11/F11 -> 3.20% | M11: Successful | N11: 2018-10-01 | R11: R
A12: 3 | B12: 2018-09-27 | D12: ITC | E12: Buy | F12: 291.5 | G12: 278 | H12: 301.5 | I12: 320 | J12: Profit of Rs. 10/- | K12: 10 | L12: =K12/F12 -> 3.43% | M12: Successful | N12: 2018-10-01 | R12: H
A13: 4 | B13: 2018-09-28 | D13: RBLBANK | E13: Buy | F13: 520 | G13: 499 | H13: 538 | I13: 570-580 | J13: Profit of Rs. 18/- | K13: 18 | L13: =K13/F13 -> 3.46% | M13: Successful | N13: 2018-10-03 | R13: H
A14: 5 | B14: 2018-09-28 | D14: PIDILITIND | E14: Buy | F14: 1049.5 | G14: 1017.7 | H14: 998 | I14: 1100-1120 | J14: Loss of Rs. 51.50/- | K14: -51.5 | L14: =K14/F14 -> -4.91% | M14: Unsuccessful | N14: 2018-10-03 | R14: R
A15: 6 | B15: 2018-10-01 | D15: M&MFIN | E15: Buy | F15: 400 | G15: 379 | H15: 414 | I15: 440 | J15: Profit of Rs. 14/- | K15: 14 | L15: =K15/F15 -> 3.50% | M15: Successful | N15: 2018-10-01 | R15: H
A16: 7 | B16: 2018-10-01 | D16: CONCOR | E16: Buy | F16: 634 | G16: 598.7 | H16: 659 | I16: 690-700 | J16: Profit of Rs. 25/- | K16: 25 | L16: 3.94% | M16: Successful | N16: 2018-10-01 | R16: R
A17: 8 | B17: 2018-10-03 | D17: SUDARSCHEM | E17: Buy | F17: 400-404 | G17: 384.4 | I17: 430-440 | J17: Open | O17: =VLOOKUP(D17,Sheet2!$A$1:M2220,6,0) -> 396.55 | R17: R
A18: 9 | B18: 2018-10-03 | D18: CEATLTD | E18: Buy | F18: 1128-1138 | G18: 1078 | I18: 1200-1220 | J18: Open | O18: =VLOOKUP(D18,Sheet2!$A$1:M2221,6,0) -> 1109.15 | R18: H
A19: 10 | B19: 2018-10-03 | D19: INDUSINDBK | E19: Buy | F19: 1650-1660 | G19: 1597.7 | I19: 1760-1780 | J19: Open | O19: =VLOOKUP(D19,Sheet2!$A$1:M2222,6,0) -> 1638.7 | R19: R
A31: CLBS = Closing Basis *** | F31: Reinitiated $
A32: Dividend adjusted <> | F32: Revised stoploss #
A33: Part book {}
A34: Master Trade High Risk
A35: Sr.no | B35: Date | D35: Company | E35: Rec | F35: Rec Price | G35: Stop Loss | H35: Call Closed At | I35: Target | J35: Remark | K35: Profit / Loss per share | L35: Gain / Loss per Lot | M35: Lot | N35: Status | O35: Closed Date
A36: 1 | B36: 2018-09-28 | D36: HDFCBANK OCT FUT | E36: Buy | F36: 2020 | G36: 1980 | H36: 2051.5 | I36: 2100 | J36: Profit of Rs 19.50/- | K36: =H36-F36 -> 31.5 | L36: 9750 | M36: 500 | N36: Successful | O36: 2018-10-01 | R36: H
D37: HDFCBANK OCT 2060 CE | E37: Sell | F37: 23 | H37: 35 | K37: =F37-H37 -> -12
A38: 2 | B38: 2018-10-01 | D38: NIFTY OCT FUT | E38: Buy | F38: 10920 | G38: 10780 | H38: 11030 | I38: 11200 | J38: Profit of Rs 85/- | K38: =H38-F38 -> 110 | L38: 6375 | M38: 75 | N38: Successful | O38: 2018-10-01 | R38: H
D39: NIFTY OCT 11100 CE | E39: Sell | F39: 112.5 | H39: 137.5 | K39: =F39-H39 -> -25
A40: 3 | B40: 2018-10-03 | D40: NIFTY OCT FUT | E40: Buy | F40: 10950-10955 | G40: 10850 | I40: 11150 | J40: Open | R40: H
A41: 4 | B41: 2018-10-03 | D41: MARUTI OCT FUT | E41: Buy | F41: 7300-7320 | G41: 7117 | I41: 7650-7700 | J41: Open | R41: R
A42: 5 | B42: 2018-10-03 | D42: RELIANCE OCT FUT | E42: Buy | F42: 1220-1225 | G42: 1195 | I42: 1270-1280 | J42: Open | R42: H
D43: RELIANCE OCT 1260 CE | E43: Sell | F43: 25-27
A49: Master Trade Medium Risk
A50: Sr.no | B50: Date | D50: Company | E50: Rec | F50: Rec Price | G50: Stop Loss | H50: Call Closed At | I50: Target | J50: Remark | K50: Profit/ Loss per lot | L50: Gain / Loss per Lot | M50: Lot | N50: Status | O50: Closed Date
B63: Smart Delivery Trade
A64: Sr.no | B64: Date | D64: Company | E64: Rec | F64: Rec Price | G64: Stop Loss*** | H64: Call Closed At | I64: Target | J64: Remark | K64: Profit / Loss per Share | L64: Gain / Loss % | M64: Status | N64: Closed Date | O64: NSE Closed Price
A65: 1 | B65: 2018-09-27 | D65: COLPAL | E65: Buy | F65: 1090-1098 | G65: 1058 | I65: 1140-1160 | J65: Open | O65: =VLOOKUP(D65,Sheet2!$A$1:M2262,6,0) -> 1089.2 | R65: H
A66: 2 | B66: 2018-10-03 | D66: BAJFINACE | E66: Buy | F66: 2210 | G66: 2140 | H66: 2275 | I66: 2300-2350 | J66: Profit of Rs. 65/- | K66: =H66-F66 -> 65 | L66: =K66/F66 -> 2.94% | M66: Successful | N66: 2018-10-03 | R66: H
A67: 3 | B67: 2018-10-03 | D67: ADVENZYMES | E67: Buy | F67: 185-187 | G67: 179.7 | I67: 197-200 | J67: Open | O67: =VLOOKUP(D67,Sheet2!$A$1:M2264,6,0) -> 186.5 | R67: R
A68: 4 | B68: 2018-10-03 | D68: LT | E68: Buy | F68: 1246-1253 | G68: 1195 | I68: 1330-1350 | J68: Open | O68: =VLOOKUP(D68,Sheet2!$A$1:M2265,6,0) -> 1245.45 | R68: H
A74: CLBS = Closing Basis *** | F74: Reinitiated $
A75: Dividend adjusted <> | F75: Revised stoploss #
B78: Momentum Call
A79: Sr.no | B79: Date | D79: Company | E79: Rec | F79: Rec Price | G79: Stop Loss | H79: Call Closed At | I79: Target | J79: Remark | K79: Profit / Loss per Share/Lot | L79: Gain / Loss % | M79: Gain / Loss per Lot | N79: Lot | O79: Status | P79: Closed Date | Q79: NSE Closed Price
A80: 1 | B80: 2018-10-01 | D80: INFRATEL OCT FUT | E80: Buy | F80: 268 | G80: 260 | H80: 260 | I80: 282 | J80: Loss of Rs.8/- | K80: =H80-F80 -> -8 | M80: =N80*K80 -> -13600 | N80: 1700 | O80: Unsuccessful | P80: 2018-10-03 | R80: N
A81: 2 | B81: 2018-10-03 | D81: TATASTEEL OCT FUT | E81: Buy | F81: 591-592 | G81: 579 | I81: 610 | J81: Open | R81: N
A82: 3 | B82: 2018-10-03 | D82: UPL OCT FUT | E82: Buy | F82: 646-648 | G82: 636 | I82: 665-670 | J82: Open | R82: N
A89: CLBS = Closing Basis ***
A90: Dividend adjusted <> | F90: Reinitiated $
F91: Revised stoploss #
B92: Quick Pick Intraday
A93: Sr.no | B93: Date | D93: Company | E93: Rec | F93: Rec Price | G93: Stop Loss*** | H93: Call Closed At | I93: Target | J93: Remark | K93: Profit / Loss per Share | L93: Status | M93: Closed Date
A107: Techno -Funda (positional)
A108: Sr.no | B108: Date | D108: Company | E108: Rec | F108: Rec Price | G108: Stop Loss*** | H108: Call Closed At | I108: Target | J108: Remark | K108: Profit / Loss per Share | L108: Gain / Loss % | M108: Status | N108: Closed Date | O108: NSE Closed Price
A111: CLBS = Closing Basis *** | F111: Reinitiated $
A112: Dividend adjusted <> | F112: Revised stoploss #
B117: Investment Idea
A118: Sr.no | B118: Date | D118: Company | E118: Rec | F118: Rec Price | G118: Point of Review | H118: Close Rate | I118: Target | J118: Remark | K118: Profit / Loss per Share | L118: Gain / Loss % | M118: Status | N118: Closed Date
A119: 1 | B119: 2013-11-01 | D119: L&T Finance Holding | E119: Accu | F119: 82.00 | G119: - | H119: 100 | I119: 100.00 | J119: Target Achieved | K119: =H119-F119 -> 18.00 | L119: =K119/F119 -> 21.95% | M119: Successful | N119: 2016-10-14
A120: 2 | B120: 2014-06-04 | D120: Finolex Inds | E120: Buy | F120: 257.00 | G120: - | H120: 300 | I120: 300.00 | J120: Target Achieved | K120: =H120-F120 -> 43.00 | L120: 16.73% | M120: Successful | N120: 2014-07-02
A121: =1+A120 -> 3 | B121: 2014-07-08 | D121: JK Cement | E121: Buy | F121: 393.00 | G121: - | H121: 468 | I121: 468.00 | J121: Target Achieved | K121: =H121-F121 -> 75.00 | L121: 19.08% | M121: Successful | N121: 2014-08-12
A122: 4 | B122: 2014-08-06 | D122: Finolex Cables | E122: Buy | F122: 205.00 | G122: - | H122: 275 | I122: 250.00 | J122: Target Achieved | K122: 70.00 | L122: 34.15% | M122: Successful | N122: 2014-11-19
A123: 5 | B123: 2014-09-04 | D123: Exide Inds | E123: Buy | F123: 162.00 | G123: - | H123: 190 | I123: 190.00 | J123: Target Achieved | K123: 28.00 | L123: 17.28% | M123: Successful | N123: 2015-01-02
A124: 6 | B124: 2014-09-04 | D124: Deepak Nitrite | E124: Buy | F124: 75.00 | G124: - | H124: 91.5 | I124: 95-100 | J124: Profit of Rs.16.50/- | K124: 16.50 | L124: 22.00% | M124: Successful | N124: 2014-11-11
A125: 7 | B125: 2014-10-01 | D125: Mercks | E125: Buy | F125: 850.00 | G125: - | H125: 982.5 | I125: 1050.00 | J125: Profit of Rs.132.50/- | K125: 132.50 | L125: 15.59% | M125: Successful | N125: 2015-02-04
A126: 8 | B126: 2014-10-01 | D126: Grindwell Norton | E126: Buy | F126: 475.00 | G126: - | H126: 515 | I126: 600.00 | J126: Profit of Rs.40/- | K126: 40.00 | L126: 8.42% | M126: Successful | N126: 2014-10-27
A127: 9 | B127: 2014-10-01 | D127: Snowman Logistics | E127: Buy | F127: 86.00 | G127: - | H127: 99 | I127: 140.00 | J127: Profit of Rs.13.00/- | K127: 13.00 | L127: 15.12% | M127: Successful | N127: 2014-10-27
A128: 10 | B128: 2014-10-14 | D128: Birla Corp | E128: Buy | F128: 496.60 | G128: - | H128: 621 | I128: 580.00 | J128: Target Achieved | K128: 124.40 | L128: 25.05% | M128: Successful | N128: 2016-08-23
A129: 11 | B129: 2014-10-14 | D129: Ultratech Cem | E129: Buy | F129: 2481.90 | G129: - | H129: 2840 | I129: 2870.00 | J129: Profit of Rs.358.10/- | K129: 358.10 | L129: 14.43% | M129: Successful | N129: 2015-01-13
A130: =1+A127 -> 10 | B130: 2014-10-16 | D130: Sintex Inds | E130: Buy | F130: 84.50 | G130: - | H130: 93 | I130: 110.00 | J130: Profit of Rs.8.50/- | K130: 8.50 | L130: 10.06% | M130: Successful | N130: 2014-10-27
A131: =1+A130 -> 11 | B131: 2014-10-16 | D131: HSIL | E131: Buy | F131: 401.00 | G131: - | H131: 428 | I131: 450.00 | J131: Profit of Rs.27.00/- | K131: 27.00 | L131: 6.73% | M131: Successful | N131: 2015-01-16
A132: 12 | B132: 2014-10-16 | D132: Eveready Inds | E132: Buy | F132: 101.00 | G132: - | H132: 112 | I132: 120.00 | J132: Profit of Rs.11.00/- | K132: 11.00 | L132: 10.89% | M132: Successful | N132: 2014-10-27
A133: 13 | B133: 2014-11-11 | D133: Pennar Inds | E133: Buy | F133: 59.00 | G133: - | H133: 76 | I133: 76.00 | J133: Target Achieved | K133: 17.00 | L133: 28.81% | M133: Successful | N133: 2017-10-24
A134: 14 | B134: 2014-11-11 | D134: Snowman Logistics | E134: Buy | F134: 99.00 | G134: - | H134: 120 | I134: 120.00 | J134: Profit of Rs.21/- | K134: 21.00 | L134: 21.21% | M134: Successful | N134: 2014-11-17
A135: 15 | B135: 2014-11-13 | D135: Dharamsi Morarji Chem | E135: Buy | F135: 22.00 | G135: - | H135: 33.55 | I135: 32.00 | J135: Profit of Rs 11.55/- | K135: 11.55 | L135: 52.50% | M135: Successful | N135: 2015-07-03
A136: 16 | B136: 2014-12-03 | D136: Tatachem | E136: Buy | F136: 440.00 | G136: - | H136: 520 | I136: 520.00 | J136: Profit of Rs 80.00/- | K136: 80.00 | L136: 18.18% | M136: Successful | N136: 2015-07-23
A137: 17 | B137: 2014-12-03 | D137: Advanta | E137: Buy | F137: 360.00 | G137: - | H137: 427 | I137: 425.00 | J137: Profit of Rs.67.00/- | K137: 67.00 | L137: 18.61% | M137: Successful | N137: 2015-02-23
A138: 18 | B138: 2015-01-08 | D138: GDL | E138: Buy | F138: 360.00 | G138: - | H138: 455 | I138: 420.00 | J138: Profit of Rs.95.00/- | K138: 95.00 | L138: 26.39% | M138: Successful | N138: 2015-01-20
A139: 19 | B139: 2015-01-08 | D139: NRB Bearing | E139: Buy | F139: 130.00 | H139: 175.5 | I139: 165.00 | J139: Profit of Rs 45.50/- | K139: 45.50 | L139: 35.00% | M139: Successful | N139: 2017-12-19
A140: 20 | B140: 2015-02-05 | D140: GSFC | E140: Accu | F140: 98.00 | H140: 120 | I140: 120.00 | J140: Target Achieved | K140: 22.00 | L140: 22.45% | M140: Successful | N140: 2017-01-18
A141: 21 | B141: 2015-02-05 | D141: Sundrmfast | E141: Accu | F141: 196.00 | H141: 262 | I141: 255.00 | J141: Target Achieved | K141: 66.00 | L141: 33.67% | M141: Successful | N141: 2016-08-17
A142: 22 | B142: 2015-03-04 | D142: GPPL | E142: Accu | F142: 230-240 | I142: 280-285 | J142: Open
A143: 23 | B143: 2015-03-04 | D143: ORIENTCEM | E143: Accu | F143: 185.00 | H143: 224 | I143: 220-225 | J143: Target Achieved | K143: 39.00 | L143: =K143/F143 -> 21.08% | M143: Successful | N143: 2016-10-04
A144: 24 | B144: 2015-03-27 | D144: PFS | E144: Accu | F144: 49-50 | I144: 67.00 | J144: Open
A145: 25 | B145: 2015-03-30 | D145: Walchandnagar Ind Ltd | E145: Accu | F145: 183.50 | H145: 219 | I145: 218.00 | J145: Profit of Rs.35.50/- | K145: 35.50 | L145: =K145/F145 -> 19.35% | M145: Successful | N145: 2015-04-09
A146: 26 | B146: 2015-04-20 | D146: Kalpataru Power Transmission Ltd | E146: Accu | F146: =(227+237)/2 -> 232.00 | H146: 298 | I146: 298.00 | J146: Target Achieved | K146: 66.00 | L146: 28.45% | M146: Successful | N146: 2017-03-29
A147: 27 | B147: 2015-05-04 | D147: Mastek Ltd | E147: Buy | F147: 385.00 | H147: =212.5+331 -> 543.5 | I147: 510.00 | J147: Profit of Rs 158.50/- | K147: 158.50 | L147: 41.17% | M147: Successful | N147: 2015-08-19
A148: 28 | B148: 2015-05-04 | D148: Suprajit Eng | E148: Buy | F148: 115.50 | H148: 146 | I148: 142.00 | J148: Profit of Rs 30.50/- | K148: 30.50 | L148: 26.41% | M148: Successful | N148: 2015-07-17
A149: 29 | B149: 2015-05-27 | D149: TCI | E149: Buy | F149: 237.50 | H149: 279.5 | I149: 278.00 | J149: Target Achieved | K149: 42.00 | L149: 17.68% | M149: Successful | N149: 2015-08-06
A150: 30 | B150: 2015-06-19 | D150: HSIL | E150: Accu | F150: 340.00 | H150: 448 | I150: 448.00 | J150: Target Achieved | K150: 108.00 | L150: 31.76% | M150: Successful | N150: 2017-10-10
A151: 31 | B151: 2015-07-06 | D151: Capital First | E151: Accu | F151: 390.00 | H151: 460 | I151: 460.00 | J151: Target Achieved | K151: 70.00 | L151: 17.95% | M151: Successful | N151: 2016-04-18
A152: 32 | B152: 2015-07-10 | D152: Dolphin OffShore | E152: Accu | F152: 122.5 | H152: 61.00 | I152: 172.00 | J152: Loss of Rs.61.50/- | K152: -61.50 | L152: -50.20% | M152: Unsuccessful | N152: 2018-08-21
A153: 33 | B153: 2015-08-03 | D153: Allcargo logistics | E153: Accu | F153: 297.50 | H153: 350 | I153: 360.00 | J153: Profit of Rs 52.50/- | K153: 52.50 | L153: =K153/F153 -> 17.65% | M153: Successful | N153: 2015-08-16
A154: 34 | B154: 2015-08-03 | D154: Camline Fine | E154: Accu | F154: 115.50 | H154: 149 | I154: 140.00 | J154: Profit of Rs 33.50/- | K154: 33.50 | L154: 29.00% | M154: Successful | N154: 2017-01-05
A155: 35 | B155: 2015-09-04 | D155: TCI | E155: Accu | F155: 226.00 | H155: 292 | I155: 292.00 | J155: Target Achieved | K155: 66.00 | L155: 29.20% | M155: Successful | N155: 2015-10-09
A156: 36 | B156: 2015-09-07 | D156: Kalpataru Power Transmission Ltd | E156: Accu | F156: 232.50 | H156: 312.5 | I156: 310.00 | J156: Target Achieved | K156: 80.00 | L156: 34.41% | M156: Successful | N156: 2017-03-29
A157: 37 | B157: 2015-09-21 | D157: LLOYD ELECTRIC & ENG LTD | E157: Accu | F157: 196.50 | H157: 238 | I157: 238.00 | J157: Target Achieved | K157: 41.50 | L157: 21.12% | M157: Successful | N157: 2015-10-14
A158: 38 | B158: 2015-09-24 | D158: L&T Finance Holding | E158: Accu | F158: 65.00 | H158: 82 | I158: 82.00 | J158: Target Achieved | K158: 17.00 | L158: 26.15% | M158: Successful | N158: 2016-07-27
A159: 39 | B159: 2015-10-14 | D159: KEC International ltd | E159: Accu | F159: 144.00 | H159: 182.5 | I159: 181.00 | J159: Target Achieved | K159: 38.50 | L159: 26.74% | M159: Successful | N159: 2017-03-23
A160: 40 | B160: 2015-10-14 | D160: Gruh Finance | E160: Accu | F160: 264.00 | H160: 311 | I160: 311.00 | J160: Target Achieved | K160: 47.00 | L160: 17.80% | M160: Successful | N160: 2016-08-22
A161: 41 | B161: 2015-11-10 | D161: Pidilitind | E161: Buy | F161: 549.50 | H161: 630 | I161: 630.00 | J161: Target Achieved | K161: 80.50 | L161: 14.65% | M161: Successful | N161: 2016-02-19
A162: 42 | B162: 2015-12-04 | D162: Zensar Technology | E162: Accu | F162: 1027.50 | H162: 1315 | I162: 1250.00 | J162: Target Achieved | K162: =H162-F162 -> 287.50 | L162: 27.98% | M162: Successful | N162: 2018-05-24
A163: 43 | B163: 2015-12-29 | D163: Vinati Organics Ltd | E163: Accu | F163: 465.00 | H163: 540 | I163: 540.00 | J163: Target Achieved | K163: 75.00 | L163: =K163/F163 -> 16.13% | M163: Successful | N163: 2016-06-09
A164: 44 | B164: 2016-01-11 | D164: GSFC | E164: Buy | F164: 81.00 | H164: 110 | I164: 110.00 | J164: Target Achieved | K164: 29.00 | L164: 35.80% | M164: Successful | N164: 2017-01-10
A165: 45 | B165: 2016-01-13 | D165: SSWL | E165: Buy | F165: 417.50 | H165: 547 | I165: 535.00 | J165: Target Achieved | K165: 129.50 | L165: 31.02% | M165: Successful | N165: 2016-07-27
A166: 46 | B166: 2016-02-08 | D166: Persistent System Ltd | E166: Accu | F166: 650.00 | H166: 800 | I166: 800.00 | J166: Target Achieved | K166: 150.00 | L166: 23.08% | M166: Successful | N166: 2018-02-23
A167: 47 | B167: 2016-03-04 | D167: UPL | E167: Accu | F167: 437.50 | H167: 504.5 | I167: 522.00 | J167: Profit of Rs.67/- | K167: 67.00 | L167: 15.31% | M167: Successful | N167: 2016-04-20
A168: 48 | B168: 2016-03-09 | D168: Ashoka Buildcon Ltd | E168: Accu | F168: 189.50 | H168: 218 | I168: 218.00 | J168: Target Achieved | K168: 28.50 | L168: 15.04% | M168: Successful | N168: 2017-10-26
A169: 49 | B169: 2016-04-11 | D169: PTC INDIA FIN SERV LTD | E169: Accu | F169: 36-37 | I169: 60.00 | J169: Open
A170: 50 | B170: 2016-04-12 | D170: CAMLINFINE $ | E170: Accu | F170: 93.00 | H170: 149 | I170: 140.00 | J170: Profit of Rs 56/- | K170: 56.00 | L170: =K170/F170 -> 60.22% | M170: Successful | N170: 2017-01-05
A171: 51 | B171: 2016-04-12 | D171: Greaves Cotton Ltd. | E171: Accu | F171: 130.00 | H171: 150 | I171: 150-155 | J171: Target Achieved | K171: 20.00 | L171: 15.38% | M171: Successful | N171: 2016-07-13
A172: 52 | B172: 2016-04-13 | D172: DHFL | E172: Accu | F172: 196.00 | H172: 299 | I172: 299.00 | J172: Target Achieved | K172: 103.00 | L172: 52.55% | M172: Successful | N172: 2016-09-07
A173: 53 | B173: 2016-04-13 | D173: Magma | E173: Accu | F173: 88.00 | H173: 103 | I173: 103.00 | J173: Target Achieved | K173: 15.00 | L173: 17.05% | M173: Successful | N173: 2016-06-09
A174: 54 | B174: 2016-05-02 | D174: KEC International ltd $ | E174: Accu | F174: 127.50 | H174: 148 | I174: 148-150 | J174: Target Achieved | K174: 20.50 | L174: 16.08% | M174: Successful | N174: 2016-07-13
A175: 55 | B175: 2016-05-03 | D175: Mindtree | E175: Accu | F175: 675.00 | H175: 815 | I175: 790-800 | J175: Target Achieved | K175: 140.00 | L175: 20.74% | M175: Successful | N175: 2018-02-23
A176: 56 | B176: 2016-06-01 | D176: Atulauto | E176: Accu | F176: 495-505 | I176: 565-570 | J176: Open
A177: 57 | B177: 2016-06-06 | D177: TRITURBINE | E177: Accu | F177: 110.00 | H177: 126.5 | I177: 125.00 | J177: Profit of Rs.16.50/- | K177: 16.50 | L177: =K177/F177 -> 15.00% | M177: Successful | N177: 2016-07-01
A178: 58 | B178: 2016-06-17 | D178: Pennar Industries Ltd | E178: Accu | F178: 44.00 | H178: 69.5 | I178: 69.50 | J178: Profit of Rs.25.50/- | K178: 25.50 | L178: =K178/F178 -> 57.95% | M178: Successful | N178: 2017-08-30
A179: 59 | B179: 2016-06-28 | D179: EVEREADY INDS. IND. LTD. | E179: Accu | F179: 262.50 | H179: 340 | I179: 333.00 | J179: Profit of Rs.77.50/- | K179: 77.50 | L179: =K179/F179 -> 29.52% | M179: Successful | N179: 2017-10-09
A180: 60 | B180: 2016-06-28 | D180: FIEM INDUSTRIES LIMITED | E180: Accu | F180: 840.00 | H180: 1230 | I180: 1230.00 | J180: Target Achieved | K180: 390.00 | L180: =K180/F180 -> 46.43% | M180: Successful | N180: 2016-10-06
A181: 61 | B181: 2016-07-05 | D181: Bajaj Corp Ltd | E181: Accu | F181: 395 | H181: 468.50 | I181: 510.00 | J181: Part profit of Rs.73.50/- | K181: 73.50 | L181: =K181/F181 -> 19% | M181: Successful | N181: 2017-08-30
A182: 62 | B182: 2016-08-02 | D182: GPPL $ | E182: Buy | F182: 167-172 | I182: 198-200 | J182: Open
A183: 63 | B183: 2016-08-04 | D183: WONDERLA HOLIDAYS LTD | E183: Accu | F183: 395-405 | I183: 475.00 | J183: Open
A184: 64 | B184: 2016-08-11 | D184: CAMLINFINE | E184: Accu | F184: 86.50 | H184: 130 | I184: 130.00 | J184: Profit of Rs.43.50/- | K184: =H184-F184 -> 43.50 | L184: =K184/F184 -> 50.29% | M184: Successful | N184: 2017-12-22
A185: 65 | B185: 2016-08-18 | D185: GRANULES | E185: Accu | F185: 133.5 | H185: 126.50 | I185: 178.00 | J185: Exit | K185: -7.00 | L185: -5.24% | M185: Unsuccessful | N185: 2016-09-02
A186: 66 | B186: 2016-08-31 | D186: VA TECH WABAG | E186: Accu | F186: 560.00 | H186: 725 | I186: 725.00 | J186: Target Achieved | K186: 165.00 | L186: 29.46% | M186: Successful | N186: 2016-03-27
A187: 67 | B187: 2016-09-01 | D187: SKIPPER LIMITED | E187: Accu | F187: 160.50 | H187: 210 | I187: 210.00 | J187: Target Achieved | K187: 49.50 | L187: 30.84% | M187: Successful | N187: 2017-05-16
A188: 68 | B188: 2016-10-03 | D188: IFB Industries | E188: Accu | F188: 430.00 | H188: 596 | I188: 575.00 | J188: Profit of Rs.166/- | K188: 166.00 | L188: 38.60% | M188: Successful | N188: 2017-02-03
A189: 69 | B189: 2016-10-14 | D189: ASIANTILES | E189: Accu | F189: 280.00 | H189: 345 | I189: 345.00 | J189: Target Achieved | K189: 65.00 | L189: 23.21% | M189: Successful | N189: 2017-03-20
A190: 70 | B190: 2016-10-14 | D190: DEEPIND | E190: Accu | F190: 245.00 | H190: 325.5 | I190: 330.00 | J190: Profit of Rs.80.5/- | K190: 80.50 | L190: 32.86% | M190: Successful | N190: 2017-02-03
A191: 71 | B191: 2016-10-17 | D191: DCBBANK | E191: Accu | F191: 125.00 | H191: 160 | I191: 160.00 | J191: Target Achieved | K191: 35.00 | L191: 28.00% | M191: Successful | N191: 2017-03-09
A192: 72 | B192: 2016-10-17 | D192: ORIENTREF | E192: Accu | F192: 114.00 | H192: 145 | I192: 145.00 | J192: Target Achieved | K192: 31.00 | L192: =K192/F192 -> 27.19% | M192: Successful | N192: 2017-05-04
A193: 73 | B193: 2016-10-17 | D193: GANECOS | E193: Accu | F193: 212.00 | H193: 280 | I193: 276.00 | J193: Profit of Rs.68/- | K193: 68.00 | L193: =K193/F193 -> 32.08% | M193: Successful | N193: 2017-05-03
A194: 74 | B194: 2016-11-04 | D194: NBCC | E194: Accu | F194: 155.00 | H194: 210 | I194: 210.00 | J194: Profit of Rs.55/- | K194: 55.00 | L194: =K194/F194 -> 35.48% | M194: Successful | N194: 2017-07-28
A195: 75 | B195: 2016-12-06 | D195: PRECAM | E195: Accu | F195: 150.5 | H195: 72.50 | I195: 174.00 | J195: Loss of Rs.78/- | K195: -78.00 | L195: =K195/F195 -> -51.83% | M195: Unsuccessful | N195: 2018-08-21
A196: 76 | B196: 2016-12-08 | D196: INFRATEL | E196: Accu | F196: 380.00 | H196: 478 | I196: 468.00 | J196: Target Achieved | K196: 98.00 | L196: =K196/F196 -> 25.79% | M196: Successful | N196: 2017-10-17
A197: 77 | B197: 2016-12-30 | D197: GODREJPROP | E197: Accu | F197: 305.00 | H197: 375 | I197: 375.00 | J197: Target Achieved | K197: 70.00 | L197: 22.95% | M197: Successful | N197: 2017-02-02
A198: 78 | B198: 2017-01-04 | D198: DEEPAKNTR | E198: Accu | F198: 99.50 | H198: 158 | I198: 158.00 | J198: Target Achieved | K198: 58.50 | L198: 58.79% | M198: Successful | N198: 2017-06-12
A199: 79 | B199: 2017-02-20 | D199: SUBROS | E199: Accu | F199: 202.50 | H199: 234 | I199: 234.00 | J199: Target Achieved | K199: 31.50 | L199: 15.56% | M199: Successful | N199: 2017-04-11
A200: 80 | B200: 2017-02-20 | D200: RECLTD | E200: Accu | F200: 140.50 | H200: 220 | I200: 220.00 | J200: Target Achieved | K200: 79.50 | L200: 56.58% | M200: Successful | N200: 2017-05-09
A201: 81 | B201: 2017-03-24 | D201: VRLLOG | E201: Accu | F201: 300.50 | H201: 417.5 | I201: 420.00 | J201: Profit of Rs.117/- | K201: 117.00 | L201: 38.94% | M201: Successful | N201: 2017-12-01
A202: 82 | B202: 2017-03-24 | D202: FIEMIND | E202: Accu | F202: 850.00 | H202: 1042.5 | I202: 1023.00 | J202: Profit of Rs 192.50/- | K202: 192.50 | L202: 22.65% | M202: Successful | N202: 2017-04-05
A203: 83 | B203: 2017-04-05 | D203: RATNAMANI | E203: Accu | F203: 785.00 | H203: 930 | I203: 920.00 | J203: Profit of Rs.145/- | K203: 145.00 | L203: 18.47% | M203: Successful | N203: 2017-08-29
A204: 84 | B204: 2017-04-06 | D204: ZEEMEDIA | E204: Accu | F204: 39-41 | I204: 60.00 | J204: Open
A205: 85 | B205: 2017-04-12 | D205: DABUR | E205: Accu | F205: 289.50 | H205: 354 | I205: 360.00 | J205: Profit of Rs.64.5/- | K205: 64.50 | L205: =K205/F205 -> 22.28% | M205: Successful | N205: 2017-11-01
A206: 86 | B206: 2017-04-20 | D206: KPRMILL | E206: Accu | F206: 700.00 | H206: 840 | I206: 840.00 | J206: Profit of Rs.140/- | K206: 140.00 | L206: =K206/F206 -> 20.00% | M206: Successful | N206: 2017-06-07
A207: 87 | B207: 2017-05-22 | D207: GREAVESCOT | E207: Accu | F207: 153-158 | I207: 190.00 | J207: Open
A208: 88 | B208: 2017-06-01 | D208: ESSELPACK | E208: Accu | F208: 260 | H208: 311.00 | I208: 340.00 | J208: Part profit of Rs.51/- | K208: =H208-F208 -> 51.00 | L208: =K208/F208 -> 20% | M208: Successful | N208: 2017-11-17
A209: 89 | B209: 2017-06-15 | D209: KEI | E209: Accu | F209: 214.50 | H209: 262 | I209: 262.00 | J209: Profit of Rs.47.5/- | K209: =H209-F209 -> 47.50 | L209: 22.14% | M209: Successful | N209: 2017-08-30
A210: 90 | B210: 2017-07-17 | D210: MAYURUNIQ | E210: Accu | F210: 370.00 | H210: 447.5 | I210: 450.00 | J210: Target Achieved | K210: 77.50 | L210: 20.95% | M210: Successful | N210: 2017-10-27
A211: 91 | B211: 2017-07-27 | D211: RAMCOCEM | E211: Accu | F211: 657.50 | H211: 825 | I211: 820.00 | J211: Target Achieved | K211: 167.50 | L211: 25.48% | M211: Successful | N211: 2017-12-21
A212: 92 | B212: 2017-08-17 | D212: FINPIPE | E212: Accu | F212: 605.00 | H212: 750 | I212: 750.00 | J212: Profit of Rs.145/- | K212: 145.00 | L212: 23.97% | M212: Successful | N212: 2017-10-19
A213: 93 | B213: 2017-09-01 | D213: SHK | E213: Accu | F213: 255 | H213: 307.50 | I213: 320.00 | J213: Part profit of Rs.52.5/- | K213: 52.50 | L213: 21% | M213: Successful | N213: 2017-12-29
A214: 94 | B214: 2017-09-19 | D214: SKIPPER | E214: Accu | F214: 215.00 | H214: 258 | I214: 258.00 | J214: Target Achieved | K214: 43.00 | L214: 20.00% | M214: Successful | N214: 2017-11-01
A215: 95 | B215: 2017-09-20 | D215: CAMLINFINE | E215: Accu | F215: 75.00 | H215: 90 | I215: 90.00 | J215: Profit of Rs.15.00/- | K215: 15.00 | L215: 20.00% | M215: Successful | N215: 2017-10-11
A216: 96 | B216: 2017-10-03 | D216: GNA | E216: Accu | F216: 315.00 | H216: 392 | I216: 384.00 | J216: Profit of Rs.77/- | K216: 77.00 | L216: 24.44% | M216: Successful | N216: 2017-10-09
A217: 97 | B217: 2017-10-05 | D217: NOCIL | E217: Accu | F217: 145.00 | H217: 179 | I217: 180.00 | J217: Profit of Rs.34/- | K217: 34.00 | L217: 23.45% | M217: Successful | N217: 2017-10-17
A218: 98 | B218: 2017-10-06 | D218: CENTURYPLY | E218: Accu | F218: 256.00 | H218: 323 | I218: 320.00 | J218: Target Achieved | K218: 67.00 | L218: 26.17% | M218: Successful | N218: 2017-11-28
A219: 99 | B219: 2017-10-09 | D219: RECLTD | E219: Accu | F219: 152.5 | H219: 183.50 | I219: 210.00 | J219: Part Profit of Rs.31/- | K219: 31.00 | L219: 20% | M219: Successful | N219: 2017-11-03
A220: 100 | B220: 2017-10-09 | D220: EIHOTEL | E220: Accu | F220: 137.50 | H220: 184 | I220: 183.00 | J220: Profit of Rs.46.5/- | K220: 46.50 | L220: 33.82% | M220: Successful | N220: 2018-01-08
A221: 101 | B221: 2017-10-10 | D221: BOROSIL | E221: Accu | F221: 895.00 | H221: 1122.5 | I221: 1078.00 | J221: Profit of Rs.227.5/- | K221: 227.50 | L221: 25.42% | M221: Successful | N221: 2018-01-17
A222: 102 | B222: 2017-10-10 | D222: NRBBEARING | E222: Accu | F222: 125.50 | H222: 158 | I222: 155.00 | J222: Profit of Rs.32.5/- | K222: 32.50 | L222: 25.90% | M222: Successful | N222: 2017-11-28
A223: 103 | B223: 2017-10-12 | D223: CYIENT | E223: Accu | F223: 525.00 | H223: 629 | I223: 629.00 | J223: Target Achieved | K223: 104.00 | L223: 19.81% | M223: Successful | N223: 2018-01-19
A224: 104 | B224: 2017-11-07 | D224: HATSUN | E224: Accu | F224: 740.00 | H224: 892.5 | I224: 900.00 | J224: Profit of Rs.152.5/- | K224: 152.50 | L224: 20.61% | M224: Successful | N224: 2017-11-13
A225: 105 | B225: 2017-12-04 | D225: SANGHIIND | E225: Accu | F225: 118.50 | H225: 143.5 | I225: 145.00 | J225: Profit of Rs.25/- | K225: 25.00 | L225: 21.10% | M225: Successful | N225: 2017-12-28
A226: 106 | B226: 2017-12-05 | D226: ALLCARGO | E226: Accu | F226: 177.5 | H226: 215.00 | I226: 230.00 | J226: Part Profit of Rs.37.5/- | K226: 37.50 | L226: 21% | M226: Successful | N226: 2017-12-27
A227: 107 | B227: 2017-12-21 | D227: KAJARIACER | E227: Accu | F227: 710-720 | I227: 872.00 | J227: Open
A228: 108 | B228: 2017-12-29 | D228: GNA | E228: Accu | F228: 435.00 | H228: 542.5 | I228: 539.00 | J228: Target Achieved | K228: =H228-F228 -> 107.50 | L228: =K228/F228 -> 24.71% | M228: Successful | N228: 2018-04-16
A229: 109 | B229: 2017-12-29 | D229: ZENSARTECH | E229: Accu | F229: 885.00 | H229: 1090 | I229: 1084.00 | J229: Target Achieved | K229: 205.00 | L229: =K229/F229 -> 23.16% | M229: Successful | N229: 2018-04-23
A230: 110 | B230: 2018-02-07 | D230: GREAVESCOT | E230: Accu | F230: 130-132 | I230: 190.00 | J230: Open
A231: 111 | B231: 2018-02-27 | D231: MOLDTKPAC | E231: Accu | F231: 320-330 | I231: 398.00 | J231: Open
A232: 112 | B232: 2018-03-05 | D232: LICHSGFIN | E232: Accu | F232: 505-515 | I232: 672.00 | J232: Open
A233: 113 | B233: 2018-04-02 | D233: EVERESTIND | E233: Accu | F233: 492.5 | H233: 589.00 | I233: 613.00 | J233: Part Profit of Rs.37.5/- | K233: =H233-F233 -> 96.50 | L233: =K233/F233 -> 20% | M233: Successful | N233: 2018-08-21
A234: 114 | B234: 2018-04-04 | D234: GPPL | E234: Accu | F234: 140-143 | I234: 180.00 | J234: Open
A235: 115 | B235: 2018-04-19 | D235: MANPASAND | E235: Accu | F235: 430 | H235: 220.00 | I235: 537.00 | J235: Loss of Rs.210/- | K235: =H235-F235 -> -210.00 | L235: =K235/F235 -> -48.84% | M235: Unsuccessful | N235: 2018-06-01
A236: 116 | B236: 2018-04-30 | D236: HEIDELBERG | E236: Accu | F236: 154-158 | I236: 196.00 | J236: Open
A237: 117 | B237: 2018-05-17 | D237: PHILIPCARB | E237: Accu | F237: 230-240 | I237: 348.00 | J237: Open
A238: 118 | B238: 2018-06-07 | D238: KEC | E238: Accu | F238: 340-345 | I238: 439.00 | J238: Open
A239: 119 | B239: 2018-07-04 | D239: ASHOKLEY | E239: Accu | F239: 125-130 | I239: 170.00 | J239: Open
A240: 120 | B240: 2018-07-13 | D240: FCONSUMER | E240: Accu | F240: 46-47 | I240: 59.00 | J240: Open
A241: 121 | B241: 2018-07-25 | D241: ZEEMEDIA | E241: Accu | F241: 27-28 | I241: 44.00 | J241: Open
A242: 122 | B242: 2018-08-06 | D242: GABRIEL | E242: Accu | F242: 148-152 | I242: 182.00 | J242: Open
A243: 123 | B243: 2018-08-23 | D243: INDIANHUME | E243: Accu | F243: 280-290 | I243: 364.00 | J243: Open
A244: 124 | B244: 2018-08-29 | D244: GRINDWELL | E244: Accu | F244: 520-530 | I244: 635.00 | J244: Open
F248: Reinitiated $
A250: Disclaimer:
A251: This document has been prepared by the Retail Research Desk of Asit C Mehta
A252: Investment Intermediates Ltd. and is meant for use of the recipient only
A253: and is not for circulation. This document is not to be reported or
A254: copied or made available to others. It should not be considered to be
A255: taken as an offer to sell or a solicitation to buy any security. The
A256: information contained herein is from sources believed reliable. We do
A257: not represent that it is accurate or complete and it should not be
A258: relied upon as such. We may from time to time have positions in and buy
A259: and sell securities referred to herein

Sheet Sheet2 (hidden)
A1: SYMBOL | B1: SERIES | C1: OPEN | D1: HIGH | E1: LOW | F1: CLOSE | G1: LAST | H1: PREVCLOSE | I1: TOTTRDQTY | J1: TOTTRDVAL | K1: TIMESTAMP | L1: TOTALTRADES | M1: ISIN | N1: ISIN
A2: 20MICRONS | B2: EQ | C2: 41.9 | D2: 43.55 | E2: 41.9 | F2: 42.4 | G2: 42.05 | H2: 41.85 | I2: 38228 | J2: 1630444.75 | K2: 2018-10-03 | L2: 457 | M2: INE144J01027
A3: 21STCENMGM | B3: EQ | C3: 28.3 | D3: 28.6 | E3: 27.8 | F3: 27.8 | G3: 27.8 | H3: 28.3 | I3: 1807 | J3: 51097.2 | K3: 2018-10-03 | L3: 28 | M3: INE253B01015
A4: 3IINFOTECH | B4: EQ | C4: 3.4 | D4: 3.45 | E4: 3.35 | F4: 3.35 | G4: 3.4 | H4: 3.35 | I4: 1742576 | J4: 5902816.45 | K4: 2018-10-03 | L4: 682 | M4: INE748C01020
A5: 3MINDIA | B5: EQ | C5: 23350 | D5: 23800 | E5: 22577.8 | F5: 22656.4 | G5: 22660 | H5: 23088.15 | I5: 1720 | J5: 39301144.05 | K5: 2018-10-03 | L5: 609 | M5: INE470A01017
A6: 5PAISA | B6: EQ | C6: 204.25 | D6: 214.8 | E6: 192.3 | F6: 208.65 | G6: 207.45 | H6: 210.8 | I6: 12602 | J6: 2618611.6 | K6: 2018-10-03 | L6: 336 | M6: INE618L01018
A7: 63MOONS | B7: EQ | C7: 68 | D7: 69.7 | E7: 66.8 | F7: 67.5 | G7: 66.8 | H7: 66.75 | I7: 124696 | J7: 8511612.5 | K7: 2018-10-03 | L7: 1509 | M7: INE111B01023
A8: 8KMILES | B8: BE | C8: 172.75 | D8: 172.75 | E8: 172.75 | F8: 172.75 | G8: 172.75 | H8: 181.8 | I8: 50732 | J8: 8763953 | K8: 2018-10-03 | L8: 419 | M8: INE650K01021
A9: A2ZINFRA | B9: EQ | C9: 9.5 | D9: 10 | E9: 9.05 | F9: 9.05 | G9: 9.05 | H9: 10.05 | I9: 4776767 | J9: 44024825.2 | K9: 2018-10-03 | L9: 3729 | M9: INE619I01012
A10: AARTIDRUGS | B10: EQ | C10: 555 | D10: 573.25 | E10: 555 | F10: 563.7 | G10: 561 | H10: 554.6 | I10: 11447 | J10: 6462335.9 | K10: 2018-10-03 | L10: 703 | M10: INE767A01016
A11: AARTIIND | B11: EQ | C11: 1138.85 | D11: 1224.95 | E11: 1138.85 | F11: 1207.05 | G11: 1224.9 | H11: 1138.85 | I11: 41029 | J11: 48379395.35 | K11: 2018-10-03 | L11: 3958 | M11: INE769A01020
A12: AARVEEDEN | B12: EQ | C12: 23.55 | D12: 24.9 | E12: 23.05 | F12: 24.2 | G12: 24.2 | H12: 23.6 | I12: 14963 | J12: 361000.05 | K12: 2018-10-03 | L12: 102 | M12: INE273D01019
A13: ABAN | B13: EQ | C13: 81.05 | D13: 84.3 | E13: 81.05 | F13: 82.7 | G13: 82.5 | H13: 80.15 | I13: 831298 | J13: 68803173.5 | K13: 2018-10-03 | L13: 8203 | M13: INE421A01028
A14: ABB | B14: EQ | C14: 1430 | D14: 1463.95 | E14: 1402.9 | F14: 1422.2 | G14: 1419.6 | H14: 1422.9 | I14: 121540 | J14: 174229325.2 | K14: 2018-10-03 | L14: 9903 | M14: INE117A01022
A15: ABBOTINDIA | B15: EQ | C15: 7700 | D15: 7739.25 | E15: 7550 | F15: 7592.55 | G15: 7600.45 | H15: 7640.85 | I15: 3217 | J15: 24551123.3 | K15: 2018-10-03 | L15: 1208 | M15: INE358A01014
A16: ABCAPITAL | B16: EQ | C16: 110.65 | D16: 113.2 | E16: 108.85 | F16: 110.25 | G16: 109.9 | H16: 110.75 | I16: 1898083 | J16: 209577578.2 | K16: 2018-10-03 | L16: 22542 | M16: INE674K01013
A17: ABFRL | B17: EQ | C17: 184.2 | D17: 185.8 | E17: 178.2 | F17: 182.2 | G17: 182.2 | H17: 184.8 | I17: 759036 | J17: 138816563.2 | K17: 2018-10-03 | L17: 11296 | M17: INE647O01011
A18: ABMINTLTD | B18: BE | C18: 17.15 | D18: 17.15 | E18: 17.15 | F18: 17.15 | G18: 17.15 | H18: 18.05 | I18: 8 | J18: 137.2 | K18: 2018-10-03 | L18: 1 | M18: INE251C01017
A19: ACC | B19: EQ | C19: 1565.7 | D19: 1566 | E19: 1494.5 | F19: 1509.7 | G19: 1497.05 | H19: 1573.6 | I19: 545265 | J19: 833839193.2 | K19: 2018-10-03 | L19: 29739 | M19: INE012A01025
A20: ACCELYA | B20: EQ | C20: 1036 | D20: 1036 | E20: 1013 | F20: 1024.15 | G20: 1025 | H20: 1035.45 | I20: 2772 | J20: 2832612.65 | K20: 2018-10-03 | L20: 334 | M20: INE793A01012
A21: ACE | B21: EQ | C21: 91.85 | D21: 98.7 | E21: 90.55 | F21: 92.35 | G21: 92.4 | H21: 95.2 | I21: 304494 | J21: 28698396 | K21: 2018-10-03 | L21: 2622 | M21: INE731H01025
A22: ADANIENT | B22: EQ | C22: 137 | D22: 141.5 | E22: 130.05 | F22: 134.8 | G22: 131.15 | H22: 137.35 | I22: 6829117 | J22: 937515976.8 | K22: 2018-10-03 | L22: 37783 | M22: INE423A01024
A23: ADANIGREEN | B23: EQ | C23: 40 | D23: 40 | E23: 37.25 | F23: 37.25 | G23: 37.25 | H23: 39.2 | I23: 610429 | J23: 23090074.5 | K23: 2018-10-03 | L23: 3620 | M23: INE364U01010
A24: ADANIPORTS | B24: EQ | C24: 327.3 | D24: 338 | E24: 326.4 | F24: 329.75 | G24: 328.55 | H24: 330.35 | I24: 4438442 | J24: 1477387650 | K24: 2018-10-03 | L24: 65700 | M24: INE742F01042
A25: ADANIPOWER | B25: EQ | C25: 26 | D25: 26.95 | E25: 25.5 | F25: 25.95 | G25: 25.8 | H25: 26.05 | I25: 19008480 | J25: 496890846.1 | K25: 2018-10-03 | L25: 22696 | M25: INE814H01011
A26: ADANITRANS | B26: EQ | C26: 161.5 | D26: 161.5 | E26: 152.1 | F26: 154.85 | G26: 154.5 | H26: 158.3 | I26: 212429 | J26: 33288896 | K26: 2018-10-03 | L26: 4360 | M26: INE931S01010
A27: ADFFOODS | B27: EQ | C27: 219 | D27: 225.95 | E27: 213.1 | F27: 215.45 | G27: 213.1 | H27: 220.65 | I27: 33296 | J27: 7337806.95 | K27: 2018-10-03 | L27: 1185 | M27: INE982B01019
A28: ADHUNIK | B28: BE | C28: 2.75 | D28: 2.85 | E28: 2.65 | F28: 2.75 | G28: 2.85 | H28: 2.75 | I28: 21134 | J28: 58746 | K28: 2018-10-03 | L28: 40 | M28: INE400H01019
A29: ADHUNIKIND | B29: EQ | C29: 59 | D29: 61.5 | E29: 58.5 | F29: 60.7 | G29: 60.25 | H29: 60.45 | I29: 14514 | J29: 876319.9 | K29: 2018-10-03 | L29: 159 | M29: INE452L01012
A30: ADLABS | B30: EQ | C30: 16.75 | D30: 17.45 | E30: 16.15 | F30: 16.9 | G30: 17 | H30: 16.15 | I30: 345861 | J30: 5836275.55 | K30: 2018-10-03 | L30: 1452 | M30: INE172N01012
A31: ADORWELD | B31: EQ | C31: 306 | D31: 306 | E31: 292.9 | F31: 295.65 | G31: 297.05 | H31: 305.8 | I31: 8361 | J31: 2480726.2 | K31: 2018-10-03 | L31: 341 | M31: INE045A01017
A32: ADROITINFO | B32: BE | C32: 24 | D32: 24.05 | E32: 24 | F32: 24.05 | G32: 24.05 | H32: 24.75 | I32: 68 | J32: 1632.25 | K32: 2018-10-03 | L32: 6 | M32: INE737B01033
A33: ADSL | B33: EQ | C33: 12.5 | D33: 13.5 | E33: 12.5 | F33: 12.85 | G33: 12.95 | H33: 12.3 | I33: 34613 | J33: 450146.1 | K33: 2018-10-03 | L33: 138 | M33: INE102I01027
A34: ADVANIHOTR | B34: EQ | C34: 47 | D34: 49.95 | E34: 46 | F34: 49.1 | G34: 49.95 | H34: 46.15 | I34: 10228 | J34: 492965.75 | K34: 2018-10-03 | L34: 242 | M34: INE199C01026
A35: ADVENZYMES | B35: EQ | C35: 184.4 | D35: 188.25 | E35: 181.05 | F35: 186.5 | G35: 186 | H35: 182.7 | I35: 80474 | J35: 14935710.95 | K35: 2018-10-03 | L35: 4980 | M35: INE837H01020
A36: AEGISCHEM | B36: EQ | C36: 191 | D36: 194.95 | E36: 184.9 | F36: 187.15 | G36: 188.5 | H36: 191 | I36: 120516 | J36: 22691644.95 | K36: 2018-10-03 | L36: 5952 | M36: INE208C01025
A37: AFL | B37: EQ | C37: 66.6 | D37: 66.65 | E37: 63.25 | F37: 64 | G37: 63.5 | H37: 63 | I37: 11820 | J37: 768726.15 | K37: 2018-10-03 | L37: 86 | M37: INE020G01017
A38: AGARIND | B38: EQ | C38: 219.95 | D38: 225.7 | E38: 218 | F38: 222.1 | G38: 222.1 | H38: 222.55 | I38: 893 | J38: 196881.8 | K38: 2018-10-03 | L38: 61 | M38: INE204E01012
A39: AGCNET | B39: EQ | C39: 70 | D39: 70.5 | E39: 67.85 | F39: 68.2 | G39: 68 | H39: 68.45 | I39: 3590 | J39: 246920.85 | K39: 2018-10-03 | L39: 27 | M39: INE676A01019
A40: AGLSL | B40: EQ | C40: 70.9 | D40: 71.35 | E40: 67.65 | F40: 71.35 | G40: 71.35 | H40: 66.45 | I40: 761 | J40: 53011.8 | K40: 2018-10-03 | L40: 19 | M40: INE517U01013
A41: AGRITECH | B41: EQ | C41: 56.5 | D41: 62.45 | E41: 56.5 | F41: 61.55 | G41: 61.8 | H41: 57.6 | I41: 11793 | J41: 706598.05 | K41: 2018-10-03 | L41: 274 | M41: INE449G01018
A42: AHLEAST | B42: EQ | C42: 240.05 | D42: 255 | E42: 235.2 | F42: 240.25 | G42: 236 | H42: 245.75 | I42: 1148 | J42: 281981.15 | K42: 2018-10-03 | L42: 35 | M42: INE926K01017
A43: AHLUCONT | B43: EQ | C43: 261.55 | D43: 278 | E43: 261.55 | F43: 268.9 | G43: 267 | H43: 267.7 | I43: 102653 | J43: 27444449.3 | K43: 2018-10-03 | L43: 225 | M43: INE758C01029
A44: AHLWEST | B44: EQ | C44: 265.25 | D44: 290 | E44: 265.25 | F44: 280 | G44: 280 | H44: 289.6 | I44: 2146 | J44: 595195.15 | K44: 2018-10-03 | L44: 46 | M44: INE915K01010
A45: AIAENG | B45: EQ | C45: 1721.1 | D45: 1759.2 | E45: 1717 | F45: 1741.25 | G45: 1731.6 | H45: 1739.8 | I45: 35441 | J45: 61791934.4 | K45: 2018-10-03 | L45: 2188 | M45: INE212H01026
A46: AICHAMP | B46: BE | C46: 14.45 | D46: 14.45 | E46: 14.45 | F46: 14.45 | G46: 14.45 | H46: 15.2 | I46: 2114 | J46: 30547.3 | K46: 2018-10-03 | L46: 13 | M46: INE768E01024
A47: AIFL | B47: EQ | C47: 246.1 | D47: 246.1 | E47: 246.1 | F47: 246.1 | G47: 246.1 | H47: 273.4 | I47: 8887 | J47: 2187090.7 | K47: 2018-10-03 | L47: 79 | M47: INE428O01016
A48: AIONJSW | B48: BE | C48: 37.5 | D48: 37.5 | E48: 37.5 | F48: 37.5 | G48: 37.5 | H48: 35.75 | I48: 20533 | J48: 769987.5 | K48: 2018-10-03 | L48: 100 | M48: INE743C01021
A49: AJANTPHARM | B49: EQ | C49: 1069.1 | D49: 1073.95 | E49: 1031.75 | F49: 1039.05 | G49: 1035.05 | H49: 1071.5 | I49: 363464 | J49: 380293196.9 | K49: 2018-10-03 | L49: 33054 | M49: INE031B01049
A50: AJMERA | B50: EQ | C50: 156 | D50: 164.4 | E50: 153.95 | F50: 161.7 | G50: 162.5 | H50: 157.1 | I50: 53353 | J50: 8615540.7 | K50: 2018-10-03 | L50: 1299 | M50: INE298G01027
A51: AKSHARCHEM | B51: EQ | C51: 470.1 | D51: 489 | E51: 463.5 | F51: 480.35 | G51: 481.75 | H51: 470.8 | I51: 9844 | J51: 4740604.9 | K51: 2018-10-03 | L51: 2779 | M51: INE542B01011
A52: AKSHOPTFBR | B52: EQ | C52: 24.05 | D52: 25.2 | E52: 23.8 | F52: 24.5 | G52: 24.8 | H52: 24.05 | I52: 1418467 | J52: 34844752.85 | K52: 2018-10-03 | L52: 6078 | M52: INE523B01011
A53: AKZOINDIA | B53: EQ | C53: 1598.75 | D53: 1614.95 | E53: 1590 | F53: 1595.9 | G53: 1597.4 | H53: 1614.85 | I53: 3237 | J53: 5178356.45 | K53: 2018-10-03 | L53: 454 | M53: INE133A01011
A54: ALANKIT | B54: EQ | C54: 19.9 | D54: 21 | E54: 19.25 | F54: 20.25 | G54: 20.5 | H54: 19.9 | I54: 817853 | J54: 16495267.7 | K54: 2018-10-03 | L54: 1246 | M54: INE914E01040
A55: ALBERTDAVD | B55: EQ | C55: 562.7 | D55: 585.05 | E55: 557.2 | F55: 584.1 | G55: 585.05 | H55: 557.2 | I55: 26849 | J55: 15603906.55 | K55: 2018-10-03 | L55: 743 | M55: INE155C01010
A56: ALBK | B56: EQ | C56: 36.15 | D56: 38.25 | E56: 35.6 | F56: 36.9 | G56: 36.2 | H56: 36.1 | I56: 5472553 | J56: 202031911.2 | K56: 2018-10-03 | L56: 12314 | M56: INE428A01015
A57: ALCHEM | B57: BE | C57: 4.5 | D57: 4.7 | E57: 4.5 | F57: 4.5 | G57: 4.5 | H57: 4.5 | I57: 10305 | J57: 46769.5 | K57: 2018-10-03 | L57: 22 | M57: INE964B01033
A58: ALEMBICLTD | B58: EQ | C58: 43.3 | D58: 45.2 | E58: 41.7 | F58: 43.35 | G58: 43 | H58: 43.45 | I58: 409479 | J58: 17982339.15 | K58: 2018-10-03 | L58: 2972 | M58: INE426A01027
A59: ALICON | B59: EQ | C59: 645 | D59: 649.8 | E59: 625 | F59: 640.8 | G59: 630 | H59: 643.2 | I59: 1890 | J59: 1216049.15 | K59: 2018-10-03 | L59: 153 | M59: INE062D01024
A60: ALKALI | B60: EQ | C60: 57.2 | D60: 58 | E60: 56 | F60: 57.1 | G60: 57.4 | H60: 57.15 | I60: 10667 | J60: 612544.4 | K60: 2018-10-03 | L60: 86 | M60: INE773I01017
A61: ALKEM | B61: EQ | C61: 2053.85 | D61: 2097.9 | E61: 2045.3 | F61: 2053.4 | G61: 2050 | H61: 2064.4 | I61: 122344 | J61: 251181628.3 | K61: 2018-10-03 | L61: 2387 | M61: INE540L01014
A62: ALKYLAMINE | B62: EQ | C62: 580 | D62: 587 | E62: 565.05 | F62: 566.6 | G62: 574.7 | H62: 579.7 | I62: 2574 | J62: 1470050.2 | K62: 2018-10-03 | L62: 113 | M62: INE150B01021
A63: ALLCARGO | B63: EQ | C63: 98.5 | D63: 101.55 | E63: 97.5 | F63: 98.65 | G63: 99 | H63: 99.9 | I63: 300726 | J63: 30001405.65 | K63: 2018-10-03 | L63: 5080 | M63: INE418H01029
A64: ALLSEC | B64: EQ | C64: 255.85 | D64: 255.85 | E64: 229.3 | F64: 235.35 | G64: 242 | H64: 244.9 | I64: 8272 | J64: 2017369.7 | K64: 2018-10-03 | L64: 490 | M64: INE835G01018
A65: ALMONDZ | B65: BE | C65: 30.2 | D65: 30.2 | E65: 27.5 | F65: 27.5 | G65: 27.5 | H65: 28.9 | I65: 16424 | J65: 456212.8 | K65: 2018-10-03 | L65: 44 | M65: INE326B01027
A66: ALOKTEXT | B66: BE | C66: 3.35 | D66: 3.45 | E66: 3.3 | F66: 3.45 | G66: 3.45 | H66: 3.3 | I66: 816394 | J66: 2786430.05 | K66: 2018-10-03 | L66: 546 | M66: INE270A01011
A67: ALPA | B67: EQ | C67: 27.7 | D67: 27.7 | E67: 25.1 | F67: 25.7 | G67: 25.8 | H67: 26.2 | I67: 14790 | J67: 383955 | K67: 2018-10-03 | L67: 153 | M67: INE385I01010
A68: ALPHAGEO | B68: EQ | C68: 544.95 | D68: 549.95 | E68: 526 | F68: 544.55 | G68: 549.95 | H68: 525.75 | I68: 12123 | J68: 6569116.85 | K68: 2018-10-03 | L68: 1156 | M68: INE137C01018
A69: ALPSINDUS | B69: BE | C69: 3.15 | D69: 3.15 | E69: 2.85 | F69: 2.95 | G69: 3 | H69: 3 | I69: 16606 | J69: 48895.85 | K69: 2018-10-03 | L69: 32 | M69: INE093B01015
A70: AMARAJABAT | B70: EQ | C70: 745 | D70: 746.7 | E70: 726.05 | F70: 737.5 | G70: 733 | H70: 745.3 | I70: 507973 | J70: 372541390.9 | K70: 2018-10-03 | L70: 25851 | M70: INE885A01032
A71: AMBER | B71: EQ | C71: 901.2 | D71: 933.85 | E71: 901.2 | F71: 923.5 | G71: 930 | H71: 913.3 | I71: 8511 | J71: 7836547.25 | K71: 2018-10-03 | L71: 885 | M71: INE371P01015
A72: AMBIKCO | B72: EQ | C72: 1160 | D72: 1160 | E72: 1132.05 | F72: 1137.05 | G72: 1132.05 | H72: 1144.25 | I72: 3116 | J72: 3554770.55 | K72: 2018-10-03 | L72: 289 | M72: INE540G01014
A73: AMBUJACEM | B73: EQ | C73: 221.5 | D73: 222.2 | E73: 211 | F73: 213.3 | G73: 212.3 | H73: 222.7 | I73: 4433444 | J73: 953897752.7 | K73: 2018-10-03 | L73: 50036 | M73: INE079A01024
A74: AMDIND | B74: EQ | C74: 19.85 | D74: 20.4 | E74: 19.2 | F74: 19.75 | G74: 19.7 | H74: 19.85 | I74: 6079 | J74: 118543.9 | K74: 2018-10-03 | L74: 34 | M74: INE005I01014
A75: AMJLAND | B75: EQ | C75: 19.55 | D75: 20.95 | E75: 19.2 | F75: 20.7 | G75: 20.95 | H75: 19.85 | I75: 6954 | J75: 142679.65 | K75: 2018-10-03 | L75: 70 | M75: INE606A01024
A76: AMRUTANJAN | B76: EQ | C76: 257.9 | D76: 269 | E76: 250 | F76: 257.7 | G76: 256.6 | H76: 249.05 | I76: 18430 | J76: 4767014.65 | K76: 2018-10-03 | L76: 1086 | M76: INE098F01031
A77: ANANTRAJ | B77: EQ | C77: 37.9 | D77: 40.2 | E77: 36.7 | F77: 38.7 | G77: 38.4 | H77: 37.15 | I77: 693183 | J77: 27040217.6 | K77: 2018-10-03 | L77: 5266 | M77: INE242C01024
A78: ANDHRABANK | B78: EQ | C78: 27.45 | D78: 27.95 | E78: 27.05 | F78: 27.45 | G78: 27.4 | H78: 27.5 | I78: 2378257 | J78: 65558922.95 | K78: 2018-10-03 | L78: 4596 | M78: INE434A01013
A79: ANDHRACEMT | B79: EQ | C79: 6.2 | D79: 6.25 | E79: 6 | F79: 6 | G79: 6 | H79: 6.3 | I79: 195240 | J79: 1181850.45 | K79: 2018-10-03 | L79: 431 | M79: INE666E01012
A80: ANDHRSUGAR | B80: EQ | C80: 331.9 | D80: 354.6 | E80: 326.1 | F80: 344.05 | G80: 342.5 | H80: 329.4 | I80: 108811 | J80: 37589193.75 | K80: 2018-10-03 | L80: 5276 | M80: INE715B01013
A81: ANGIND | B81: BE | C81: 2.5 | D81: 2.5 | E81: 2.4 | F81: 2.4 | G81: 2.4 | H81: 2.5 | I81: 150 | J81: 365 | K81: 2018-10-03 | L81: 3 | M81: INE017D01010
A82: ANIKINDS | B82: EQ | C82: 23.8 | D82: 25.9 | E82: 23.8 | F82: 25.9 | G82: 25.9 | H82: 24.7 | I82: 11505 | J82: 290044.25 | K82: 2018-10-03 | L82: 57 | M82: INE087B01017
A83: ANKITMETAL | B83: BE | C83: 0.45 | D83: 0.55 | E83: 0.45 | F83: 0.55 | G83: 0.55 | H83: 0.5 | I83: 38996 | J83: 18771.3 | K83: 2018-10-03 | L83: 52 | M83: INE106I01010
A84: ANSALAPI | B84: EQ | C84: 10.6 | D84: 12.2 | E84: 10.5 | F84: 11.55 | G84: 11.4 | H84: 10.45 | I84: 104693 | J84: 1195942.5 | K84: 2018-10-03 | L84: 526 | M84: INE436A01026
A85: ANSALHSG | B85: EQ | C85: 10.25 | D85: 12.1 | E85: 10 | F85: 11.4 | G85: 11.55 | H85: 10.15 | I85: 69818 | J85: 790326.6 | K85: 2018-10-03 | L85: 403 | M85: INE880B01015
A86: ANTGRAPHIC | B86: BE | C86: 0.5 | D86: 0.55 | E86: 0.5 | F86: 0.55 | G86: 0.55 | H86: 0.55 | I86: 48220 | J86: 25519.5 | K86: 2018-10-03 | L86: 25 | M86: INE414B01021
A87: APARINDS | B87: EQ | C87: 568 | D87: 578.85 | E87: 560.95 | F87: 565.65 | G87: 565.1 | H87: 570.8 | I87: 14781 | J87: 8368685.45 | K87: 2018-10-03 | L87: 529 | M87: INE372A01015
A88: APCL | B88: EQ | C88: 125 | D88: 125 | E88: 118.05 | F88: 120.8 | G88: 123.85 | H88: 121.5 | I88: 2600 | J88: 321408.25 | K88: 2018-10-03 | L88: 58 | M88: INE071F01012
A89: APCOTEXIND | B89: EQ | C89: 577 | D89: 577 | E89: 555 | F89: 557.05 | G89: 555 | H89: 561.3 | I89: 2239 | J89: 1266695.35 | K89: 2018-10-03 | L89: 216 | M89: INE116A01024
A90: APEX | B90: EQ | C90: 379.5 | D90: 388 | E90: 360.5 | F90: 375.15 | G90: 374.15 | H90: 375.85 | I90: 61587 | J90: 23199342.05 | K90: 2018-10-03 | L90: 2537 | M90: INE346W01013
A91: APLAPOLLO | B91: EQ | C91: 1270 | D91: 1321.55 | E91: 1247.65 | F91: 1255.65 | G91: 1248 | H91: 1268.7 | I91: 138219 | J91: 175051086.2 | K91: 2018-10-03 | L91: 4173 | M91: INE702C01019
A92: APLLTD | B92: EQ | C92: 631 | D92: 651 | E92: 616.1 | F92: 621.55 | G92: 618 | H92: 635.6 | I92: 28478 | J92: 18037782.45 | K92: 2018-10-03 | L92: 2030 | M92: INE901L01018
A93: APOLLO | B93: EQ | C93: 120 | D93: 123.75 | E93: 119 | F93: 120.15 | G93: 120 | H93: 119.8 | I93: 30548 | J93: 3706049.65 | K93: 2018-10-03 | L93: 792 | M93: INE713T01010
A94: APOLLOHOSP | B94: EQ | C94: 1059 | D94: 1084.7 | E94: 1045 | F94: 1071.3 | G94: 1069.9 | H94: 1064.05 | I94: 527109 | J94: 562862144.8 | K94: 2018-10-03 | L94: 24819 | M94: INE437A01024
A95: APOLLOTYRE | B95: EQ | C95: 210 | D95: 214.45 | E95: 205.25 | F95: 206 | G95: 205.5 | H95: 213.1 | I95: 3624093 | J95: 757267784.8 | K95: 2018-10-03 | L95: 39629 | M95: INE438A01022
A96: APOLSINHOT | B96: EQ | C96: 1112 | D96: 1288.95 | E96: 1056.4 | F96: 1150.35 | G96: 1150 | H96: 1113.5 | I96: 393 | J96: 457193.3 | K96: 2018-10-03 | L96: 53 | M96: INE451F01016
A97: APTECHT | B97: EQ | C97: 146 | D97: 155.7 | E97: 146 | F97: 147.75 | G97: 147.5 | H97: 149.7 | I97: 296348 | J97: 44574079.85 | K97: 2018-10-03 | L97: 5898 | M97: INE266F01018
A98: ARCHIDPLY | B98: EQ | C98: 40 | D98: 42.65 | E98: 39.25 | F98: 41.15 | G98: 41 | H98: 39.65 | I98: 28364 | J98: 1170186.7 | K98: 2018-10-03 | L98: 275 | M98: INE877I01016
A99: ARCHIES | B99: EQ | C99: 25.85 | D99: 27.3 | E99: 25.45 | F99: 27 | G99: 27 | H99: 25.45 | I99: 93231 | J99: 2484436.2 | K99: 2018-10-03 | L99: 375 | M99: INE731A01020
A100: ARCOTECH | B100: BE | C100: 9.4 | D100: 9.4 | E100: 9.4 | F100: 9.4 | G100: 9.4 | H100: 9.85 | I100: 31844 | J100: 299333.6 | K100: 2018-10-03 | L100: 101 | M100: INE574I01035
A101: ARIES | B101: EQ | C101: 92.9 | D101: 99.8 | E101: 90.8 | F101: 97 | G101: 96.8 | H101: 91.55 | I101: 28982 | J101: 2760206.95 | K101: 2018-10-03 | L101: 680 | M101: INE298I01015
A102: ARIHANT | B102: EQ | C102: 33 | D102: 35 | E102: 31 | F102: 31.1 | G102: 31.5 | H102: 33.5 | I102: 1088 | J102: 34206.55 | K102: 2018-10-03 | L102: 18 | M102: INE413D01011
A103: ARIHANTSUP | B103: EQ | C103: 57.8 | D103: 61.9 | E103: 53 | F103: 55.25 | G103: 56 | H103: 56.9 | I103: 49394 | J103: 2812129.7 | K103: 2018-10-03 | L103: 519 | M103: INE643K01018
A104: ARMANFIN | B104: EQ | C104: 348.4 | D104: 358.7 | E104: 333.35 | F104: 352.95 | G104: 353.95 | H104: 343.5 | I104: 5757 | J104: 1986709.8 | K104: 2018-10-03 | L104: 105 | M104: INE109C01017
A105: AROGRANITE | B105: EQ | C105: 52.8 | D105: 55 | E105: 51.05 | F105: 53.3 | G105: 53 | H105: 51.2 | I105: 5547 | J105: 294554.6 | K105: 2018-10-03 | L105: 122 | M105: INE210C01013
A106: ARROWGREEN | B106: EQ | C106: 104 | D106: 104.9 | E106: 97.8 | F106: 99.25 | G106: 98.85 | H106: 102.9 | I106: 14621 | J106: 1454428.25 | K106: 2018-10-03 | L106: 293 | M106: INE570D01018
A107: ARROWTEX | B107: EQ | C107: 27.1 | D107: 27.3 | E107: 26.6 | F107: 26.65 | G107: 26.6 | H107: 26.55 | I107: 4482 | J107: 120809.25 | K107: 2018-10-03 | L107: 60 | M107: INE933J01015
A108: ARSHIYA | B108: EQ | C108: 33.65 | D108: 35.95 | E108: 33.5 | F108: 35.7 | G108: 35.5 | H108: 33.85 | I108: 273747 | J108: 9749190.85 | K108: 2018-10-03 | L108: 1713 | M108: INE968D01022
A109: ARSSINFRA | B109: EQ | C109: 22.6 | D109: 24.4 | E109: 22.6 | F109: 23.35 | G109: 23.1 | H109: 23.7 | I109: 35701 | J109: 844456.7 | K109: 2018-10-03 | L109: 141 | M109: INE267I01010
A110: ARVIND | B110: EQ | C110: 323.2 | D110: 331.25 | E110: 314.7 | F110: 316.7 | G110: 316.75 | H110: 325.2 | I110: 1596619 | J110: 515575943 | K110: 2018-10-03 | L110: 23104 | M110: INE034A01011
A111: ARVSMART | B111: EQ | C111: 116.65 | D111: 120 | E111: 113 | F111: 117.05 | G111: 116.6 | H111: 114.95 | I111: 16242 | J111: 1911538.6 | K111: 2018-10-03 | L111: 381 | M111: INE034S01021
A112: ASAHIINDIA | B112: EQ | C112: 317.95 | D112: 317.95 | E112: 307.2 | F112: 312.25 | G112: 313 | H112: 315.9 | I112: 12469 | J112: 3891890.85 | K112: 2018-10-03 | L112: 664 | M112: INE439A01020
A113: ASAHISONG | B113: EQ | C113: 240 | D113: 258.5 | E113: 237 | F113: 245.2 | G113: 243 | H113: 242.25 | I113: 5345 | J113: 1312686.35 | K113: 2018-10-03 | L113: 221 | M113: INE228I01012
A114: ASAL | B114: EQ | C114: 49.45 | D114: 49.45 | E114: 46 | F114: 46.15 | G114: 46 | H114: 47.55 | I114: 4757 | J114: 225158.6 | K114: 2018-10-03 | L114: 99 | M114: INE900C01027
A115: ASHAPURMIN | B115: EQ | C115: 30.8 | D115: 31.25 | E115: 29.5 | F115: 30.1 | G115: 30.1 | H115: 30.8 | I115: 128536 | J115: 3902040.65 | K115: 2018-10-03 | L115: 842 | M115: INE348A01023
A116: ASHIANA | B116: EQ | C116: 128.8 | D116: 130.05 | E116: 123.35 | F116: 126 | G116: 126.45 | H116: 127.75 | I116: 34991 | J116: 4411949.2 | K116: 2018-10-03 | L116: 723 | M116: INE365D01021
A117: ASHIMASYN | B117: EQ | C117: 16.6 | D117: 18 | E117: 15.6 | F117: 16.65 | G117: 16.7 | H117: 16.55 | I117: 158887 | J117: 2683579.3 | K117: 2018-10-03 | L117: 604 | M117: INE440A01010
A118: ASHOKA | B118: EQ | C118: 109.75 | D118: 112.95 | E118: 107 | F118: 110.85 | G118: 110.55 | H118: 106.6 | I118: 301007 | J118: 33507813.6 | K118: 2018-10-03 | L118: 5587 | M118: INE442H01029
A119: ASHOKLEY | B119: EQ | C119: 120.8 | D119: 121.4 | E119: 118.6 | F119: 119.15 | G119: 119 | H119: 120.15 | I119: 17262790 | J119: 2068942697 | K119: 2018-10-03 | L119: 58897 | M119: INE208A01029
A120: ASIANHOTNR | B120: EQ | C120: 182 | D120: 205 | E120: 181 | F120: 185.45 | G120: 185.05 | H120: 189.3 | I120: 259 | J120: 48984.55 | K120: 2018-10-03 | L120: 15 | M120: INE363A01022
A121: ASIANPAINT | B121: EQ | C121: 1264.9 | D121: 1269 | E121: 1246.15 | F121: 1251.75 | G121: 1248.55 | H121: 1279.8 | I121: 1236645 | J121: 1556182464 | K121: 2018-10-03 | L121: 85778 | M121: INE021A01026
A122: ASIANTILES | B122: EQ | C122: 177.5 | D122: 182.25 | E122: 174.3 | F122: 177.8 | G122: 179 | H122: 177.25 | I122: 45409 | J122: 8104371.95 | K122: 2018-10-03 | L122: 2012 | M122: INE022I01019
A123: ASPINWALL | B123: EQ | C123: 181 | D123: 199.7 | E123: 177.05 | F123: 182.55 | G123: 180.5 | H123: 184.4 | I123: 1790 | J123: 332573.9 | K123: 2018-10-03 | L123: 76 | M123: INE991I01015
A124: ASSAMCO | B124: BE | C124: 2.95 | D124: 2.95 | E124: 2.95 | F124: 2.95 | G124: 2.95 | H124: 3.1 | I124: 82799 | J124: 244257.05 | K124: 2018-10-03 | L124: 108 | M124: INE442A01024
A125: ASTEC | B125: EQ | C125: 537.8 | D125: 565 | E125: 530.6 | F125: 548.45 | G125: 544.7 | H125: 537.75 | I125: 22526 | J125: 12411028.25 | K125: 2018-10-03 | L125: 1536 | M125: INE563J01010
A126: ASTERDM | B126: EQ | C126: 154 | D126: 156.9 | E126: 151.6 | F126: 155.45 | G126: 156 | H126: 151.4 | I126: 63830 | J126: 9876693.45 | K126: 2018-10-03 | L126: 7004 | M126: INE914M01019
A127: ASTRAL | B127: EQ | C127: 961.8 | D127: 961.8 | E127: 906.05 | F127: 920.45 | G127: 915.05 | H127: 954.7 | I127: 139461 | J127: 128139169 | K127: 2018-10-03 | L127: 27408 | M127: INE006I01046
A128: ASTRAMICRO | B128: EQ | C128: 86.55 | D128: 87.9 | E128: 85.8 | F128: 86.75 | G128: 86.55 | H128: 86.5 | I128: 92153 | J128: 8004879.55 | K128: 2018-10-03 | L128: 1400 | M128: INE386C01029
A129: ASTRAZEN | B129: EQ | C129: 1568.85 | D129: 1635 | E129: 1550 | F129: 1576 | G129: 1580 | H129: 1578.35 | I129: 14177 | J129: 22773164.45 | K129: 2018-10-03 | L129: 1724 | M129: INE203A01020
A130: ASTRON | B130: EQ | C130: 120.1 | D130: 125.35 | E130: 120.1 | F130: 124 | G130: 123.8 | H130: 120.1 | I130: 337732 | J130: 41874455.8 | K130: 2018-10-03 | L130: 3916 | M130: INE646X01014
A131: ATFL | B131: EQ | C131: 545.5 | D131: 560.75 | E131: 536.05 | F131: 538.75 | G131: 538.05 | H131: 549.8 | I131: 10468 | J131: 5683810.2 | K131: 2018-10-03 | L131: 499 | M131: INE209A01019
A132: ATLANTA | B132: EQ | C132: 26 | D132: 26.35 | E132: 24.7 | F132: 25.2 | G132: 24.75 | H132: 25.95 | I132: 55802 | J132: 1403733.45 | K132: 2018-10-03 | L132: 661 | M132: INE285H01022
A133: ATUL | B133: EQ | C133: 3085.55 | D133: 3170 | E133: 3085.55 | F133: 3138.15 | G133: 3145 | H133: 3142.1 | I133: 15247 | J133: 47939971.8 | K133: 2018-10-03 | L133: 1172 | M133: INE100A01010
A134: ATULAUTO | B134: EQ | C134: 331.9 | D134: 337.3 | E134: 320 | F134: 321.1 | G134: 327.8 | H134: 327.45 | I134: 14727 | J134: 4798404.35 | K134: 2018-10-03 | L134: 663 | M134: INE951D01028
A135: AUBANK | B135: EQ | C135: 560 | D135: 574.5 | E135: 546.7 | F135: 564.75 | G135: 566.3 | H135: 560.7 | I135: 763903 | J135: 430296328.4 | K135: 2018-10-03 | L135: 37352 | M135: INE949L01017
A136: AURIONPRO | B136: EQ | C136: 152.8 | D136: 169.2 | E136: 141.35 | F136: 151.75 | G136: 151 | H136: 152.8 | I136: 42755 | J136: 6661440.15 | K136: 2018-10-03 | L136: 847 | M136: INE132H01018
A137: AUROPHARMA | B137: EQ | C137: 774 | D137: 789 | E137: 766.2 | F137: 771.6 | G137: 770 | H137: 769.65 | I137: 5442277 | J137: 4232546119 | K137: 2018-10-03 | L137: 108605 | M137: INE406A01037
A138: AUSOMENT | B138: EQ | C138: 58.05 | D138: 62.9 | E138: 58 | F138: 58.6 | G138: 58.05 | H138: 60.6 | I138: 13428 | J138: 817061.65 | K138: 2018-10-03 | L138: 191 | M138: INE218C01016
A139: AUTOAXLES | B139: EQ | C139: 1218 | D139: 1290 | E139: 1201.05 | F139: 1233.9 | G139: 1215 | H139: 1214.9 | I139: 22964 | J139: 28784059.55 | K139: 2018-10-03 | L139: 1939 | M139: INE449A01011
A140: AUTOIND | B140: EQ | C140: 59.3 | D140: 62.8 | E140: 58.25 | F140: 60.65 | G140: 60.05 | H140: 57.9 | I140: 54146 | J140: 3268753.55 | K140: 2018-10-03 | L140: 907 | M140: INE718H01014
A141: AUTOLITIND | B141: EQ | C141: 42.3 | D141: 42.9 | E141: 41 | F141: 42.4 | G141: 42.3 | H141: 40.75 | I141: 9957 | J141: 417729.5 | K141: 2018-10-03 | L141: 164 | M141: INE448A01013
A142: AVADHSUGAR | B142: EQ | C142: 404.8 | D142: 440.9 | E142: 400 | F142: 425.6 | G142: 424 | H142: 400.85 | I142: 192803 | J142: 82537952.15 | K142: 2018-10-03 | L142: 7361 | M142: INE349W01017
A143: AVANTIFEED | B143: EQ | C143: 370 | D143: 383.95 | E143: 362.35 | F143: 366 | G143: 365 | H143: 369.45 | I143: 484351 | J143: 179757478.3 | K143: 2018-10-03 | L143: 19987 | M143: INE871C01038
A144: AVTNPL | B144: EQ | C144: 26.75 | D144: 27.9 | E144: 26.55 | F144: 27.6 | G144: 27.75 | H144: 26.85 | I144: 26234 | J144: 712242.65 | K144: 2018-10-03 | L144: 248 | M144: INE488D01021
A145: AXISBANK | B145: EQ | C145: 592.6 | D145: 592.6 | E145: 569.1 | F145: 572.25 | G145: 571.95 | H145: 593.45 | I145: 18385327 | J145: 1.069082743e+10 | K145: 2018-10-03 | L145: 237229 | M145: INE238A01034
A146: AXISCADES | B146: EQ | C146: 71 | D146: 80.4 | E146: 70.1 | F146: 75.45 | G146: 75.2 | H146: 70.85 | I146: 257364 | J146: 19542686.85 | K146: 2018-10-03 | L146: 3315 | M146: INE555B01013
A147: AXISGOLD | B147: EQ | C147: 2718 | D147: 2798 | E147: 2711.1 | F147: 2738.1 | G147: 2738.1 | H147: 2711 | I147: 261 | J147: 723175.75 | K147: 2018-10-03 | L147: 34 | M147: INF846K01347
A148: AXISNIFTY | B148: EQ | C148: 1113.86 | D148: 1119.94 | E148: 1100 | F148: 1101.6 | G148: 1100 | H148: 1113.06 | I148: 29 | J148: 32265.92 | K148: 2018-10-03 | L148: 6 | M148: INF846K01ZL0
A149: AYMSYNTEX | B149: EQ | C149: 35.45 | D149: 36 | E149: 33.05 | F149: 34.65 | G149: 36 | H149: 34.8 | I149: 10078 | J149: 345546.9 | K149: 2018-10-03 | L149: 123 | M149: INE193B01039
A150: BAFNAPHARM | B150: EQ | C150: 12.4 | D150: 12.4 | E150: 11.5 | F150: 11.8 | G150: 11.8 | H150: 11.45 | I150: 5712 | J150: 66630.15 | K150: 2018-10-03 | L150: 71 | M150: INE878I01014
A151: BAGFILMS | B151: BE | C151: 4.55 | D151: 4.65 | E151: 4.4 | F151: 4.65 | G151: 4.65 | H151: 4.55 | I151: 138171 | J151: 633789.45 | K151: 2018-10-03 | L151: 201 | M151: INE116D01028
A152: BAJAJ-AUTO | B152: EQ | C152: 2735 | D152: 2769.9 | E152: 2702 | F152: 2731.4 | G152: 2734.75 | H152: 2730.1 | I152: 504580 | J152: 1383335579 | K152: 2018-10-03 | L152: 45442 | M152: INE917I01010
A153: BAJAJCORP | B153: EQ | C153: 400.1 | D153: 403.2 | E153: 396.05 | F153: 400 | G153: 401 | H153: 395.05 | I153: 235967 | J153: 94386098.55 | K153: 2018-10-03 | L153: 2696 | M153: INE933K01021
A154: BAJAJELEC | B154: EQ | C154: 503 | D154: 509.9 | E154: 492.5 | F154: 495.7 | G154: 495.45 | H154: 500.5 | I154: 167872 | J154: 84088484.75 | K154: 2018-10-03 | L154: 7947 | M154: INE193E01025
A155: BAJAJFINSV | B155: EQ | C155: 5908 | D155: 5949 | E155: 5701 | F155: 5752.5 | G155: 5714.95 | H155: 5881.85 | I155: 312920 | J155: 1821316911 | K155: 2018-10-03 | L155: 36773 | M155: INE918I01018
A156: BAJAJHIND | B156: EQ | C156: 7.9 | D156: 8.7 | E156: 7.75 | F156: 8.5 | G156: 8.55 | H156: 7.95 | I156: 8511519 | J156: 72132055.65 | K156: 2018-10-03 | L156: 8660 | M156: INE306A01021
A157: BAJAJHLDNG | B157: EQ | C157: 2996 | D157: 3036.25 | E157: 2937 | F157: 3005.65 | G157: 2980 | H157: 2964.1 | I157: 11542 | J157: 34362798.85 | K157: 2018-10-03 | L157: 1853 | M157: INE118A01012
A158: BAJFINANCE | B158: EQ | C158: 2200 | D158: 2329.95 | E158: 2166.05 | F158: 2232.2 | G158: 2222.05 | H158: 2208.5 | I158: 5567701 | J158: 1.256988681e+10 | K158: 2018-10-03 | L158: 171390 | M158: INE296A01024
A159: BALAJITELE | B159: EQ | C159: 108.85 | D159: 109.25 | E159: 105 | F159: 108 | G159: 107 | H159: 106.25 | I159: 79064 | J159: 8557672.95 | K159: 2018-10-03 | L159: 1005 | M159: INE794B01026
A160: BALAMINES | B160: EQ | C160: 463 | D160: 498.55 | E160: 456.75 | F160: 481.3 | G160: 490 | H160: 463.7 | I160: 23409 | J160: 11354816.5 | K160: 2018-10-03 | L160: 1696 | M160: INE050E01027
A161: BALKRISHNA | B161: EQ | C161: 48.6 | D161: 53.9 | E161: 48.6 | F161: 51.85 | G161: 51.95 | H161: 50.1 | I161: 21811 | J161: 1130649.5 | K161: 2018-10-03 | L161: 356 | M161: INE875R01011
A162: BALKRISIND | B162: EQ | C162: 1084 | D162: 1084 | E162: 1036 | F162: 1052.8 | G162: 1042 | H162: 1084.35 | I162: 842713 | J162: 889746745.1 | K162: 2018-10-03 | L162: 37333 | M162: INE787D01026
A163: BALLARPUR | B163: EQ | C163: 6.75 | D163: 7.1 | E163: 6.55 | F163: 6.9 | G163: 6.9 | H163: 6.75 | I163: 478304 | J163: 3316019.8 | K163: 2018-10-03 | L163: 746 | M163: INE294A01037
A164: BALMLAWRIE | B164: EQ | C164: 184.1 | D164: 190.4 | E164: 184.1 | F164: 186.85 | G164: 186.55 | H164: 185.95 | I164: 57241 | J164: 10686838.65 | K164: 2018-10-03 | L164: 1409 | M164: INE164A01016
A165: BALPHARMA | B165: EQ | C165: 79.95 | D165: 82.45 | E165: 77.3 | F165: 80.6 | G165: 80.25 | H165: 79.65 | I165: 40764 | J165: 3291608.55 | K165: 2018-10-03 | L165: 763 | M165: INE083D01012
A166: BALRAMCHIN | B166: EQ | C166: 73 | D166: 79 | E166: 72 | F166: 76.2 | G166: 75.95 | H166: 73.35 | I166: 7645791 | J166: 587646908.1 | K166: 2018-10-03 | L166: 37131 | M166: INE119A01028
A167: BANARBEADS | B167: EQ | C167: 47.9 | D167: 48.15 | E167: 45.1 | F167: 48.15 | G167: 48.15 | H167: 43.8 | I167: 2211 | J167: 105073 | K167: 2018-10-03 | L167: 38 | M167: INE655B01011
A168: BANARISUG | B168: EQ | C168: 1505.05 | D168: 1624 | E168: 1505.05 | F168: 1590.7 | G168: 1595 | H168: 1556.25 | I168: 956 | J168: 1525254.25 | K168: 2018-10-03 | L168: 227 | M168: INE459A01010
A169: BANCOINDIA | B169: EQ | C169: 185.1 | D169: 193.3 | E169: 183.65 | F169: 190.1 | G169: 189.7 | H169: 185.05 | I169: 27413 | J169: 5169734.3 | K169: 2018-10-03 | L169: 2344 | M169: INE213C01025
A170: BANDHANBNK | B170: EQ | C170: 437 | D170: 498.8 | E170: 422.1 | F170: 446.4 | G170: 440.1 | H170: 452.2 | I170: 13911206 | J170: 6395235177 | K170: 2018-10-03 | L170: 366049 | M170: INE545U01014
A171: BANG | B171: EQ | C171: 53 | D171: 53.9 | E171: 51.6 | F171: 52.75 | G171: 52.4 | H171: 52.15 | I171: 24827 | J171: 1316954.35 | K171: 2018-10-03 | L171: 207 | M171: INE863I01016
A172: BANKBARODA | B172: EQ | C172: 102.2 | D172: 107.65 | E172: 101.8 | F172: 103.3 | G172: 102.7 | H172: 104.4 | I172: 30440427 | J172: 3184241549 | K172: 2018-10-03 | L172: 104075 | M172: INE028A01039
A173: BANKBEES | B173: EQ | C173: 2560.4 | D173: 2594.5 | E173: 2549 | F173: 2554.19 | G173: 2558.56 | H173: 2583.12 | I173: 20481 | J173: 52625672.07 | K173: 2018-10-03 | L173: 537 | M173: INF732E01078
A174: BANKINDIA | B174: EQ | C174: 78.95 | D174: 83.95 | E174: 78.1 | F174: 80.6 | G174: 79.75 | H174: 79.15 | I174: 9719469 | J174: 788477040.5 | K174: 2018-10-03 | L174: 27858 | M174: INE084A01016
A175: BANSWRAS | B175: EQ | C175: 63.9 | D175: 73.8 | E175: 61.4 | F175: 70.75 | G175: 73.8 | H175: 62.1 | I175: 15590 | J175: 1060687.95 | K175: 2018-10-03 | L175: 240 | M175: INE629D01012
A176: BARTRONICS | B176: EQ | C176: 6.05 | D176: 6.8 | E176: 6.05 | F176: 6.65 | G176: 6.7 | H176: 6.45 | I176: 49975 | J176: 329053.9 | K176: 2018-10-03 | L176: 129 | M176: INE855F01034
A177: BASF | B177: EQ | C177: 1805.85 | D177: 1849 | E177: 1790 | F177: 1807.75 | G177: 1800 | H177: 1828.85 | I177: 2766 | J177: 5024497.95 | K177: 2018-10-03 | L177: 420 | M177: INE373A01013
A178: BASML | B178: EQ | C178: 200 | D178: 221.9 | E178: 200 | F178: 212.25 | G178: 212.25 | H178: 200.1 | I178: 348 | J178: 70695.35 | K178: 2018-10-03 | L178: 27 | M178: INE186H01014
A179: BATAINDIA | B179: EQ | C179: 967.85 | D179: 970.05 | E179: 911 | F179: 915.3 | G179: 912.5 | H179: 967.9 | I179: 1547225 | J179: 1444595925 | K179: 2018-10-03 | L179: 43227 | M179: INE176A01028
A180: BAYERCROP | B180: EQ | C180: 4363.5 | D180: 4400 | E180: 4341.45 | F180: 4389.5 | G180: 4360 | H180: 4387.35 | I180: 3066 | J180: 13435727.9 | K180: 2018-10-03 | L180: 1156 | M180: INE462A01022
A181: BBL | B181: EQ | C181: 1150 | D181: 1184.6 | E181: 1142.95 | F181: 1156 | G181: 1165 | H181: 1154.6 | I181: 7420 | J181: 8625220.65 | K181: 2018-10-03 | L181: 1081 | M181: INE464A01028
A182: BBTC | B182: EQ | C182: 1304 | D182: 1350 | E182: 1286.55 | F182: 1311.2 | G182: 1310 | H182: 1314.6 | I182: 215818 | J182: 283906215.9 | K182: 2018-10-03 | L182: 11849 | M182: INE050A01025
A183: BDL | B183: EQ | C183: 280.9 | D183: 286.4 | E183: 280.8 | F183: 283.75 | G183: 283.9 | H183: 280.35 | I183: 23188 | J183: 6579810.6 | K183: 2018-10-03 | L183: 1130 | M183: INE171Z01018
A184: BEARDSELL | B184: EQ | C184: 27.05 | D184: 29.15 | E184: 26.25 | F184: 27.15 | G184: 26.5 | H184: 27.75 | I184: 2116 | J184: 58307.85 | K184: 2018-10-03 | L184: 55 | M184: INE520H01022
A185: BEDMUTHA | B185: BE | C185: 21 | D185: 22.45 | E185: 20.9 | F185: 21.35 | G185: 21.5 | H185: 21.95 | I185: 8907 | J185: 188625.4 | K185: 2018-10-03 | L185: 39 | M185: INE844K01012
A186: BEL | B186: EQ | C186: 82.75 | D186: 84.75 | E186: 81.15 | F186: 83.4 | G186: 82.7 | H186: 82.7 | I186: 10311235 | J186: 857804730.1 | K186: 2018-10-03 | L186: 45364 | M186: INE263A01024
A187: BEML | B187: EQ | C187: 583.35 | D187: 627.8 | E187: 576 | F187: 609.75 | G187: 605 | H187: 585.35 | I187: 1747364 | J187: 1056527982 | K187: 2018-10-03 | L187: 37512 | M187: INE258A01016
A188: BEPL | B188: EQ | C188: 124 | D188: 134 | E188: 120.5 | F188: 128.8 | G188: 129.45 | H188: 122.85 | I188: 698675 | J188: 90524692.6 | K188: 2018-10-03 | L188: 7608 | M188: INE922A01025
A189: BERGEPAINT | B189: EQ | C189: 284 | D189: 286.95 | E189: 277.5 | F189: 283.5 | G189: 281.45 | H189: 285.4 | I189: 609999 | J189: 172708888.3 | K189: 2018-10-03 | L189: 16371 | M189: INE463A01038
A190: BFINVEST | B190: EQ | C190: 267 | D190: 277 | E190: 255.55 | F190: 264.4 | G190: 264 | H190: 264.5 | I190: 138940 | J190: 37362089.15 | K190: 2018-10-03 | L190: 6308 | M190: INE878K01010
A191: BFUTILITIE | B191: EQ | C191: 220.1 | D191: 226.75 | E191: 216.3 | F191: 218.85 | G191: 218.35 | H191: 218.85 | I191: 343731 | J191: 76353731.9 | K191: 2018-10-03 | L191: 9511 | M191: INE243D01012
A192: BGLOBAL | B192: BE | C192: 2.25 | D192: 2.35 | E192: 2.15 | F192: 2.35 | G192: 2.35 | H192: 2.25 | I192: 10580 | J192: 24640 | K192: 2018-10-03 | L192: 23 | M192: INE224M01013
A193: BGRENERGY | B193: EQ | C193: 53.3 | D193: 57.8 | E193: 52.35 | F193: 55.85 | G193: 55.6 | H193: 53.1 | I193: 103537 | J193: 5749552.25 | K193: 2018-10-03 | L193: 1433 | M193: INE661I01014
A194: BHAGERIA | B194: EQ | C194: 225.5 | D194: 243.65 | E194: 225.5 | F194: 237.2 | G194: 236.05 | H194: 223.9 | I194: 23733 | J194: 5638163.55 | K194: 2018-10-03 | L194: 1602 | M194: INE354C01027
A195: BHAGYANGR | B195: BE | C195: 29.5 | D195: 30 | E195: 29.35 | F195: 29.6 | G195: 30 | H195: 30.45 | I195: 7232 | J195: 214520 | K195: 2018-10-03 | L195: 55 | M195: INE458B01036
A196: BHAGYAPROP | B196: EQ | C196: 20.8 | D196: 23.1 | E196: 20.8 | F196: 21.35 | G196: 21.1 | H196: 21 | I196: 8326 | J196: 177650.55 | K196: 2018-10-03 | L196: 16 | M196: INE363W01018
A197: BHANDARI | B197: EQ | C197: 1.95 | D197: 2.05 | E197: 1.85 | F197: 2.05 | G197: 2.05 | H197: 1.95 | I197: 148545 | J197: 295699.35 | K197: 2018-10-03 | L197: 127 | M197: INE474E01029
A198: BHARATFIN | B198: EQ | C198: 1016.9 | D198: 1033.7 | E198: 998.3 | F198: 1016.55 | G198: 1011.5 | H198: 1017.3 | I198: 1025025 | J198: 1035499295 | K198: 2018-10-03 | L198: 36069 | M198: INE180K01011
A199: BHARATFORG | B199: EQ | C199: 613.1 | D199: 618.5 | E199: 602 | F199: 603.45 | G199: 603.35 | H199: 625.55 | I199: 1154916 | J199: 703590470.8 | K199: 2018-10-03 | L199: 27162 | M199: INE465A01025
A200: BHARATGEAR | B200: EQ | C200: 156 | D200: 169.7 | E200: 155.65 | F200: 165.25 | G200: 165.95 | H200: 156.5 | I200: 15439 | J200: 2520145.55 | K200: 2018-10-03 | L200: 701 | M200: INE561C01019
... 1428 more rows
